Organisation Name,Organisation Code,Unique Ref No,Effective Date,Directorate where expenidture incurred,Supplier Name,Payment Date,Net Amount,Purpose of Spend,Procurement Classification (Higher Level),Procurement Classification (Lower Level),Capital / Revenue
Walsall Council,http://opendatacommunities.org/id/metropolitan-district-council/walsall,WC121-1,31.12.2021,ECONOMY & ENVIRONMENT,11KBW,07/12/2020,"7,985.00",73014-School Only Payments - Catering,THIRD PARTY PAYMENTS,INDEPENDENT UNIT WITHIN COUNCIL,REVENUE
Walsall Council,http://opendatacommunities.org/id/metropolitan-district-council/walsall,WC121-2,31.12.2021,CENTRALLY HELD,11KBW,09/12/2020,"9,000.00",63116-External Legal Fees,SUPPLIES & SERVICES,SERVICES,REVENUE
Walsall Council,http://opendatacommunities.org/id/metropolitan-district-council/walsall,WC121-3,31.12.2021,CHILDRENS,247 CARS (WILLENHALL) LIMITED,02/12/2020,"1,425.00",52000-Hire of Vehicle with Driver,TRANSPORT,DIRECT TRANSPORT COSTS,REVENUE
Walsall Council,http://opendatacommunities.org/id/metropolitan-district-council/walsall,WC121-4,31.12.2021,CHILDRENS,247 CARS (WILLENHALL) LIMITED,02/12/2020,"1,096.20",52000-Hire of Vehicle with Driver,TRANSPORT,DIRECT TRANSPORT COSTS,REVENUE
Walsall Council,http://opendatacommunities.org/id/metropolitan-district-council/walsall,WC121-5,31.12.2021,CHILDRENS,247 CARS (WILLENHALL) LIMITED,23/12/2020,"1,900.00",52000-Hire of Vehicle with Driver,TRANSPORT,DIRECT TRANSPORT COSTS,REVENUE
Walsall Council,http://opendatacommunities.org/id/metropolitan-district-council/walsall,WC121-6,31.12.2021,CHILDRENS,247 CARS (WILLENHALL) LIMITED,23/12/2020,"1,461.60",52000-Hire of Vehicle with Driver,TRANSPORT,DIRECT TRANSPORT COSTS,REVENUE
Walsall Council,http://opendatacommunities.org/id/metropolitan-district-council/walsall,WC121-7,31.12.2021,ADULT SOCIAL CARE,5 CARE SERVICES LTD,15/12/2020,"16,823.26",73025-Professional Services-Priv Contractor & Other Agencies,THIRD PARTY PAYMENTS,PRIVATE CONTRACTOR,REVENUE
Walsall Council,http://opendatacommunities.org/id/metropolitan-district-council/walsall,WC121-8,31.12.2021,ADULT SOCIAL CARE,5 CARE SERVICES LTD,04/12/2020,341.81,73507-Domiciliary Care,THIRD PARTY PAYMENTS,PRIVATE CONTRACTOR,REVENUE
Walsall Council,http://opendatacommunities.org/id/metropolitan-district-council/walsall,WC121-9,31.12.2021,ADULT SOCIAL CARE,5 CARE SERVICES LTD,04/12/2020,539.70,73507-Domiciliary Care,THIRD PARTY PAYMENTS,PRIVATE CONTRACTOR,REVENUE
Walsall Council,http://opendatacommunities.org/id/metropolitan-district-council/walsall,WC121-10,31.12.2021,ADULT SOCIAL CARE,5 CARE SERVICES LTD,04/12/2020,485.73,73507-Domiciliary Care,THIRD PARTY PAYMENTS,PRIVATE CONTRACTOR,REVENUE
Walsall Council,http://opendatacommunities.org/id/metropolitan-district-council/walsall,WC121-11,31.12.2021,ADULT SOCIAL CARE,5 CARE SERVICES LTD,04/12/2020,516.57,73507-Domiciliary Care,THIRD PARTY PAYMENTS,PRIVATE CONTRACTOR,REVENUE
Walsall Council,http://opendatacommunities.org/id/metropolitan-district-council/walsall,WC121-12,31.12.2021,ADULT SOCIAL CARE,5 CARE SERVICES LTD,04/12/2020,"1,356.96",73507-Domiciliary Care,THIRD PARTY PAYMENTS,PRIVATE CONTRACTOR,REVENUE
Walsall Council,http://opendatacommunities.org/id/metropolitan-district-council/walsall,WC121-13,31.12.2021,ADULT SOCIAL CARE,5 CARE SERVICES LTD,04/12/2020,377.79,73507-Domiciliary Care,THIRD PARTY PAYMENTS,PRIVATE CONTRACTOR,REVENUE
Walsall Council,http://opendatacommunities.org/id/metropolitan-district-council/walsall,WC121-14,31.12.2021,ADULT SOCIAL CARE,5 CARE SERVICES LTD,04/12/2020,393.21,73507-Domiciliary Care,THIRD PARTY PAYMENTS,PRIVATE CONTRACTOR,REVENUE
Walsall Council,http://opendatacommunities.org/id/metropolitan-district-council/walsall,WC121-15,31.12.2021,ADULT SOCIAL CARE,5 CARE SERVICES LTD,04/12/2020,755.58,73507-Domiciliary Care,THIRD PARTY PAYMENTS,PRIVATE CONTRACTOR,REVENUE
Walsall Council,http://opendatacommunities.org/id/metropolitan-district-council/walsall,WC121-16,31.12.2021,ADULT SOCIAL CARE,5 CARE SERVICES LTD,04/12/2020,-372.72,73507-Domiciliary Care,THIRD PARTY PAYMENTS,PRIVATE CONTRACTOR,REVENUE
Walsall Council,http://opendatacommunities.org/id/metropolitan-district-council/walsall,WC121-17,31.12.2021,ADULT SOCIAL CARE,5 CARE SERVICES LTD,04/12/2020,377.79,73507-Domiciliary Care,THIRD PARTY PAYMENTS,PRIVATE CONTRACTOR,REVENUE
Walsall Council,http://opendatacommunities.org/id/metropolitan-district-council/walsall,WC121-18,31.12.2021,ADULT SOCIAL CARE,5 CARE SERVICES LTD,04/12/2020,593.67,73507-Domiciliary Care,THIRD PARTY PAYMENTS,PRIVATE CONTRACTOR,REVENUE
Walsall Council,http://opendatacommunities.org/id/metropolitan-district-council/walsall,WC121-19,31.12.2021,ADULT SOCIAL CARE,5 CARE SERVICES LTD,04/12/2020,251.93,73507-Domiciliary Care,THIRD PARTY PAYMENTS,PRIVATE CONTRACTOR,REVENUE
Walsall Council,http://opendatacommunities.org/id/metropolitan-district-council/walsall,WC121-20,31.12.2021,ADULT SOCIAL CARE,5 CARE SERVICES LTD,04/12/2020,308.40,73507-Domiciliary Care,THIRD PARTY PAYMENTS,PRIVATE CONTRACTOR,REVENUE
Walsall Council,http://opendatacommunities.org/id/metropolitan-district-council/walsall,WC121-21,31.12.2021,ADULT SOCIAL CARE,5 CARE SERVICES LTD,04/12/2020,-269.85,73507-Domiciliary Care,THIRD PARTY PAYMENTS,PRIVATE CONTRACTOR,REVENUE
Walsall Council,http://opendatacommunities.org/id/metropolitan-district-council/walsall,WC121-22,31.12.2021,ADULT SOCIAL CARE,5 CARE SERVICES LTD,04/12/2020,349.52,73507-Domiciliary Care,THIRD PARTY PAYMENTS,PRIVATE CONTRACTOR,REVENUE
Walsall Council,http://opendatacommunities.org/id/metropolitan-district-council/walsall,WC121-23,31.12.2021,ADULT SOCIAL CARE,5 CARE SERVICES LTD,04/12/2020,539.70,73507-Domiciliary Care,THIRD PARTY PAYMENTS,PRIVATE CONTRACTOR,REVENUE
Walsall Council,http://opendatacommunities.org/id/metropolitan-district-council/walsall,WC121-24,31.12.2021,ADULT SOCIAL CARE,5 CARE SERVICES LTD,04/12/2020,485.80,73507-Domiciliary Care,THIRD PARTY PAYMENTS,PRIVATE CONTRACTOR,REVENUE
Walsall Council,http://opendatacommunities.org/id/metropolitan-district-council/walsall,WC121-25,31.12.2021,ADULT SOCIAL CARE,5 CARE SERVICES LTD,04/12/2020,308.40,73507-Domiciliary Care,THIRD PARTY PAYMENTS,PRIVATE CONTRACTOR,REVENUE
Walsall Council,http://opendatacommunities.org/id/metropolitan-district-council/walsall,WC121-26,31.12.2021,ADULT SOCIAL CARE,5 CARE SERVICES LTD,04/12/2020,431.76,73507-Domiciliary Care,THIRD PARTY PAYMENTS,PRIVATE CONTRACTOR,REVENUE
Walsall Council,http://opendatacommunities.org/id/metropolitan-district-council/walsall,WC121-27,31.12.2021,ADULT SOCIAL CARE,5 CARE SERVICES LTD,04/12/2020,454.89,73507-Domiciliary Care,THIRD PARTY PAYMENTS,PRIVATE CONTRACTOR,REVENUE
Walsall Council,http://opendatacommunities.org/id/metropolitan-district-council/walsall,WC121-28,31.12.2021,ADULT SOCIAL CARE,5 CARE SERVICES LTD,04/12/2020,408.63,73507-Domiciliary Care,THIRD PARTY PAYMENTS,PRIVATE CONTRACTOR,REVENUE
Walsall Council,http://opendatacommunities.org/id/metropolitan-district-council/walsall,WC121-29,31.12.2021,ADULT SOCIAL CARE,5 CARE SERVICES LTD,04/12/2020,647.64,73507-Domiciliary Care,THIRD PARTY PAYMENTS,PRIVATE CONTRACTOR,REVENUE
Walsall Council,http://opendatacommunities.org/id/metropolitan-district-council/walsall,WC121-30,31.12.2021,ADULT SOCIAL CARE,5 CARE SERVICES LTD,04/12/2020,323.82,73507-Domiciliary Care,THIRD PARTY PAYMENTS,PRIVATE CONTRACTOR,REVENUE
Walsall Council,http://opendatacommunities.org/id/metropolitan-district-council/walsall,WC121-31,31.12.2021,ADULT SOCIAL CARE,5 CARE SERVICES LTD,04/12/2020,-855.81,73507-Domiciliary Care,THIRD PARTY PAYMENTS,PRIVATE CONTRACTOR,REVENUE
Walsall Council,http://opendatacommunities.org/id/metropolitan-district-council/walsall,WC121-32,31.12.2021,ADULT SOCIAL CARE,5 CARE SERVICES LTD,04/12/2020,250.60,73507-Domiciliary Care,THIRD PARTY PAYMENTS,PRIVATE CONTRACTOR,REVENUE
Walsall Council,http://opendatacommunities.org/id/metropolitan-district-council/walsall,WC121-33,31.12.2021,ADULT SOCIAL CARE,5 CARE SERVICES LTD,04/12/2020,251.93,73507-Domiciliary Care,THIRD PARTY PAYMENTS,PRIVATE CONTRACTOR,REVENUE
Walsall Council,http://opendatacommunities.org/id/metropolitan-district-council/walsall,WC121-34,31.12.2021,ADULT SOCIAL CARE,5 CARE SERVICES LTD,04/12/2020,308.40,73507-Domiciliary Care,THIRD PARTY PAYMENTS,PRIVATE CONTRACTOR,REVENUE
Walsall Council,http://opendatacommunities.org/id/metropolitan-district-council/walsall,WC121-35,31.12.2021,ADULT SOCIAL CARE,5 CARE SERVICES LTD,04/12/2020,431.76,73507-Domiciliary Care,THIRD PARTY PAYMENTS,PRIVATE CONTRACTOR,REVENUE
Walsall Council,http://opendatacommunities.org/id/metropolitan-district-council/walsall,WC121-36,31.12.2021,ADULT SOCIAL CARE,5 CARE SERVICES LTD,04/12/2020,516.57,73507-Domiciliary Care,THIRD PARTY PAYMENTS,PRIVATE CONTRACTOR,REVENUE
Walsall Council,http://opendatacommunities.org/id/metropolitan-district-council/walsall,WC121-37,31.12.2021,ADULT SOCIAL CARE,5 CARE SERVICES LTD,04/12/2020,555.12,73507-Domiciliary Care,THIRD PARTY PAYMENTS,PRIVATE CONTRACTOR,REVENUE
Walsall Council,http://opendatacommunities.org/id/metropolitan-district-council/walsall,WC121-38,31.12.2021,ADULT SOCIAL CARE,5 CARE SERVICES LTD,04/12/2020,308.40,73507-Domiciliary Care,THIRD PARTY PAYMENTS,PRIVATE CONTRACTOR,REVENUE
Walsall Council,http://opendatacommunities.org/id/metropolitan-district-council/walsall,WC121-39,31.12.2021,ADULT SOCIAL CARE,5 CARE SERVICES LTD,04/12/2020,349.52,73507-Domiciliary Care,THIRD PARTY PAYMENTS,PRIVATE CONTRACTOR,REVENUE
Walsall Council,http://opendatacommunities.org/id/metropolitan-district-council/walsall,WC121-40,31.12.2021,ADULT SOCIAL CARE,5 CARE SERVICES LTD,04/12/2020,377.79,73507-Domiciliary Care,THIRD PARTY PAYMENTS,PRIVATE CONTRACTOR,REVENUE
Walsall Council,http://opendatacommunities.org/id/metropolitan-district-council/walsall,WC121-41,31.12.2021,ADULT SOCIAL CARE,5 CARE SERVICES LTD,04/12/2020,647.64,73507-Domiciliary Care,THIRD PARTY PAYMENTS,PRIVATE CONTRACTOR,REVENUE
Walsall Council,http://opendatacommunities.org/id/metropolitan-district-council/walsall,WC121-42,31.12.2021,ADULT SOCIAL CARE,5 CARE SERVICES LTD,04/12/2020,323.82,73507-Domiciliary Care,THIRD PARTY PAYMENTS,PRIVATE CONTRACTOR,REVENUE
Walsall Council,http://opendatacommunities.org/id/metropolitan-district-council/walsall,WC121-43,31.12.2021,ADULT SOCIAL CARE,5 CARE SERVICES LTD,04/12/2020,377.79,73507-Domiciliary Care,THIRD PARTY PAYMENTS,PRIVATE CONTRACTOR,REVENUE
Walsall Council,http://opendatacommunities.org/id/metropolitan-district-council/walsall,WC121-44,31.12.2021,ADULT SOCIAL CARE,5 CARE SERVICES LTD,04/12/2020,593.67,73507-Domiciliary Care,THIRD PARTY PAYMENTS,PRIVATE CONTRACTOR,REVENUE
Walsall Council,http://opendatacommunities.org/id/metropolitan-district-council/walsall,WC121-45,31.12.2021,ADULT SOCIAL CARE,5 CARE SERVICES LTD,04/12/2020,250.60,73507-Domiciliary Care,THIRD PARTY PAYMENTS,PRIVATE CONTRACTOR,REVENUE
Walsall Council,http://opendatacommunities.org/id/metropolitan-district-council/walsall,WC121-46,31.12.2021,ADULT SOCIAL CARE,5 CARE SERVICES LTD,04/12/2020,539.70,73507-Domiciliary Care,THIRD PARTY PAYMENTS,PRIVATE CONTRACTOR,REVENUE
Walsall Council,http://opendatacommunities.org/id/metropolitan-district-council/walsall,WC121-47,31.12.2021,ADULT SOCIAL CARE,5 CARE SERVICES LTD,04/12/2020,485.80,73507-Domiciliary Care,THIRD PARTY PAYMENTS,PRIVATE CONTRACTOR,REVENUE
Walsall Council,http://opendatacommunities.org/id/metropolitan-district-council/walsall,WC121-48,31.12.2021,ADULT SOCIAL CARE,5 CARE SERVICES LTD,04/12/2020,393.21,73507-Domiciliary Care,THIRD PARTY PAYMENTS,PRIVATE CONTRACTOR,REVENUE
Walsall Council,http://opendatacommunities.org/id/metropolitan-district-council/walsall,WC121-49,31.12.2021,ADULT SOCIAL CARE,5 CARE SERVICES LTD,04/12/2020,755.58,73507-Domiciliary Care,THIRD PARTY PAYMENTS,PRIVATE CONTRACTOR,REVENUE
Walsall Council,http://opendatacommunities.org/id/metropolitan-district-council/walsall,WC121-50,31.12.2021,ADULT SOCIAL CARE,5 CARE SERVICES LTD,04/12/2020,341.81,73507-Domiciliary Care,THIRD PARTY PAYMENTS,PRIVATE CONTRACTOR,REVENUE
Walsall Council,http://opendatacommunities.org/id/metropolitan-district-council/walsall,WC121-51,31.12.2021,ADULT SOCIAL CARE,5 CARE SERVICES LTD,04/12/2020,539.70,73507-Domiciliary Care,THIRD PARTY PAYMENTS,PRIVATE CONTRACTOR,REVENUE
Walsall Council,http://opendatacommunities.org/id/metropolitan-district-council/walsall,WC121-52,31.12.2021,ADULT SOCIAL CARE,5 CARE SERVICES LTD,04/12/2020,485.73,73507-Domiciliary Care,THIRD PARTY PAYMENTS,PRIVATE CONTRACTOR,REVENUE
Walsall Council,http://opendatacommunities.org/id/metropolitan-district-council/walsall,WC121-53,31.12.2021,ADULT SOCIAL CARE,5 CARE SERVICES LTD,04/12/2020,454.89,73507-Domiciliary Care,THIRD PARTY PAYMENTS,PRIVATE CONTRACTOR,REVENUE
Walsall Council,http://opendatacommunities.org/id/metropolitan-district-council/walsall,WC121-54,31.12.2021,ADULT SOCIAL CARE,5 CARE SERVICES LTD,17/12/2020,341.81,73507-Domiciliary Care,THIRD PARTY PAYMENTS,PRIVATE CONTRACTOR,REVENUE
Walsall Council,http://opendatacommunities.org/id/metropolitan-district-council/walsall,WC121-55,31.12.2021,ADULT SOCIAL CARE,5 CARE SERVICES LTD,17/12/2020,308.40,73507-Domiciliary Care,THIRD PARTY PAYMENTS,PRIVATE CONTRACTOR,REVENUE
Walsall Council,http://opendatacommunities.org/id/metropolitan-district-council/walsall,WC121-56,31.12.2021,ADULT SOCIAL CARE,5 CARE SERVICES LTD,17/12/2020,431.76,73507-Domiciliary Care,THIRD PARTY PAYMENTS,PRIVATE CONTRACTOR,REVENUE
Walsall Council,http://opendatacommunities.org/id/metropolitan-district-council/walsall,WC121-57,31.12.2021,ADULT SOCIAL CARE,5 CARE SERVICES LTD,17/12/2020,393.21,73507-Domiciliary Care,THIRD PARTY PAYMENTS,PRIVATE CONTRACTOR,REVENUE
Walsall Council,http://opendatacommunities.org/id/metropolitan-district-council/walsall,WC121-58,31.12.2021,ADULT SOCIAL CARE,5 CARE SERVICES LTD,17/12/2020,539.70,73507-Domiciliary Care,THIRD PARTY PAYMENTS,PRIVATE CONTRACTOR,REVENUE
Walsall Council,http://opendatacommunities.org/id/metropolitan-district-council/walsall,WC121-59,31.12.2021,ADULT SOCIAL CARE,5 CARE SERVICES LTD,17/12/2020,485.73,73507-Domiciliary Care,THIRD PARTY PAYMENTS,PRIVATE CONTRACTOR,REVENUE
Walsall Council,http://opendatacommunities.org/id/metropolitan-district-council/walsall,WC121-60,31.12.2021,ADULT SOCIAL CARE,5 CARE SERVICES LTD,17/12/2020,647.64,73507-Domiciliary Care,THIRD PARTY PAYMENTS,PRIVATE CONTRACTOR,REVENUE
Walsall Council,http://opendatacommunities.org/id/metropolitan-district-council/walsall,WC121-61,31.12.2021,ADULT SOCIAL CARE,5 CARE SERVICES LTD,17/12/2020,323.82,73507-Domiciliary Care,THIRD PARTY PAYMENTS,PRIVATE CONTRACTOR,REVENUE
Walsall Council,http://opendatacommunities.org/id/metropolitan-district-council/walsall,WC121-62,31.12.2021,ADULT SOCIAL CARE,5 CARE SERVICES LTD,17/12/2020,755.58,73507-Domiciliary Care,THIRD PARTY PAYMENTS,PRIVATE CONTRACTOR,REVENUE
Walsall Council,http://opendatacommunities.org/id/metropolitan-district-council/walsall,WC121-63,31.12.2021,ADULT SOCIAL CARE,5 CARE SERVICES LTD,17/12/2020,251.93,73507-Domiciliary Care,THIRD PARTY PAYMENTS,PRIVATE CONTRACTOR,REVENUE
Walsall Council,http://opendatacommunities.org/id/metropolitan-district-council/walsall,WC121-64,31.12.2021,ADULT SOCIAL CARE,5 CARE SERVICES LTD,17/12/2020,377.79,73507-Domiciliary Care,THIRD PARTY PAYMENTS,PRIVATE CONTRACTOR,REVENUE
Walsall Council,http://opendatacommunities.org/id/metropolitan-district-council/walsall,WC121-65,31.12.2021,ADULT SOCIAL CARE,5 CARE SERVICES LTD,17/12/2020,485.80,73507-Domiciliary Care,THIRD PARTY PAYMENTS,PRIVATE CONTRACTOR,REVENUE
Walsall Council,http://opendatacommunities.org/id/metropolitan-district-council/walsall,WC121-66,31.12.2021,ADULT SOCIAL CARE,5 CARE SERVICES LTD,17/12/2020,308.40,73507-Domiciliary Care,THIRD PARTY PAYMENTS,PRIVATE CONTRACTOR,REVENUE
Walsall Council,http://opendatacommunities.org/id/metropolitan-district-council/walsall,WC121-67,31.12.2021,ADULT SOCIAL CARE,5 CARE SERVICES LTD,17/12/2020,349.52,73507-Domiciliary Care,THIRD PARTY PAYMENTS,PRIVATE CONTRACTOR,REVENUE
Walsall Council,http://opendatacommunities.org/id/metropolitan-district-council/walsall,WC121-68,31.12.2021,ADULT SOCIAL CARE,5 CARE SERVICES LTD,17/12/2020,539.70,73507-Domiciliary Care,THIRD PARTY PAYMENTS,PRIVATE CONTRACTOR,REVENUE
Walsall Council,http://opendatacommunities.org/id/metropolitan-district-council/walsall,WC121-69,31.12.2021,ADULT SOCIAL CARE,5 CARE SERVICES LTD,17/12/2020,516.57,73507-Domiciliary Care,THIRD PARTY PAYMENTS,PRIVATE CONTRACTOR,REVENUE
Walsall Council,http://opendatacommunities.org/id/metropolitan-district-council/walsall,WC121-70,31.12.2021,ADULT SOCIAL CARE,5 CARE SERVICES LTD,17/12/2020,370.08,73507-Domiciliary Care,THIRD PARTY PAYMENTS,PRIVATE CONTRACTOR,REVENUE
Walsall Council,http://opendatacommunities.org/id/metropolitan-district-council/walsall,WC121-71,31.12.2021,ADULT SOCIAL CARE,5 CARE SERVICES LTD,17/12/2020,377.79,73507-Domiciliary Care,THIRD PARTY PAYMENTS,PRIVATE CONTRACTOR,REVENUE
Walsall Council,http://opendatacommunities.org/id/metropolitan-district-council/walsall,WC121-72,31.12.2021,ADULT SOCIAL CARE,5 CARE SERVICES LTD,17/12/2020,393.21,73507-Domiciliary Care,THIRD PARTY PAYMENTS,PRIVATE CONTRACTOR,REVENUE
Walsall Council,http://opendatacommunities.org/id/metropolitan-district-council/walsall,WC121-73,31.12.2021,ADULT SOCIAL CARE,5 CARE SERVICES LTD,17/12/2020,341.81,73507-Domiciliary Care,THIRD PARTY PAYMENTS,PRIVATE CONTRACTOR,REVENUE
Walsall Council,http://opendatacommunities.org/id/metropolitan-district-council/walsall,WC121-74,31.12.2021,ADULT SOCIAL CARE,5 CARE SERVICES LTD,17/12/2020,755.58,73507-Domiciliary Care,THIRD PARTY PAYMENTS,PRIVATE CONTRACTOR,REVENUE
Walsall Council,http://opendatacommunities.org/id/metropolitan-district-council/walsall,WC121-75,31.12.2021,ADULT SOCIAL CARE,5 CARE SERVICES LTD,17/12/2020,539.70,73507-Domiciliary Care,THIRD PARTY PAYMENTS,PRIVATE CONTRACTOR,REVENUE
Walsall Council,http://opendatacommunities.org/id/metropolitan-district-council/walsall,WC121-76,31.12.2021,ADULT SOCIAL CARE,5 CARE SERVICES LTD,17/12/2020,485.73,73507-Domiciliary Care,THIRD PARTY PAYMENTS,PRIVATE CONTRACTOR,REVENUE
Walsall Council,http://opendatacommunities.org/id/metropolitan-district-council/walsall,WC121-77,31.12.2021,ADULT SOCIAL CARE,5 CARE SERVICES LTD,17/12/2020,485.80,73507-Domiciliary Care,THIRD PARTY PAYMENTS,PRIVATE CONTRACTOR,REVENUE
Walsall Council,http://opendatacommunities.org/id/metropolitan-district-council/walsall,WC121-78,31.12.2021,ADULT SOCIAL CARE,5 CARE SERVICES LTD,17/12/2020,377.79,73507-Domiciliary Care,THIRD PARTY PAYMENTS,PRIVATE CONTRACTOR,REVENUE
Walsall Council,http://opendatacommunities.org/id/metropolitan-district-council/walsall,WC121-79,31.12.2021,ADULT SOCIAL CARE,5 CARE SERVICES LTD,17/12/2020,251.93,73507-Domiciliary Care,THIRD PARTY PAYMENTS,PRIVATE CONTRACTOR,REVENUE
Walsall Council,http://opendatacommunities.org/id/metropolitan-district-council/walsall,WC121-80,31.12.2021,ADULT SOCIAL CARE,5 CARE SERVICES LTD,17/12/2020,308.40,73507-Domiciliary Care,THIRD PARTY PAYMENTS,PRIVATE CONTRACTOR,REVENUE
Walsall Council,http://opendatacommunities.org/id/metropolitan-district-council/walsall,WC121-81,31.12.2021,ADULT SOCIAL CARE,5 CARE SERVICES LTD,17/12/2020,349.52,73507-Domiciliary Care,THIRD PARTY PAYMENTS,PRIVATE CONTRACTOR,REVENUE
Walsall Council,http://opendatacommunities.org/id/metropolitan-district-council/walsall,WC121-82,31.12.2021,ADULT SOCIAL CARE,5 CARE SERVICES LTD,17/12/2020,323.82,73507-Domiciliary Care,THIRD PARTY PAYMENTS,PRIVATE CONTRACTOR,REVENUE
Walsall Council,http://opendatacommunities.org/id/metropolitan-district-council/walsall,WC121-83,31.12.2021,ADULT SOCIAL CARE,5 CARE SERVICES LTD,17/12/2020,516.57,73507-Domiciliary Care,THIRD PARTY PAYMENTS,PRIVATE CONTRACTOR,REVENUE
Walsall Council,http://opendatacommunities.org/id/metropolitan-district-council/walsall,WC121-84,31.12.2021,ADULT SOCIAL CARE,5 CARE SERVICES LTD,17/12/2020,370.08,73507-Domiciliary Care,THIRD PARTY PAYMENTS,PRIVATE CONTRACTOR,REVENUE
Walsall Council,http://opendatacommunities.org/id/metropolitan-district-council/walsall,WC121-85,31.12.2021,ADULT SOCIAL CARE,5 CARE SERVICES LTD,17/12/2020,377.79,73507-Domiciliary Care,THIRD PARTY PAYMENTS,PRIVATE CONTRACTOR,REVENUE
Walsall Council,http://opendatacommunities.org/id/metropolitan-district-council/walsall,WC121-86,31.12.2021,ADULT SOCIAL CARE,5 CARE SERVICES LTD,17/12/2020,308.40,73507-Domiciliary Care,THIRD PARTY PAYMENTS,PRIVATE CONTRACTOR,REVENUE
Walsall Council,http://opendatacommunities.org/id/metropolitan-district-council/walsall,WC121-87,31.12.2021,ADULT SOCIAL CARE,5 CARE SERVICES LTD,17/12/2020,431.76,73507-Domiciliary Care,THIRD PARTY PAYMENTS,PRIVATE CONTRACTOR,REVENUE
Walsall Council,http://opendatacommunities.org/id/metropolitan-district-council/walsall,WC121-88,31.12.2021,ADULT SOCIAL CARE,5 CARE SERVICES LTD,17/12/2020,647.64,73507-Domiciliary Care,THIRD PARTY PAYMENTS,PRIVATE CONTRACTOR,REVENUE
Walsall Council,http://opendatacommunities.org/id/metropolitan-district-council/walsall,WC121-89,31.12.2021,ADULT SOCIAL CARE,5 CARE SERVICES LTD,17/12/2020,323.82,73507-Domiciliary Care,THIRD PARTY PAYMENTS,PRIVATE CONTRACTOR,REVENUE
Walsall Council,http://opendatacommunities.org/id/metropolitan-district-council/walsall,WC121-90,31.12.2021,ADULT SOCIAL CARE,5 CARE SERVICES LTD,17/12/2020,593.67,73507-Domiciliary Care,THIRD PARTY PAYMENTS,PRIVATE CONTRACTOR,REVENUE
Walsall Council,http://opendatacommunities.org/id/metropolitan-district-council/walsall,WC121-91,31.12.2021,ADULT SOCIAL CARE,5 CARE SERVICES LTD,30/12/2020,273.74,73025-Professional Services-Priv Contractor & Other Agencies,THIRD PARTY PAYMENTS,PRIVATE CONTRACTOR,REVENUE
Walsall Council,http://opendatacommunities.org/id/metropolitan-district-council/walsall,WC121-92,31.12.2021,ADULT SOCIAL CARE,5 CARE SERVICES LTD,31/12/2020,539.84,73025-Professional Services-Priv Contractor & Other Agencies,THIRD PARTY PAYMENTS,PRIVATE CONTRACTOR,REVENUE
Walsall Council,http://opendatacommunities.org/id/metropolitan-district-council/walsall,WC121-93,31.12.2021,ADULT SOCIAL CARE,5 CARE SERVICES LTD,31/12/2020,"1,187.34",73025-Professional Services-Priv Contractor & Other Agencies,THIRD PARTY PAYMENTS,PRIVATE CONTRACTOR,REVENUE
Walsall Council,http://opendatacommunities.org/id/metropolitan-district-council/walsall,WC121-94,31.12.2021,ADULT SOCIAL CARE,5 CARE SERVICES LTD,31/12/2020,"2,004.60",73025-Professional Services-Priv Contractor & Other Agencies,THIRD PARTY PAYMENTS,PRIVATE CONTRACTOR,REVENUE
Walsall Council,http://opendatacommunities.org/id/metropolitan-district-council/walsall,WC121-95,31.12.2021,ADULT SOCIAL CARE,5 CARE SERVICES LTD,15/12/2020,"2,220.48",73507-Domiciliary Care,THIRD PARTY PAYMENTS,PRIVATE CONTRACTOR,REVENUE
Walsall Council,http://opendatacommunities.org/id/metropolitan-district-council/walsall,WC121-96,31.12.2021,CHILDRENS,5 CARE SERVICES LTD,31/12/2020,"5,359.20",63000-Professional Fees & Services,SUPPLIES & SERVICES,SERVICES,REVENUE
Walsall Council,http://opendatacommunities.org/id/metropolitan-district-council/walsall,WC121-97,31.12.2021,ADULT SOCIAL CARE,5 CARE SERVICES LTD,31/12/2020,539.84,73025-Professional Services-Priv Contractor & Other Agencies,THIRD PARTY PAYMENTS,PRIVATE CONTRACTOR,REVENUE
Walsall Council,http://opendatacommunities.org/id/metropolitan-district-council/walsall,WC121-98,31.12.2021,ADULT SOCIAL CARE,5 CARE SERVICES LTD,31/12/2020,277.56,73025-Professional Services-Priv Contractor & Other Agencies,THIRD PARTY PAYMENTS,PRIVATE CONTRACTOR,REVENUE
Walsall Council,http://opendatacommunities.org/id/metropolitan-district-council/walsall,WC121-99,31.12.2021,ADULT SOCIAL CARE,5 CARE SERVICES LTD,31/12/2020,447.18,73025-Professional Services-Priv Contractor & Other Agencies,THIRD PARTY PAYMENTS,PRIVATE CONTRACTOR,REVENUE
Walsall Council,http://opendatacommunities.org/id/metropolitan-district-council/walsall,WC121-100,31.12.2021,ADULT SOCIAL CARE,A & A SERVICES WEST MIDLANDS,09/12/2020,430.00,73025-Professional Services-Priv Contractor & Other Agencies,THIRD PARTY PAYMENTS,PRIVATE CONTRACTOR,REVENUE
Walsall Council,http://opendatacommunities.org/id/metropolitan-district-council/walsall,WC121-101,31.12.2021,RESOURCES AND TRANSFORMATION,A D T FIRE AND SECURITY PLC,21/12/2020,297.43,73002-Security-Priv Contractor Fees,THIRD PARTY PAYMENTS,PRIVATE CONTRACTOR,REVENUE
Walsall Council,http://opendatacommunities.org/id/metropolitan-district-council/walsall,WC121-102,31.12.2021,ECONOMY & ENVIRONMENT,A F BLAKEMORE & SON LTD,10/12/2020,608.63,61000-Food & Drink Supplies,SUPPLIES & SERVICES,CATERING,REVENUE
Walsall Council,http://opendatacommunities.org/id/metropolitan-district-council/walsall,WC121-103,31.12.2021,ECONOMY & ENVIRONMENT,AAINA COMMUNITY HUB,07/12/2020,"1,130.30",66500-Grants to Other Orgs,SUPPLIES & SERVICES,GRANTS (EXP) & SUBSCRIPTIONS,REVENUE
Walsall Council,http://opendatacommunities.org/id/metropolitan-district-council/walsall,WC121-104,31.12.2021,CHILDRENS,AAINA COMMUNITY HUB,10/12/2020,"1,500.00",66500-Grants to Other Orgs,SUPPLIES & SERVICES,GRANTS (EXP) & SUBSCRIPTIONS,REVENUE
Walsall Council,http://opendatacommunities.org/id/metropolitan-district-council/walsall,WC121-105,31.12.2021,ADULT SOCIAL CARE,ABBEY COURT NURSING & RESIDEN,18/12/2020,"2,696.00",73503-Nursing EMI,THIRD PARTY PAYMENTS,PRIVATE CONTRACTOR,REVENUE
Walsall Council,http://opendatacommunities.org/id/metropolitan-district-council/walsall,WC121-106,31.12.2021,ADULT SOCIAL CARE,ABBEY COURT NURSING & RESIDEN,18/12/2020,"2,044.00",73500-Residential,THIRD PARTY PAYMENTS,PRIVATE CONTRACTOR,REVENUE
Walsall Council,http://opendatacommunities.org/id/metropolitan-district-council/walsall,WC121-107,31.12.2021,ADULT SOCIAL CARE,ABBEY COURT NURSING & RESIDEN,18/12/2020,"1,318.86",73501-Residential EMI,THIRD PARTY PAYMENTS,PRIVATE CONTRACTOR,REVENUE
Walsall Council,http://opendatacommunities.org/id/metropolitan-district-council/walsall,WC121-108,31.12.2021,ADULT SOCIAL CARE,ABBEY COURT NURSING & RESIDEN,18/12/2020,"2,548.00",73501-Residential EMI,THIRD PARTY PAYMENTS,PRIVATE CONTRACTOR,REVENUE
Walsall Council,http://opendatacommunities.org/id/metropolitan-district-council/walsall,WC121-109,31.12.2021,ADULT SOCIAL CARE,ABBEY COURT NURSING & RESIDEN,18/12/2020,"2,308.00",73501-Residential EMI,THIRD PARTY PAYMENTS,PRIVATE CONTRACTOR,REVENUE
Walsall Council,http://opendatacommunities.org/id/metropolitan-district-council/walsall,WC121-110,31.12.2021,ADULT SOCIAL CARE,ABBEY COURT NURSING & RESIDEN,18/12/2020,"2,308.00",73501-Residential EMI,THIRD PARTY PAYMENTS,PRIVATE CONTRACTOR,REVENUE
Walsall Council,http://opendatacommunities.org/id/metropolitan-district-council/walsall,WC121-111,31.12.2021,ADULT SOCIAL CARE,ABBEY HEALTHCARE HOMES LTD,18/12/2020,"2,372.64",73500-Residential,THIRD PARTY PAYMENTS,PRIVATE CONTRACTOR,REVENUE
Walsall Council,http://opendatacommunities.org/id/metropolitan-district-council/walsall,WC121-112,31.12.2021,ADULT SOCIAL CARE,ABBEY HEALTHCARE HOMES LTD,18/12/2020,"3,102.72",73500-Residential,THIRD PARTY PAYMENTS,PRIVATE CONTRACTOR,REVENUE
Walsall Council,http://opendatacommunities.org/id/metropolitan-district-council/walsall,WC121-113,31.12.2021,ADULT SOCIAL CARE,ABBEY HEALTHCARE HOMES LTD,18/12/2020,"3,102.72",73500-Residential,THIRD PARTY PAYMENTS,PRIVATE CONTRACTOR,REVENUE
Walsall Council,http://opendatacommunities.org/id/metropolitan-district-council/walsall,WC121-114,31.12.2021,ADULT SOCIAL CARE,ABBEY HEALTHCARE HOMES LTD,18/12/2020,"3,516.40",73500-Residential,THIRD PARTY PAYMENTS,PRIVATE CONTRACTOR,REVENUE
Walsall Council,http://opendatacommunities.org/id/metropolitan-district-council/walsall,WC121-115,31.12.2021,ECONOMY & ENVIRONMENT,ABLEWELL ADVICE SERVICES,08/12/2020,"1,000.00",66500-Grants to Other Orgs,SUPPLIES & SERVICES,GRANTS (EXP) & SUBSCRIPTIONS,REVENUE
Walsall Council,http://opendatacommunities.org/id/metropolitan-district-council/walsall,WC121-116,31.12.2021,ECONOMY & ENVIRONMENT,ABLEWELL ADVICE SERVICES,11/12/2020,"1,000.00",66500-Grants to Other Orgs,SUPPLIES & SERVICES,GRANTS (EXP) & SUBSCRIPTIONS,REVENUE
Walsall Council,http://opendatacommunities.org/id/metropolitan-district-council/walsall,WC121-117,31.12.2021,CHILDRENS,ABLEWELL CARS,02/12/2020,"1,248.00",52000-Hire of Vehicle with Driver,TRANSPORT,DIRECT TRANSPORT COSTS,REVENUE
Walsall Council,http://opendatacommunities.org/id/metropolitan-district-council/walsall,WC121-118,31.12.2021,CHILDRENS,ABLEWELL CARS,02/12/2020,738.00,52000-Hire of Vehicle with Driver,TRANSPORT,DIRECT TRANSPORT COSTS,REVENUE
Walsall Council,http://opendatacommunities.org/id/metropolitan-district-council/walsall,WC121-119,31.12.2021,CHILDRENS,ABLEWELL CARS,02/12/2020,855.00,52000-Hire of Vehicle with Driver,TRANSPORT,DIRECT TRANSPORT COSTS,REVENUE
Walsall Council,http://opendatacommunities.org/id/metropolitan-district-council/walsall,WC121-120,31.12.2021,CHILDRENS,ABLEWELL CARS,02/12/2020,"1,307.64",52000-Hire of Vehicle with Driver,TRANSPORT,DIRECT TRANSPORT COSTS,REVENUE
Walsall Council,http://opendatacommunities.org/id/metropolitan-district-council/walsall,WC121-121,31.12.2021,CHILDRENS,ABLEWELL CARS,02/12/2020,792.00,52000-Hire of Vehicle with Driver,TRANSPORT,DIRECT TRANSPORT COSTS,REVENUE
Walsall Council,http://opendatacommunities.org/id/metropolitan-district-council/walsall,WC121-122,31.12.2021,CHILDRENS,ABLEWELL CARS,02/12/2020,"1,752.00",52000-Hire of Vehicle with Driver,TRANSPORT,DIRECT TRANSPORT COSTS,REVENUE
Walsall Council,http://opendatacommunities.org/id/metropolitan-district-council/walsall,WC121-123,31.12.2021,CHILDRENS,ABLEWELL CARS,02/12/2020,992.70,52000-Hire of Vehicle with Driver,TRANSPORT,DIRECT TRANSPORT COSTS,REVENUE
Walsall Council,http://opendatacommunities.org/id/metropolitan-district-council/walsall,WC121-124,31.12.2021,CHILDRENS,ABLEWELL CARS,23/12/2020,934.80,52000-Hire of Vehicle with Driver,TRANSPORT,DIRECT TRANSPORT COSTS,REVENUE
Walsall Council,http://opendatacommunities.org/id/metropolitan-district-council/walsall,WC121-125,31.12.2021,CHILDRENS,ABLEWELL CARS,23/12/2020,"1,788.28",52000-Hire of Vehicle with Driver,TRANSPORT,DIRECT TRANSPORT COSTS,REVENUE
Walsall Council,http://opendatacommunities.org/id/metropolitan-district-council/walsall,WC121-126,31.12.2021,CHILDRENS,ABLEWELL CARS,23/12/2020,"1,883.00",52000-Hire of Vehicle with Driver,TRANSPORT,DIRECT TRANSPORT COSTS,REVENUE
Walsall Council,http://opendatacommunities.org/id/metropolitan-district-council/walsall,WC121-127,31.12.2021,CHILDRENS,ABLEWELL CARS,23/12/2020,"1,140.00",52000-Hire of Vehicle with Driver,TRANSPORT,DIRECT TRANSPORT COSTS,REVENUE
Walsall Council,http://opendatacommunities.org/id/metropolitan-district-council/walsall,WC121-128,31.12.2021,CHILDRENS,ABLEWELL CARS,23/12/2020,"1,056.00",52000-Hire of Vehicle with Driver,TRANSPORT,DIRECT TRANSPORT COSTS,REVENUE
Walsall Council,http://opendatacommunities.org/id/metropolitan-district-council/walsall,WC121-129,31.12.2021,CHILDRENS,ABLEWELL CARS,23/12/2020,"2,336.00",52000-Hire of Vehicle with Driver,TRANSPORT,DIRECT TRANSPORT COSTS,REVENUE
Walsall Council,http://opendatacommunities.org/id/metropolitan-district-council/walsall,WC121-130,31.12.2021,CHILDRENS,ABLEWELL CARS,23/12/2020,"1,323.60",52000-Hire of Vehicle with Driver,TRANSPORT,DIRECT TRANSPORT COSTS,REVENUE
Walsall Council,http://opendatacommunities.org/id/metropolitan-district-council/walsall,WC121-131,31.12.2021,CHILDRENS,ABS TAXIS (ALDRIDGE),02/12/2020,"1,579.35",52000-Hire of Vehicle with Driver,TRANSPORT,DIRECT TRANSPORT COSTS,REVENUE
Walsall Council,http://opendatacommunities.org/id/metropolitan-district-council/walsall,WC121-132,31.12.2021,CHILDRENS,ABS TAXIS (ALDRIDGE),02/12/2020,958.16,52000-Hire of Vehicle with Driver,TRANSPORT,DIRECT TRANSPORT COSTS,REVENUE
Walsall Council,http://opendatacommunities.org/id/metropolitan-district-council/walsall,WC121-133,31.12.2021,CHILDRENS,ABS TAXIS (ALDRIDGE),02/12/2020,735.00,52000-Hire of Vehicle with Driver,TRANSPORT,DIRECT TRANSPORT COSTS,REVENUE
Walsall Council,http://opendatacommunities.org/id/metropolitan-district-council/walsall,WC121-134,31.12.2021,CHILDRENS,ABS TAXIS (ALDRIDGE),02/12/2020,"1,455.30",52000-Hire of Vehicle with Driver,TRANSPORT,DIRECT TRANSPORT COSTS,REVENUE
Walsall Council,http://opendatacommunities.org/id/metropolitan-district-council/walsall,WC121-135,31.12.2021,CHILDRENS,ABS TAXIS (ALDRIDGE),23/12/2020,"2,105.80",52000-Hire of Vehicle with Driver,TRANSPORT,DIRECT TRANSPORT COSTS,REVENUE
Walsall Council,http://opendatacommunities.org/id/metropolitan-district-council/walsall,WC121-136,31.12.2021,CHILDRENS,ABS TAXIS (ALDRIDGE),23/12/2020,"1,368.80",52000-Hire of Vehicle with Driver,TRANSPORT,DIRECT TRANSPORT COSTS,REVENUE
Walsall Council,http://opendatacommunities.org/id/metropolitan-district-council/walsall,WC121-137,31.12.2021,CHILDRENS,ABS TAXIS (ALDRIDGE),23/12/2020,931.00,52000-Hire of Vehicle with Driver,TRANSPORT,DIRECT TRANSPORT COSTS,REVENUE
Walsall Council,http://opendatacommunities.org/id/metropolitan-district-council/walsall,WC121-138,31.12.2021,CHILDRENS,ABS TAXIS (ALDRIDGE),23/12/2020,"2,079.00",52000-Hire of Vehicle with Driver,TRANSPORT,DIRECT TRANSPORT COSTS,REVENUE
Walsall Council,http://opendatacommunities.org/id/metropolitan-district-council/walsall,WC121-139,31.12.2021,CHILDRENS,ABU BAKR NURSERY,14/12/2020,"1,436.40",66505-Other-Grants to Other Orgs,SUPPLIES & SERVICES,GRANTS (EXP) & SUBSCRIPTIONS,REVENUE
Walsall Council,http://opendatacommunities.org/id/metropolitan-district-council/walsall,WC121-140,31.12.2021,CHILDRENS,ACCALIA CARE SERVICES LTD,23/12/2020,"19,980.00",74036-External Residential Care-Oth Agency Provision,THIRD PARTY PAYMENTS,PRIVATE CONTRACTOR,REVENUE
Walsall Council,http://opendatacommunities.org/id/metropolitan-district-council/walsall,WC121-141,31.12.2021,CHILDRENS,ACCALIA CARE SERVICES LTD,23/12/2020,"19,980.00",74036-External Residential Care-Oth Agency Provision,THIRD PARTY PAYMENTS,PRIVATE CONTRACTOR,REVENUE
Walsall Council,http://opendatacommunities.org/id/metropolitan-district-council/walsall,WC121-142,31.12.2021,CHILDRENS,ACCOMPANIED CARE,21/12/2020,"-3,272.70",76010-Accommodation and Related Costs-Assistance to S/S Clients,TRANSFER PAYMENTS,ADULT SOCIAL SERVICES CLIENT,REVENUE
Walsall Council,http://opendatacommunities.org/id/metropolitan-district-council/walsall,WC121-143,31.12.2021,CHILDRENS,ACCOMPANIED CARE,21/12/2020,"3,272.70",76010-Accommodation and Related Costs-Assistance to S/S Clients,TRANSFER PAYMENTS,ADULT SOCIAL SERVICES CLIENT,REVENUE
Walsall Council,http://opendatacommunities.org/id/metropolitan-district-council/walsall,WC121-144,31.12.2021,CHILDRENS,ACCOMPANIED CARE,21/12/2020,"3,572.70",76010-Accommodation and Related Costs-Assistance to S/S Clients,TRANSFER PAYMENTS,ADULT SOCIAL SERVICES CLIENT,REVENUE
Walsall Council,http://opendatacommunities.org/id/metropolitan-district-council/walsall,WC121-145,31.12.2021,CHILDRENS,ACCOMPANIED CARE,22/12/2020,"1,460.65",76010-Accommodation and Related Costs-Assistance to S/S Clients,TRANSFER PAYMENTS,ADULT SOCIAL SERVICES CLIENT,REVENUE
Walsall Council,http://opendatacommunities.org/id/metropolitan-district-council/walsall,WC121-146,31.12.2021,CHILDRENS,ACCOMPANIED CARE,31/12/2020,"3,760.17",76010-Accommodation and Related Costs-Assistance to S/S Clients,TRANSFER PAYMENTS,ADULT SOCIAL SERVICES CLIENT,REVENUE
Walsall Council,http://opendatacommunities.org/id/metropolitan-district-council/walsall,WC121-147,31.12.2021,ADULT SOCIAL CARE,ACCOMPLISH GROUP LTD,18/12/2020,"7,861.04",73500-Residential,THIRD PARTY PAYMENTS,PRIVATE CONTRACTOR,REVENUE
Walsall Council,http://opendatacommunities.org/id/metropolitan-district-council/walsall,WC121-148,31.12.2021,ADULT SOCIAL CARE,ACCORD - AGE MATTERS,04/12/2020,"-1,097.14",76423-Direct Payments Support,TRANSFER PAYMENTS,ADULT SOCIAL SERVICES CLIENT,REVENUE
Walsall Council,http://opendatacommunities.org/id/metropolitan-district-council/walsall,WC121-149,31.12.2021,ADULT SOCIAL CARE,ACCORD - AGE MATTERS,04/12/2020,-270.86,76423-Direct Payments Support,TRANSFER PAYMENTS,ADULT SOCIAL SERVICES CLIENT,REVENUE
Walsall Council,http://opendatacommunities.org/id/metropolitan-district-council/walsall,WC121-150,31.12.2021,ADULT SOCIAL CARE,ACCORD HOUSING ASSOCIATION LIMITED - HOBS MEADOW,18/12/2020,"4,659.64",73500-Residential,THIRD PARTY PAYMENTS,PRIVATE CONTRACTOR,REVENUE
Walsall Council,http://opendatacommunities.org/id/metropolitan-district-council/walsall,WC121-151,31.12.2021,ADULT SOCIAL CARE,ACCORD HOUSING ASSOCIATION LIMITED - HOBS MEADOW,18/12/2020,"4,659.64",73500-Residential,THIRD PARTY PAYMENTS,PRIVATE CONTRACTOR,REVENUE
Walsall Council,http://opendatacommunities.org/id/metropolitan-district-council/walsall,WC121-152,31.12.2021,ADULT SOCIAL CARE,ACCORD HOUSING ASSOCIATION LIMITED - HOBS MEADOW,18/12/2020,"4,659.64",73500-Residential,THIRD PARTY PAYMENTS,PRIVATE CONTRACTOR,REVENUE
Walsall Council,http://opendatacommunities.org/id/metropolitan-district-council/walsall,WC121-153,31.12.2021,ADULT SOCIAL CARE,ACCORD HOUSING ASSOCIATION LIMITED - HOBS MEADOW,18/12/2020,"4,659.64",73500-Residential,THIRD PARTY PAYMENTS,PRIVATE CONTRACTOR,REVENUE
Walsall Council,http://opendatacommunities.org/id/metropolitan-district-council/walsall,WC121-154,31.12.2021,ADULT SOCIAL CARE,ACCORD HOUSING ASSOCIATION LTD#135,15/12/2020,"2,851.40",73025-Professional Services-Priv Contractor & Other Agencies,THIRD PARTY PAYMENTS,PRIVATE CONTRACTOR,REVENUE
Walsall Council,http://opendatacommunities.org/id/metropolitan-district-council/walsall,WC121-155,31.12.2021,ADULT SOCIAL CARE,ACCORD HOUSING ASSOCIATION LTD#135,15/12/2020,"5,987.94",73025-Professional Services-Priv Contractor & Other Agencies,THIRD PARTY PAYMENTS,PRIVATE CONTRACTOR,REVENUE
Walsall Council,http://opendatacommunities.org/id/metropolitan-district-council/walsall,WC121-156,31.12.2021,ADULT SOCIAL CARE,ACCORD HOUSING ASSOCIATION LTD#135,15/12/2020,"3,564.25",73025-Professional Services-Priv Contractor & Other Agencies,THIRD PARTY PAYMENTS,PRIVATE CONTRACTOR,REVENUE
Walsall Council,http://opendatacommunities.org/id/metropolitan-district-council/walsall,WC121-157,31.12.2021,ADULT SOCIAL CARE,ACCORD HOUSING ASSOCIATION LTD#135,18/12/2020,"6,503.40",73500-Residential,THIRD PARTY PAYMENTS,PRIVATE CONTRACTOR,REVENUE
Walsall Council,http://opendatacommunities.org/id/metropolitan-district-council/walsall,WC121-158,31.12.2021,ADULT SOCIAL CARE,ACCORD HOUSING ASSOCIATION LTD#135,18/12/2020,"5,807.56",73500-Residential,THIRD PARTY PAYMENTS,PRIVATE CONTRACTOR,REVENUE
Walsall Council,http://opendatacommunities.org/id/metropolitan-district-council/walsall,WC121-159,31.12.2021,ADULT SOCIAL CARE,ACCORD HOUSING ASSOCIATION LTD#135,18/12/2020,"6,503.40",73500-Residential,THIRD PARTY PAYMENTS,PRIVATE CONTRACTOR,REVENUE
Walsall Council,http://opendatacommunities.org/id/metropolitan-district-council/walsall,WC121-160,31.12.2021,ADULT SOCIAL CARE,ACCORD HOUSING ASSOCIATION LTD#135,15/12/2020,431.76,73507-Domiciliary Care,THIRD PARTY PAYMENTS,PRIVATE CONTRACTOR,REVENUE
Walsall Council,http://opendatacommunities.org/id/metropolitan-district-council/walsall,WC121-161,31.12.2021,ADULT SOCIAL CARE,ACCORD HOUSING ASSOCIATION LTD#135,15/12/2020,316.11,73507-Domiciliary Care,THIRD PARTY PAYMENTS,PRIVATE CONTRACTOR,REVENUE
Walsall Council,http://opendatacommunities.org/id/metropolitan-district-council/walsall,WC121-162,31.12.2021,ADULT SOCIAL CARE,ACCORD HOUSING ASSOCIATION LTD#135,15/12/2020,683.62,73507-Domiciliary Care,THIRD PARTY PAYMENTS,PRIVATE CONTRACTOR,REVENUE
Walsall Council,http://opendatacommunities.org/id/metropolitan-district-council/walsall,WC121-163,31.12.2021,ADULT SOCIAL CARE,ACCORD HOUSING ASSOCIATION LTD#135,15/12/2020,953.60,73507-Domiciliary Care,THIRD PARTY PAYMENTS,PRIVATE CONTRACTOR,REVENUE
Walsall Council,http://opendatacommunities.org/id/metropolitan-district-council/walsall,WC121-164,31.12.2021,ADULT SOCIAL CARE,ACCORD HOUSING ASSOCIATION LTD#135,15/12/2020,868.80,73507-Domiciliary Care,THIRD PARTY PAYMENTS,PRIVATE CONTRACTOR,REVENUE
Walsall Council,http://opendatacommunities.org/id/metropolitan-district-council/walsall,WC121-165,31.12.2021,ADULT SOCIAL CARE,ACCORD HOUSING ASSOCIATION LTD#135,15/12/2020,334.12,73507-Domiciliary Care,THIRD PARTY PAYMENTS,PRIVATE CONTRACTOR,REVENUE
Walsall Council,http://opendatacommunities.org/id/metropolitan-district-council/walsall,WC121-166,31.12.2021,ADULT SOCIAL CARE,ACCORD HOUSING ASSOCIATION LTD#135,15/12/2020,909.92,73507-Domiciliary Care,THIRD PARTY PAYMENTS,PRIVATE CONTRACTOR,REVENUE
Walsall Council,http://opendatacommunities.org/id/metropolitan-district-council/walsall,WC121-167,31.12.2021,ADULT SOCIAL CARE,ACCORD HOUSING ASSOCIATION LTD#135,15/12/2020,488.36,73507-Domiciliary Care,THIRD PARTY PAYMENTS,PRIVATE CONTRACTOR,REVENUE
Walsall Council,http://opendatacommunities.org/id/metropolitan-district-council/walsall,WC121-168,31.12.2021,ADULT SOCIAL CARE,ACCORD HOUSING ASSOCIATION LTD#135,15/12/2020,"1,069.12",73507-Domiciliary Care,THIRD PARTY PAYMENTS,PRIVATE CONTRACTOR,REVENUE
Walsall Council,http://opendatacommunities.org/id/metropolitan-district-council/walsall,WC121-169,31.12.2021,ADULT SOCIAL CARE,ACCORD HOUSING ASSOCIATION LTD#135,15/12/2020,"1,079.40",73507-Domiciliary Care,THIRD PARTY PAYMENTS,PRIVATE CONTRACTOR,REVENUE
Walsall Council,http://opendatacommunities.org/id/metropolitan-district-council/walsall,WC121-170,31.12.2021,ADULT SOCIAL CARE,ACCORD HOUSING ASSOCIATION LTD#135,15/12/2020,349.52,73507-Domiciliary Care,THIRD PARTY PAYMENTS,PRIVATE CONTRACTOR,REVENUE
Walsall Council,http://opendatacommunities.org/id/metropolitan-district-council/walsall,WC121-171,31.12.2021,ADULT SOCIAL CARE,ACCORD HOUSING ASSOCIATION LTD#135,15/12/2020,262.14,73507-Domiciliary Care,THIRD PARTY PAYMENTS,PRIVATE CONTRACTOR,REVENUE
Walsall Council,http://opendatacommunities.org/id/metropolitan-district-council/walsall,WC121-172,31.12.2021,ADULT SOCIAL CARE,ACCORD HOUSING ASSOCIATION LTD#135,15/12/2020,791.58,73507-Domiciliary Care,THIRD PARTY PAYMENTS,PRIVATE CONTRACTOR,REVENUE
Walsall Council,http://opendatacommunities.org/id/metropolitan-district-council/walsall,WC121-173,31.12.2021,ADULT SOCIAL CARE,ACCORD HOUSING ASSOCIATION LTD#135,15/12/2020,"1,677.19",73507-Domiciliary Care,THIRD PARTY PAYMENTS,PRIVATE CONTRACTOR,REVENUE
Walsall Council,http://opendatacommunities.org/id/metropolitan-district-council/walsall,WC121-174,31.12.2021,ADULT SOCIAL CARE,ACCORD HOUSING ASSOCIATION LTD#135,15/12/2020,"1,987.91",73507-Domiciliary Care,THIRD PARTY PAYMENTS,PRIVATE CONTRACTOR,REVENUE
Walsall Council,http://opendatacommunities.org/id/metropolitan-district-council/walsall,WC121-175,31.12.2021,ADULT SOCIAL CARE,ACCORD HOUSING ASSOCIATION LTD#135,15/12/2020,344.38,73508-Community Supported Living/Supported Accommodation,THIRD PARTY PAYMENTS,PRIVATE CONTRACTOR,REVENUE
Walsall Council,http://opendatacommunities.org/id/metropolitan-district-council/walsall,WC121-176,31.12.2021,ADULT SOCIAL CARE,ACCORD HOUSING ASSOCIATION LTD#135,15/12/2020,"1,465.04",73507-Domiciliary Care,THIRD PARTY PAYMENTS,PRIVATE CONTRACTOR,REVENUE
Walsall Council,http://opendatacommunities.org/id/metropolitan-district-council/walsall,WC121-177,31.12.2021,ADULT SOCIAL CARE,ACCORD HOUSING ASSOCIATION LTD#135,15/12/2020,375.22,73507-Domiciliary Care,THIRD PARTY PAYMENTS,PRIVATE CONTRACTOR,REVENUE
Walsall Council,http://opendatacommunities.org/id/metropolitan-district-council/walsall,WC121-178,31.12.2021,ADULT SOCIAL CARE,ACCORD HOUSING ASSOCIATION LTD#135,15/12/2020,992.16,73507-Domiciliary Care,THIRD PARTY PAYMENTS,PRIVATE CONTRACTOR,REVENUE
Walsall Council,http://opendatacommunities.org/id/metropolitan-district-council/walsall,WC121-179,31.12.2021,ADULT SOCIAL CARE,ACCORD HOUSING ASSOCIATION LTD#135,15/12/2020,832.80,73507-Domiciliary Care,THIRD PARTY PAYMENTS,PRIVATE CONTRACTOR,REVENUE
Walsall Council,http://opendatacommunities.org/id/metropolitan-district-council/walsall,WC121-180,31.12.2021,ADULT SOCIAL CARE,ACCORD HOUSING ASSOCIATION LTD#135,15/12/2020,"1,439.20",73507-Domiciliary Care,THIRD PARTY PAYMENTS,PRIVATE CONTRACTOR,REVENUE
Walsall Council,http://opendatacommunities.org/id/metropolitan-district-council/walsall,WC121-181,31.12.2021,CHILDRENS,ACCORD HOUSING ASSOCIATION LTD#135,10/12/2020,"-1,335.50",76010-Accommodation and Related Costs-Assistance to S/S Clients,TRANSFER PAYMENTS,ADULT SOCIAL SERVICES CLIENT,REVENUE
Walsall Council,http://opendatacommunities.org/id/metropolitan-district-council/walsall,WC121-182,31.12.2021,CHILDRENS,ACCORD HOUSING ASSOCIATION LTD#135,10/12/2020,"1,335.50",76010-Accommodation and Related Costs-Assistance to S/S Clients,TRANSFER PAYMENTS,ADULT SOCIAL SERVICES CLIENT,REVENUE
Walsall Council,http://opendatacommunities.org/id/metropolitan-district-council/walsall,WC121-183,31.12.2021,ADULT SOCIAL CARE,ACE CARE AGENCY,15/12/2020,"1,995.98",73025-Professional Services-Priv Contractor & Other Agencies,THIRD PARTY PAYMENTS,PRIVATE CONTRACTOR,REVENUE
Walsall Council,http://opendatacommunities.org/id/metropolitan-district-council/walsall,WC121-184,31.12.2021,CHILDRENS,ACE CARS & MINIBUSES LTD,02/12/2020,"1,177.50",52000-Hire of Vehicle with Driver,TRANSPORT,DIRECT TRANSPORT COSTS,REVENUE
Walsall Council,http://opendatacommunities.org/id/metropolitan-district-council/walsall,WC121-185,31.12.2021,CHILDRENS,ACE CARS & MINIBUSES LTD,02/12/2020,"1,170.00",52000-Hire of Vehicle with Driver,TRANSPORT,DIRECT TRANSPORT COSTS,REVENUE
Walsall Council,http://opendatacommunities.org/id/metropolitan-district-council/walsall,WC121-186,31.12.2021,CHILDRENS,ACE CARS & MINIBUSES LTD,02/12/2020,"1,638.75",52000-Hire of Vehicle with Driver,TRANSPORT,DIRECT TRANSPORT COSTS,REVENUE
Walsall Council,http://opendatacommunities.org/id/metropolitan-district-council/walsall,WC121-187,31.12.2021,CHILDRENS,ACE CARS & MINIBUSES LTD,02/12/2020,"1,638.75",52000-Hire of Vehicle with Driver,TRANSPORT,DIRECT TRANSPORT COSTS,REVENUE
Walsall Council,http://opendatacommunities.org/id/metropolitan-district-council/walsall,WC121-188,31.12.2021,CHILDRENS,ACE CARS & MINIBUSES LTD,02/12/2020,"1,650.00",52000-Hire of Vehicle with Driver,TRANSPORT,DIRECT TRANSPORT COSTS,REVENUE
Walsall Council,http://opendatacommunities.org/id/metropolitan-district-council/walsall,WC121-189,31.12.2021,CHILDRENS,ACE CARS & MINIBUSES LTD,02/12/2020,"2,070.00",52000-Hire of Vehicle with Driver,TRANSPORT,DIRECT TRANSPORT COSTS,REVENUE
Walsall Council,http://opendatacommunities.org/id/metropolitan-district-council/walsall,WC121-190,31.12.2021,CHILDRENS,ACE CARS & MINIBUSES LTD,02/12/2020,"1,552.50",52000-Hire of Vehicle with Driver,TRANSPORT,DIRECT TRANSPORT COSTS,REVENUE
Walsall Council,http://opendatacommunities.org/id/metropolitan-district-council/walsall,WC121-191,31.12.2021,CHILDRENS,ACE CARS & MINIBUSES LTD,02/12/2020,"1,897.50",52000-Hire of Vehicle with Driver,TRANSPORT,DIRECT TRANSPORT COSTS,REVENUE
Walsall Council,http://opendatacommunities.org/id/metropolitan-district-council/walsall,WC121-192,31.12.2021,CHILDRENS,ACE CARS & MINIBUSES LTD,02/12/2020,"2,062.50",52000-Hire of Vehicle with Driver,TRANSPORT,DIRECT TRANSPORT COSTS,REVENUE
Walsall Council,http://opendatacommunities.org/id/metropolitan-district-council/walsall,WC121-193,31.12.2021,CHILDRENS,ACE CARS & MINIBUSES LTD,02/12/2020,"2,812.50",52000-Hire of Vehicle with Driver,TRANSPORT,DIRECT TRANSPORT COSTS,REVENUE
Walsall Council,http://opendatacommunities.org/id/metropolitan-district-council/walsall,WC121-194,31.12.2021,CHILDRENS,ACE CARS & MINIBUSES LTD,02/12/2020,"1,923.75",52000-Hire of Vehicle with Driver,TRANSPORT,DIRECT TRANSPORT COSTS,REVENUE
Walsall Council,http://opendatacommunities.org/id/metropolitan-district-council/walsall,WC121-195,31.12.2021,CHILDRENS,ACE CARS & MINIBUSES LTD,02/12/2020,"2,317.50",52000-Hire of Vehicle with Driver,TRANSPORT,DIRECT TRANSPORT COSTS,REVENUE
Walsall Council,http://opendatacommunities.org/id/metropolitan-district-council/walsall,WC121-196,31.12.2021,CHILDRENS,ACE CARS & MINIBUSES LTD,02/12/2020,982.50,52000-Hire of Vehicle with Driver,TRANSPORT,DIRECT TRANSPORT COSTS,REVENUE
Walsall Council,http://opendatacommunities.org/id/metropolitan-district-council/walsall,WC121-197,31.12.2021,CHILDRENS,ACE CARS & MINIBUSES LTD,02/12/2020,"1,650.00",52000-Hire of Vehicle with Driver,TRANSPORT,DIRECT TRANSPORT COSTS,REVENUE
Walsall Council,http://opendatacommunities.org/id/metropolitan-district-council/walsall,WC121-198,31.12.2021,CHILDRENS,ACE CARS & MINIBUSES LTD,02/12/2020,"1,725.00",52000-Hire of Vehicle with Driver,TRANSPORT,DIRECT TRANSPORT COSTS,REVENUE
Walsall Council,http://opendatacommunities.org/id/metropolitan-district-council/walsall,WC121-199,31.12.2021,CHILDRENS,ACE CARS & MINIBUSES LTD,02/12/2020,"1,897.50",52000-Hire of Vehicle with Driver,TRANSPORT,DIRECT TRANSPORT COSTS,REVENUE
Walsall Council,http://opendatacommunities.org/id/metropolitan-district-council/walsall,WC121-200,31.12.2021,CHILDRENS,ACE CARS & MINIBUSES LTD,02/12/2020,"1,320.00",52000-Hire of Vehicle with Driver,TRANSPORT,DIRECT TRANSPORT COSTS,REVENUE
Walsall Council,http://opendatacommunities.org/id/metropolitan-district-council/walsall,WC121-201,31.12.2021,CHILDRENS,ACE CARS & MINIBUSES LTD,02/12/2020,"1,552.50",52000-Hire of Vehicle with Driver,TRANSPORT,DIRECT TRANSPORT COSTS,REVENUE
Walsall Council,http://opendatacommunities.org/id/metropolitan-district-council/walsall,WC121-202,31.12.2021,CHILDRENS,ACE CARS & MINIBUSES LTD,02/12/2020,"2,316.00",52000-Hire of Vehicle with Driver,TRANSPORT,DIRECT TRANSPORT COSTS,REVENUE
Walsall Council,http://opendatacommunities.org/id/metropolitan-district-council/walsall,WC121-203,31.12.2021,CHILDRENS,ACE CARS & MINIBUSES LTD,02/12/2020,975.00,52000-Hire of Vehicle with Driver,TRANSPORT,DIRECT TRANSPORT COSTS,REVENUE
Walsall Council,http://opendatacommunities.org/id/metropolitan-district-council/walsall,WC121-204,31.12.2021,CHILDRENS,ACE CARS & MINIBUSES LTD,02/12/2020,"2,917.50",52000-Hire of Vehicle with Driver,TRANSPORT,DIRECT TRANSPORT COSTS,REVENUE
Walsall Council,http://opendatacommunities.org/id/metropolitan-district-council/walsall,WC121-205,31.12.2021,CHILDRENS,ACE CARS & MINIBUSES LTD,02/12/2020,750.00,52000-Hire of Vehicle with Driver,TRANSPORT,DIRECT TRANSPORT COSTS,REVENUE
Walsall Council,http://opendatacommunities.org/id/metropolitan-district-council/walsall,WC121-206,31.12.2021,CHILDRENS,ACE CARS & MINIBUSES LTD,02/12/2020,"2,482.50",52000-Hire of Vehicle with Driver,TRANSPORT,DIRECT TRANSPORT COSTS,REVENUE
Walsall Council,http://opendatacommunities.org/id/metropolitan-district-council/walsall,WC121-207,31.12.2021,CHILDRENS,ACE CARS & MINIBUSES LTD,02/12/2020,960.00,52000-Hire of Vehicle with Driver,TRANSPORT,DIRECT TRANSPORT COSTS,REVENUE
Walsall Council,http://opendatacommunities.org/id/metropolitan-district-council/walsall,WC121-208,31.12.2021,CHILDRENS,ACE CARS & MINIBUSES LTD,02/12/2020,"1,380.00",52000-Hire of Vehicle with Driver,TRANSPORT,DIRECT TRANSPORT COSTS,REVENUE
Walsall Council,http://opendatacommunities.org/id/metropolitan-district-council/walsall,WC121-209,31.12.2021,CHILDRENS,ACE CARS & MINIBUSES LTD,02/12/2020,"2,317.50",52000-Hire of Vehicle with Driver,TRANSPORT,DIRECT TRANSPORT COSTS,REVENUE
Walsall Council,http://opendatacommunities.org/id/metropolitan-district-council/walsall,WC121-210,31.12.2021,CHILDRENS,ACE CARS & MINIBUSES LTD,02/12/2020,"2,242.50",52000-Hire of Vehicle with Driver,TRANSPORT,DIRECT TRANSPORT COSTS,REVENUE
Walsall Council,http://opendatacommunities.org/id/metropolitan-district-council/walsall,WC121-211,31.12.2021,CHILDRENS,ACE CARS & MINIBUSES LTD,02/12/2020,360.00,52000-Hire of Vehicle with Driver,TRANSPORT,DIRECT TRANSPORT COSTS,REVENUE
Walsall Council,http://opendatacommunities.org/id/metropolitan-district-council/walsall,WC121-212,31.12.2021,CHILDRENS,ACE CARS & MINIBUSES LTD,02/12/2020,660.00,52000-Hire of Vehicle with Driver,TRANSPORT,DIRECT TRANSPORT COSTS,REVENUE
Walsall Council,http://opendatacommunities.org/id/metropolitan-district-council/walsall,WC121-213,31.12.2021,CHILDRENS,ACE CARS & MINIBUSES LTD,23/12/2020,"2,185.00",52000-Hire of Vehicle with Driver,TRANSPORT,DIRECT TRANSPORT COSTS,REVENUE
Walsall Council,http://opendatacommunities.org/id/metropolitan-district-council/walsall,WC121-214,31.12.2021,CHILDRENS,ACE CARS & MINIBUSES LTD,23/12/2020,"2,185.00",52000-Hire of Vehicle with Driver,TRANSPORT,DIRECT TRANSPORT COSTS,REVENUE
Walsall Council,http://opendatacommunities.org/id/metropolitan-district-council/walsall,WC121-215,31.12.2021,CHILDRENS,ACE CARS & MINIBUSES LTD,23/12/2020,"2,200.00",52000-Hire of Vehicle with Driver,TRANSPORT,DIRECT TRANSPORT COSTS,REVENUE
Walsall Council,http://opendatacommunities.org/id/metropolitan-district-council/walsall,WC121-216,31.12.2021,CHILDRENS,ACE CARS & MINIBUSES LTD,23/12/2020,"2,760.00",52000-Hire of Vehicle with Driver,TRANSPORT,DIRECT TRANSPORT COSTS,REVENUE
Walsall Council,http://opendatacommunities.org/id/metropolitan-district-council/walsall,WC121-217,31.12.2021,CHILDRENS,ACE CARS & MINIBUSES LTD,23/12/2020,"2,070.00",52000-Hire of Vehicle with Driver,TRANSPORT,DIRECT TRANSPORT COSTS,REVENUE
Walsall Council,http://opendatacommunities.org/id/metropolitan-district-council/walsall,WC121-218,31.12.2021,CHILDRENS,ACE CARS & MINIBUSES LTD,23/12/2020,"2,530.00",52000-Hire of Vehicle with Driver,TRANSPORT,DIRECT TRANSPORT COSTS,REVENUE
Walsall Council,http://opendatacommunities.org/id/metropolitan-district-council/walsall,WC121-219,31.12.2021,CHILDRENS,ACE CARS & MINIBUSES LTD,23/12/2020,"2,750.00",52000-Hire of Vehicle with Driver,TRANSPORT,DIRECT TRANSPORT COSTS,REVENUE
Walsall Council,http://opendatacommunities.org/id/metropolitan-district-council/walsall,WC121-220,31.12.2021,CHILDRENS,ACE CARS & MINIBUSES LTD,23/12/2020,"2,300.00",52000-Hire of Vehicle with Driver,TRANSPORT,DIRECT TRANSPORT COSTS,REVENUE
Walsall Council,http://opendatacommunities.org/id/metropolitan-district-council/walsall,WC121-221,31.12.2021,CHILDRENS,ACE CARS & MINIBUSES LTD,23/12/2020,"2,530.00",52000-Hire of Vehicle with Driver,TRANSPORT,DIRECT TRANSPORT COSTS,REVENUE
Walsall Council,http://opendatacommunities.org/id/metropolitan-district-council/walsall,WC121-222,31.12.2021,CHILDRENS,ACE CARS & MINIBUSES LTD,23/12/2020,"1,760.00",52000-Hire of Vehicle with Driver,TRANSPORT,DIRECT TRANSPORT COSTS,REVENUE
Walsall Council,http://opendatacommunities.org/id/metropolitan-district-council/walsall,WC121-223,31.12.2021,CHILDRENS,ACE CARS & MINIBUSES LTD,23/12/2020,"1,570.00",52000-Hire of Vehicle with Driver,TRANSPORT,DIRECT TRANSPORT COSTS,REVENUE
Walsall Council,http://opendatacommunities.org/id/metropolitan-district-council/walsall,WC121-224,31.12.2021,CHILDRENS,ACE CARS & MINIBUSES LTD,23/12/2020,"1,560.00",52000-Hire of Vehicle with Driver,TRANSPORT,DIRECT TRANSPORT COSTS,REVENUE
Walsall Council,http://opendatacommunities.org/id/metropolitan-district-council/walsall,WC121-225,31.12.2021,CHILDRENS,ACE CARS & MINIBUSES LTD,23/12/2020,"3,750.00",52000-Hire of Vehicle with Driver,TRANSPORT,DIRECT TRANSPORT COSTS,REVENUE
Walsall Council,http://opendatacommunities.org/id/metropolitan-district-council/walsall,WC121-226,31.12.2021,CHILDRENS,ACE CARS & MINIBUSES LTD,23/12/2020,"2,565.00",52000-Hire of Vehicle with Driver,TRANSPORT,DIRECT TRANSPORT COSTS,REVENUE
Walsall Council,http://opendatacommunities.org/id/metropolitan-district-council/walsall,WC121-227,31.12.2021,CHILDRENS,ACE CARS & MINIBUSES LTD,23/12/2020,"3,090.00",52000-Hire of Vehicle with Driver,TRANSPORT,DIRECT TRANSPORT COSTS,REVENUE
Walsall Council,http://opendatacommunities.org/id/metropolitan-district-council/walsall,WC121-228,31.12.2021,CHILDRENS,ACE CARS & MINIBUSES LTD,23/12/2020,"1,310.00",52000-Hire of Vehicle with Driver,TRANSPORT,DIRECT TRANSPORT COSTS,REVENUE
Walsall Council,http://opendatacommunities.org/id/metropolitan-district-council/walsall,WC121-229,31.12.2021,CHILDRENS,ACE CARS & MINIBUSES LTD,23/12/2020,"2,200.00",52000-Hire of Vehicle with Driver,TRANSPORT,DIRECT TRANSPORT COSTS,REVENUE
Walsall Council,http://opendatacommunities.org/id/metropolitan-district-council/walsall,WC121-230,31.12.2021,CHILDRENS,ACE CARS & MINIBUSES LTD,23/12/2020,"3,890.00",52000-Hire of Vehicle with Driver,TRANSPORT,DIRECT TRANSPORT COSTS,REVENUE
Walsall Council,http://opendatacommunities.org/id/metropolitan-district-council/walsall,WC121-231,31.12.2021,CHILDRENS,ACE CARS & MINIBUSES LTD,23/12/2020,"1,000.00",52000-Hire of Vehicle with Driver,TRANSPORT,DIRECT TRANSPORT COSTS,REVENUE
Walsall Council,http://opendatacommunities.org/id/metropolitan-district-council/walsall,WC121-232,31.12.2021,CHILDRENS,ACE CARS & MINIBUSES LTD,23/12/2020,"3,310.00",52000-Hire of Vehicle with Driver,TRANSPORT,DIRECT TRANSPORT COSTS,REVENUE
Walsall Council,http://opendatacommunities.org/id/metropolitan-district-council/walsall,WC121-233,31.12.2021,CHILDRENS,ACE CARS & MINIBUSES LTD,23/12/2020,"1,280.00",52000-Hire of Vehicle with Driver,TRANSPORT,DIRECT TRANSPORT COSTS,REVENUE
Walsall Council,http://opendatacommunities.org/id/metropolitan-district-council/walsall,WC121-234,31.12.2021,CHILDRENS,ACE CARS & MINIBUSES LTD,23/12/2020,"2,070.00",52000-Hire of Vehicle with Driver,TRANSPORT,DIRECT TRANSPORT COSTS,REVENUE
Walsall Council,http://opendatacommunities.org/id/metropolitan-district-council/walsall,WC121-235,31.12.2021,CHILDRENS,ACE CARS & MINIBUSES LTD,23/12/2020,"3,088.00",52000-Hire of Vehicle with Driver,TRANSPORT,DIRECT TRANSPORT COSTS,REVENUE
Walsall Council,http://opendatacommunities.org/id/metropolitan-district-council/walsall,WC121-236,31.12.2021,CHILDRENS,ACE CARS & MINIBUSES LTD,23/12/2020,"1,300.00",52000-Hire of Vehicle with Driver,TRANSPORT,DIRECT TRANSPORT COSTS,REVENUE
Walsall Council,http://opendatacommunities.org/id/metropolitan-district-council/walsall,WC121-237,31.12.2021,CHILDRENS,ACE CARS & MINIBUSES LTD,23/12/2020,"1,840.00",52000-Hire of Vehicle with Driver,TRANSPORT,DIRECT TRANSPORT COSTS,REVENUE
Walsall Council,http://opendatacommunities.org/id/metropolitan-district-council/walsall,WC121-238,31.12.2021,CHILDRENS,ACE CARS & MINIBUSES LTD,23/12/2020,"3,090.00",52000-Hire of Vehicle with Driver,TRANSPORT,DIRECT TRANSPORT COSTS,REVENUE
Walsall Council,http://opendatacommunities.org/id/metropolitan-district-council/walsall,WC121-239,31.12.2021,CHILDRENS,ACE CARS & MINIBUSES LTD,23/12/2020,"2,990.00",52000-Hire of Vehicle with Driver,TRANSPORT,DIRECT TRANSPORT COSTS,REVENUE
Walsall Council,http://opendatacommunities.org/id/metropolitan-district-council/walsall,WC121-240,31.12.2021,CHILDRENS,ACE CARS & MINIBUSES LTD,23/12/2020,480.00,52000-Hire of Vehicle with Driver,TRANSPORT,DIRECT TRANSPORT COSTS,REVENUE
Walsall Council,http://opendatacommunities.org/id/metropolitan-district-council/walsall,WC121-241,31.12.2021,CHILDRENS,ACE CARS & MINIBUSES LTD,23/12/2020,880.00,52000-Hire of Vehicle with Driver,TRANSPORT,DIRECT TRANSPORT COSTS,REVENUE
Walsall Council,http://opendatacommunities.org/id/metropolitan-district-council/walsall,WC121-242,31.12.2021,ADULT SOCIAL CARE,ACEPAY LTD (COTTAGE NUR HOME),18/12/2020,"2,044.00",73500-Residential,THIRD PARTY PAYMENTS,PRIVATE CONTRACTOR,REVENUE
Walsall Council,http://opendatacommunities.org/id/metropolitan-district-council/walsall,WC121-243,31.12.2021,ADULT SOCIAL CARE,ACEPAY LTD (COTTAGE NUR HOME),18/12/2020,"2,396.00",73502-Nursing,THIRD PARTY PAYMENTS,PRIVATE CONTRACTOR,REVENUE
Walsall Council,http://opendatacommunities.org/id/metropolitan-district-council/walsall,WC121-244,31.12.2021,ADULT SOCIAL CARE,ACEPAY LTD (COTTAGE NUR HOME),18/12/2020,"2,396.00",73502-Nursing,THIRD PARTY PAYMENTS,PRIVATE CONTRACTOR,REVENUE
Walsall Council,http://opendatacommunities.org/id/metropolitan-district-council/walsall,WC121-245,31.12.2021,ADULT SOCIAL CARE,ACEPAY LTD (COTTAGE NUR HOME),18/12/2020,"2,396.00",73502-Nursing,THIRD PARTY PAYMENTS,PRIVATE CONTRACTOR,REVENUE
Walsall Council,http://opendatacommunities.org/id/metropolitan-district-council/walsall,WC121-246,31.12.2021,ADULT SOCIAL CARE,ACEPAY LTD (COTTAGE NUR HOME),18/12/2020,"2,396.00",73502-Nursing,THIRD PARTY PAYMENTS,PRIVATE CONTRACTOR,REVENUE
Walsall Council,http://opendatacommunities.org/id/metropolitan-district-council/walsall,WC121-247,31.12.2021,ADULT SOCIAL CARE,ACEPAY LTD (COTTAGE NUR HOME),18/12/2020,"2,396.00",73502-Nursing,THIRD PARTY PAYMENTS,PRIVATE CONTRACTOR,REVENUE
Walsall Council,http://opendatacommunities.org/id/metropolitan-district-council/walsall,WC121-248,31.12.2021,ADULT SOCIAL CARE,ACEPAY LTD (COTTAGE NUR HOME),18/12/2020,"2,396.00",73502-Nursing,THIRD PARTY PAYMENTS,PRIVATE CONTRACTOR,REVENUE
Walsall Council,http://opendatacommunities.org/id/metropolitan-district-council/walsall,WC121-249,31.12.2021,ADULT SOCIAL CARE,ACEPAY LTD (COTTAGE NUR HOME),18/12/2020,"4,161.00",73504-Short Stay Residential,THIRD PARTY PAYMENTS,PRIVATE CONTRACTOR,REVENUE
Walsall Council,http://opendatacommunities.org/id/metropolitan-district-council/walsall,WC121-250,31.12.2021,ADULT SOCIAL CARE,ACEPAY LTD (COTTAGE NUR HOME),18/12/2020,"2,396.00",73502-Nursing,THIRD PARTY PAYMENTS,PRIVATE CONTRACTOR,REVENUE
Walsall Council,http://opendatacommunities.org/id/metropolitan-district-council/walsall,WC121-251,31.12.2021,ADULT SOCIAL CARE,ACEPAY LTD (COTTAGE NUR HOME),18/12/2020,"2,396.00",73502-Nursing,THIRD PARTY PAYMENTS,PRIVATE CONTRACTOR,REVENUE
Walsall Council,http://opendatacommunities.org/id/metropolitan-district-council/walsall,WC121-252,31.12.2021,ADULT SOCIAL CARE,ACEPAY LTD (COTTAGE NUR HOME),18/12/2020,"2,396.00",73502-Nursing,THIRD PARTY PAYMENTS,PRIVATE CONTRACTOR,REVENUE
Walsall Council,http://opendatacommunities.org/id/metropolitan-district-council/walsall,WC121-253,31.12.2021,ADULT SOCIAL CARE,ACEPAY LTD (COTTAGE NUR HOME),18/12/2020,"2,396.00",73502-Nursing,THIRD PARTY PAYMENTS,PRIVATE CONTRACTOR,REVENUE
Walsall Council,http://opendatacommunities.org/id/metropolitan-district-council/walsall,WC121-254,31.12.2021,ADULT SOCIAL CARE,ACEPAY LTD (COTTAGE NUR HOME),18/12/2020,"2,596.00",73502-Nursing,THIRD PARTY PAYMENTS,PRIVATE CONTRACTOR,REVENUE
Walsall Council,http://opendatacommunities.org/id/metropolitan-district-council/walsall,WC121-255,31.12.2021,ADULT SOCIAL CARE,ACEPAY LTD (COTTAGE NUR HOME),18/12/2020,"2,308.00",73501-Residential EMI,THIRD PARTY PAYMENTS,PRIVATE CONTRACTOR,REVENUE
Walsall Council,http://opendatacommunities.org/id/metropolitan-district-council/walsall,WC121-256,31.12.2021,ADULT SOCIAL CARE,ACEPAY LTD (COTTAGE NUR HOME),18/12/2020,"2,396.00",73502-Nursing,THIRD PARTY PAYMENTS,PRIVATE CONTRACTOR,REVENUE
Walsall Council,http://opendatacommunities.org/id/metropolitan-district-council/walsall,WC121-257,31.12.2021,ADULT SOCIAL CARE,ACEPAY LTD (COTTAGE NUR HOME),18/12/2020,"2,308.00",73501-Residential EMI,THIRD PARTY PAYMENTS,PRIVATE CONTRACTOR,REVENUE
Walsall Council,http://opendatacommunities.org/id/metropolitan-district-council/walsall,WC121-258,31.12.2021,ADULT SOCIAL CARE,ACEPAY LTD (COTTAGE NUR HOME),18/12/2020,"2,396.00",73502-Nursing,THIRD PARTY PAYMENTS,PRIVATE CONTRACTOR,REVENUE
Walsall Council,http://opendatacommunities.org/id/metropolitan-district-council/walsall,WC121-259,31.12.2021,ADULT SOCIAL CARE,ACEPAY LTD (COTTAGE NUR HOME),18/12/2020,"2,396.00",73502-Nursing,THIRD PARTY PAYMENTS,PRIVATE CONTRACTOR,REVENUE
Walsall Council,http://opendatacommunities.org/id/metropolitan-district-council/walsall,WC121-260,31.12.2021,ADULT SOCIAL CARE,ACEPAY LTD (COTTAGE NUR HOME),18/12/2020,"2,396.00",73502-Nursing,THIRD PARTY PAYMENTS,PRIVATE CONTRACTOR,REVENUE
Walsall Council,http://opendatacommunities.org/id/metropolitan-district-council/walsall,WC121-261,31.12.2021,ADULT SOCIAL CARE,ACEPAY LTD (COTTAGE NUR HOME),18/12/2020,"2,396.00",73502-Nursing,THIRD PARTY PAYMENTS,PRIVATE CONTRACTOR,REVENUE
Walsall Council,http://opendatacommunities.org/id/metropolitan-district-council/walsall,WC121-262,31.12.2021,CHILDRENS,ACORN FOSTERING SERVICES LTD,23/12/2020,"3,380.00",74037-Independent Foster Care-Oth Agency Provision,THIRD PARTY PAYMENTS,PRIVATE CONTRACTOR,REVENUE
Walsall Council,http://opendatacommunities.org/id/metropolitan-district-council/walsall,WC121-263,31.12.2021,CHILDRENS,ACPAS LIMITED,16/12/2020,842.40,63000-Professional Fees & Services,SUPPLIES & SERVICES,SERVICES,REVENUE
Walsall Council,http://opendatacommunities.org/id/metropolitan-district-council/walsall,WC121-264,31.12.2021,CHILDRENS,ACTIVE CARE SOLUTIONS LTD,23/12/2020,"2,596.36",74037-Independent Foster Care-Oth Agency Provision,THIRD PARTY PAYMENTS,PRIVATE CONTRACTOR,REVENUE
Walsall Council,http://opendatacommunities.org/id/metropolitan-district-council/walsall,WC121-265,31.12.2021,CHILDRENS,ACTIVE CARE SOLUTIONS LTD,23/12/2020,"1,009.13",74037-Independent Foster Care-Oth Agency Provision,THIRD PARTY PAYMENTS,PRIVATE CONTRACTOR,REVENUE
Walsall Council,http://opendatacommunities.org/id/metropolitan-district-council/walsall,WC121-266,31.12.2021,ECONOMY & ENVIRONMENT,ADMIRAL SELF STORAGE LTD,10/12/2020,"1,877.14",63000-Professional Fees & Services,SUPPLIES & SERVICES,SERVICES,REVENUE
Walsall Council,http://opendatacommunities.org/id/metropolitan-district-council/walsall,WC121-267,31.12.2021,ADULT SOCIAL CARE,ADVANCE HEALTH CARE (UK) LTD,04/12/2020,462.60,73507-Domiciliary Care,THIRD PARTY PAYMENTS,PRIVATE CONTRACTOR,REVENUE
Walsall Council,http://opendatacommunities.org/id/metropolitan-district-council/walsall,WC121-268,31.12.2021,ADULT SOCIAL CARE,ADVANCE HEALTH CARE (UK) LTD,04/12/2020,524.28,73507-Domiciliary Care,THIRD PARTY PAYMENTS,PRIVATE CONTRACTOR,REVENUE
Walsall Council,http://opendatacommunities.org/id/metropolitan-district-council/walsall,WC121-269,31.12.2021,ADULT SOCIAL CARE,ADVANCE HEALTH CARE (UK) LTD,04/12/2020,-986.88,73507-Domiciliary Care,THIRD PARTY PAYMENTS,PRIVATE CONTRACTOR,REVENUE
Walsall Council,http://opendatacommunities.org/id/metropolitan-district-council/walsall,WC121-270,31.12.2021,ADULT SOCIAL CARE,ADVANCE HEALTH CARE (UK) LTD,04/12/2020,439.47,73507-Domiciliary Care,THIRD PARTY PAYMENTS,PRIVATE CONTRACTOR,REVENUE
Walsall Council,http://opendatacommunities.org/id/metropolitan-district-council/walsall,WC121-271,31.12.2021,ADULT SOCIAL CARE,ADVANCE HEALTH CARE (UK) LTD,04/12/2020,593.88,73507-Domiciliary Care,THIRD PARTY PAYMENTS,PRIVATE CONTRACTOR,REVENUE
Walsall Council,http://opendatacommunities.org/id/metropolitan-district-council/walsall,WC121-272,31.12.2021,ADULT SOCIAL CARE,ADVANCE HEALTH CARE (UK) LTD,04/12/2020,485.73,73507-Domiciliary Care,THIRD PARTY PAYMENTS,PRIVATE CONTRACTOR,REVENUE
Walsall Council,http://opendatacommunities.org/id/metropolitan-district-council/walsall,WC121-273,31.12.2021,ADULT SOCIAL CARE,ADVANCE HEALTH CARE (UK) LTD,04/12/2020,863.52,73507-Domiciliary Care,THIRD PARTY PAYMENTS,PRIVATE CONTRACTOR,REVENUE
Walsall Council,http://opendatacommunities.org/id/metropolitan-district-council/walsall,WC121-274,31.12.2021,ADULT SOCIAL CARE,ADVANCE HEALTH CARE (UK) LTD,04/12/2020,323.82,73507-Domiciliary Care,THIRD PARTY PAYMENTS,PRIVATE CONTRACTOR,REVENUE
Walsall Council,http://opendatacommunities.org/id/metropolitan-district-council/walsall,WC121-275,31.12.2021,ADULT SOCIAL CARE,ADVANCE HEALTH CARE (UK) LTD,04/12/2020,377.79,73507-Domiciliary Care,THIRD PARTY PAYMENTS,PRIVATE CONTRACTOR,REVENUE
Walsall Council,http://opendatacommunities.org/id/metropolitan-district-council/walsall,WC121-276,31.12.2021,ADULT SOCIAL CARE,ADVANCE HEALTH CARE (UK) LTD,04/12/2020,323.82,73507-Domiciliary Care,THIRD PARTY PAYMENTS,PRIVATE CONTRACTOR,REVENUE
Walsall Council,http://opendatacommunities.org/id/metropolitan-district-council/walsall,WC121-277,31.12.2021,ADULT SOCIAL CARE,ADVANCE HEALTH CARE (UK) LTD,04/12/2020,701.61,73507-Domiciliary Care,THIRD PARTY PAYMENTS,PRIVATE CONTRACTOR,REVENUE
Walsall Council,http://opendatacommunities.org/id/metropolitan-district-council/walsall,WC121-278,31.12.2021,ADULT SOCIAL CARE,ADVANCE HEALTH CARE (UK) LTD,04/12/2020,485.73,73507-Domiciliary Care,THIRD PARTY PAYMENTS,PRIVATE CONTRACTOR,REVENUE
Walsall Council,http://opendatacommunities.org/id/metropolitan-district-council/walsall,WC121-279,31.12.2021,ADULT SOCIAL CARE,ADVANCE HEALTH CARE (UK) LTD,04/12/2020,431.76,73507-Domiciliary Care,THIRD PARTY PAYMENTS,PRIVATE CONTRACTOR,REVENUE
Walsall Council,http://opendatacommunities.org/id/metropolitan-district-council/walsall,WC121-280,31.12.2021,ADULT SOCIAL CARE,ADVANCE HEALTH CARE (UK) LTD,04/12/2020,740.16,73507-Domiciliary Care,THIRD PARTY PAYMENTS,PRIVATE CONTRACTOR,REVENUE
Walsall Council,http://opendatacommunities.org/id/metropolitan-district-council/walsall,WC121-281,31.12.2021,ADULT SOCIAL CARE,ADVANCE HEALTH CARE (UK) LTD,04/12/2020,485.73,73507-Domiciliary Care,THIRD PARTY PAYMENTS,PRIVATE CONTRACTOR,REVENUE
Walsall Council,http://opendatacommunities.org/id/metropolitan-district-council/walsall,WC121-282,31.12.2021,ADULT SOCIAL CARE,ADVANCE HEALTH CARE (UK) LTD,04/12/2020,485.73,73507-Domiciliary Care,THIRD PARTY PAYMENTS,PRIVATE CONTRACTOR,REVENUE
Walsall Council,http://opendatacommunities.org/id/metropolitan-district-council/walsall,WC121-283,31.12.2021,ADULT SOCIAL CARE,ADVANCE HEALTH CARE (UK) LTD,04/12/2020,824.97,73507-Domiciliary Care,THIRD PARTY PAYMENTS,PRIVATE CONTRACTOR,REVENUE
Walsall Council,http://opendatacommunities.org/id/metropolitan-district-council/walsall,WC121-284,31.12.2021,ADULT SOCIAL CARE,ADVANCE HEALTH CARE (UK) LTD,04/12/2020,485.73,73507-Domiciliary Care,THIRD PARTY PAYMENTS,PRIVATE CONTRACTOR,REVENUE
Walsall Council,http://opendatacommunities.org/id/metropolitan-district-council/walsall,WC121-285,31.12.2021,ADULT SOCIAL CARE,ADVANCE HEALTH CARE (UK) LTD,04/12/2020,"-4,070.88",73507-Domiciliary Care,THIRD PARTY PAYMENTS,PRIVATE CONTRACTOR,REVENUE
Walsall Council,http://opendatacommunities.org/id/metropolitan-district-council/walsall,WC121-286,31.12.2021,ADULT SOCIAL CARE,ADVANCE HEALTH CARE (UK) LTD,04/12/2020,485.73,73507-Domiciliary Care,THIRD PARTY PAYMENTS,PRIVATE CONTRACTOR,REVENUE
Walsall Council,http://opendatacommunities.org/id/metropolitan-district-council/walsall,WC121-287,31.12.2021,ADULT SOCIAL CARE,ADVANCE HEALTH CARE (UK) LTD,04/12/2020,431.76,73507-Domiciliary Care,THIRD PARTY PAYMENTS,PRIVATE CONTRACTOR,REVENUE
Walsall Council,http://opendatacommunities.org/id/metropolitan-district-council/walsall,WC121-288,31.12.2021,ADULT SOCIAL CARE,ADVANCE HEALTH CARE (UK) LTD,04/12/2020,539.70,73507-Domiciliary Care,THIRD PARTY PAYMENTS,PRIVATE CONTRACTOR,REVENUE
Walsall Council,http://opendatacommunities.org/id/metropolitan-district-council/walsall,WC121-289,31.12.2021,ADULT SOCIAL CARE,ADVANCE HEALTH CARE (UK) LTD,04/12/2020,431.76,73507-Domiciliary Care,THIRD PARTY PAYMENTS,PRIVATE CONTRACTOR,REVENUE
Walsall Council,http://opendatacommunities.org/id/metropolitan-district-council/walsall,WC121-290,31.12.2021,ADULT SOCIAL CARE,ADVANCE HEALTH CARE (UK) LTD,04/12/2020,323.82,73507-Domiciliary Care,THIRD PARTY PAYMENTS,PRIVATE CONTRACTOR,REVENUE
Walsall Council,http://opendatacommunities.org/id/metropolitan-district-council/walsall,WC121-291,31.12.2021,ADULT SOCIAL CARE,ADVANCE HEALTH CARE (UK) LTD,04/12/2020,755.58,73507-Domiciliary Care,THIRD PARTY PAYMENTS,PRIVATE CONTRACTOR,REVENUE
Walsall Council,http://opendatacommunities.org/id/metropolitan-district-council/walsall,WC121-292,31.12.2021,ADULT SOCIAL CARE,ADVANCE HEALTH CARE (UK) LTD,04/12/2020,470.31,73507-Domiciliary Care,THIRD PARTY PAYMENTS,PRIVATE CONTRACTOR,REVENUE
Walsall Council,http://opendatacommunities.org/id/metropolitan-district-council/walsall,WC121-293,31.12.2021,ADULT SOCIAL CARE,ADVANCE HEALTH CARE (UK) LTD,04/12/2020,431.76,73507-Domiciliary Care,THIRD PARTY PAYMENTS,PRIVATE CONTRACTOR,REVENUE
Walsall Council,http://opendatacommunities.org/id/metropolitan-district-council/walsall,WC121-294,31.12.2021,ADULT SOCIAL CARE,ADVANCE HEALTH CARE (UK) LTD,04/12/2020,570.54,73507-Domiciliary Care,THIRD PARTY PAYMENTS,PRIVATE CONTRACTOR,REVENUE
Walsall Council,http://opendatacommunities.org/id/metropolitan-district-council/walsall,WC121-295,31.12.2021,ADULT SOCIAL CARE,ADVANCE HEALTH CARE (UK) LTD,04/12/2020,431.76,73507-Domiciliary Care,THIRD PARTY PAYMENTS,PRIVATE CONTRACTOR,REVENUE
Walsall Council,http://opendatacommunities.org/id/metropolitan-district-council/walsall,WC121-296,31.12.2021,ADULT SOCIAL CARE,ADVANCE HEALTH CARE (UK) LTD,04/12/2020,485.73,73507-Domiciliary Care,THIRD PARTY PAYMENTS,PRIVATE CONTRACTOR,REVENUE
Walsall Council,http://opendatacommunities.org/id/metropolitan-district-council/walsall,WC121-297,31.12.2021,ADULT SOCIAL CARE,ADVANCE HEALTH CARE (UK) LTD,04/12/2020,485.73,73507-Domiciliary Care,THIRD PARTY PAYMENTS,PRIVATE CONTRACTOR,REVENUE
Walsall Council,http://opendatacommunities.org/id/metropolitan-district-council/walsall,WC121-298,31.12.2021,ADULT SOCIAL CARE,ADVANCE HEALTH CARE (UK) LTD,04/12/2020,359.80,73507-Domiciliary Care,THIRD PARTY PAYMENTS,PRIVATE CONTRACTOR,REVENUE
Walsall Council,http://opendatacommunities.org/id/metropolitan-district-council/walsall,WC121-299,31.12.2021,ADULT SOCIAL CARE,ADVANCE HEALTH CARE (UK) LTD,04/12/2020,431.76,73507-Domiciliary Care,THIRD PARTY PAYMENTS,PRIVATE CONTRACTOR,REVENUE
Walsall Council,http://opendatacommunities.org/id/metropolitan-district-council/walsall,WC121-300,31.12.2021,ADULT SOCIAL CARE,ADVANCE HEALTH CARE (UK) LTD,04/12/2020,485.80,73507-Domiciliary Care,THIRD PARTY PAYMENTS,PRIVATE CONTRACTOR,REVENUE
Walsall Council,http://opendatacommunities.org/id/metropolitan-district-council/walsall,WC121-301,31.12.2021,ADULT SOCIAL CARE,ADVANCE HEALTH CARE (UK) LTD,04/12/2020,501.15,73507-Domiciliary Care,THIRD PARTY PAYMENTS,PRIVATE CONTRACTOR,REVENUE
Walsall Council,http://opendatacommunities.org/id/metropolitan-district-council/walsall,WC121-302,31.12.2021,ADULT SOCIAL CARE,ADVANCE HEALTH CARE (UK) LTD,04/12/2020,431.76,73507-Domiciliary Care,THIRD PARTY PAYMENTS,PRIVATE CONTRACTOR,REVENUE
Walsall Council,http://opendatacommunities.org/id/metropolitan-district-council/walsall,WC121-303,31.12.2021,ADULT SOCIAL CARE,ADVANCE HEALTH CARE (UK) LTD,04/12/2020,-308.40,73507-Domiciliary Care,THIRD PARTY PAYMENTS,PRIVATE CONTRACTOR,REVENUE
Walsall Council,http://opendatacommunities.org/id/metropolitan-district-council/walsall,WC121-304,31.12.2021,ADULT SOCIAL CARE,ADVANCE HEALTH CARE (UK) LTD,04/12/2020,359.80,73507-Domiciliary Care,THIRD PARTY PAYMENTS,PRIVATE CONTRACTOR,REVENUE
Walsall Council,http://opendatacommunities.org/id/metropolitan-district-council/walsall,WC121-305,31.12.2021,ADULT SOCIAL CARE,ADVANCE HEALTH CARE (UK) LTD,04/12/2020,377.79,73507-Domiciliary Care,THIRD PARTY PAYMENTS,PRIVATE CONTRACTOR,REVENUE
Walsall Council,http://opendatacommunities.org/id/metropolitan-district-council/walsall,WC121-306,31.12.2021,ADULT SOCIAL CARE,ADVANCE HEALTH CARE (UK) LTD,04/12/2020,377.79,73507-Domiciliary Care,THIRD PARTY PAYMENTS,PRIVATE CONTRACTOR,REVENUE
Walsall Council,http://opendatacommunities.org/id/metropolitan-district-council/walsall,WC121-307,31.12.2021,ADULT SOCIAL CARE,ADVANCE HEALTH CARE (UK) LTD,04/12/2020,431.76,73507-Domiciliary Care,THIRD PARTY PAYMENTS,PRIVATE CONTRACTOR,REVENUE
Walsall Council,http://opendatacommunities.org/id/metropolitan-district-council/walsall,WC121-308,31.12.2021,ADULT SOCIAL CARE,ADVANCE HEALTH CARE (UK) LTD,04/12/2020,485.73,73507-Domiciliary Care,THIRD PARTY PAYMENTS,PRIVATE CONTRACTOR,REVENUE
Walsall Council,http://opendatacommunities.org/id/metropolitan-district-council/walsall,WC121-309,31.12.2021,ADULT SOCIAL CARE,ADVANCE HEALTH CARE (UK) LTD,04/12/2020,431.76,73507-Domiciliary Care,THIRD PARTY PAYMENTS,PRIVATE CONTRACTOR,REVENUE
Walsall Council,http://opendatacommunities.org/id/metropolitan-district-council/walsall,WC121-310,31.12.2021,ADULT SOCIAL CARE,ADVANCE HEALTH CARE (UK) LTD,04/12/2020,485.73,73507-Domiciliary Care,THIRD PARTY PAYMENTS,PRIVATE CONTRACTOR,REVENUE
Walsall Council,http://opendatacommunities.org/id/metropolitan-district-council/walsall,WC121-311,31.12.2021,ADULT SOCIAL CARE,ADVANCE HEALTH CARE (UK) LTD,04/12/2020,485.73,73507-Domiciliary Care,THIRD PARTY PAYMENTS,PRIVATE CONTRACTOR,REVENUE
Walsall Council,http://opendatacommunities.org/id/metropolitan-district-council/walsall,WC121-312,31.12.2021,ADULT SOCIAL CARE,ADVANCE HEALTH CARE (UK) LTD,04/12/2020,439.47,73507-Domiciliary Care,THIRD PARTY PAYMENTS,PRIVATE CONTRACTOR,REVENUE
Walsall Council,http://opendatacommunities.org/id/metropolitan-district-council/walsall,WC121-313,31.12.2021,ADULT SOCIAL CARE,ADVANCE HEALTH CARE (UK) LTD,04/12/2020,593.88,73507-Domiciliary Care,THIRD PARTY PAYMENTS,PRIVATE CONTRACTOR,REVENUE
Walsall Council,http://opendatacommunities.org/id/metropolitan-district-council/walsall,WC121-314,31.12.2021,ADULT SOCIAL CARE,ADVANCE HEALTH CARE (UK) LTD,04/12/2020,485.73,73507-Domiciliary Care,THIRD PARTY PAYMENTS,PRIVATE CONTRACTOR,REVENUE
Walsall Council,http://opendatacommunities.org/id/metropolitan-district-council/walsall,WC121-315,31.12.2021,ADULT SOCIAL CARE,ADVANCE HEALTH CARE (UK) LTD,04/12/2020,863.52,73507-Domiciliary Care,THIRD PARTY PAYMENTS,PRIVATE CONTRACTOR,REVENUE
Walsall Council,http://opendatacommunities.org/id/metropolitan-district-council/walsall,WC121-316,31.12.2021,ADULT SOCIAL CARE,ADVANCE HEALTH CARE (UK) LTD,04/12/2020,323.82,73507-Domiciliary Care,THIRD PARTY PAYMENTS,PRIVATE CONTRACTOR,REVENUE
Walsall Council,http://opendatacommunities.org/id/metropolitan-district-council/walsall,WC121-317,31.12.2021,ADULT SOCIAL CARE,ADVANCE HEALTH CARE (UK) LTD,04/12/2020,377.79,73507-Domiciliary Care,THIRD PARTY PAYMENTS,PRIVATE CONTRACTOR,REVENUE
Walsall Council,http://opendatacommunities.org/id/metropolitan-district-council/walsall,WC121-318,31.12.2021,ADULT SOCIAL CARE,ADVANCE HEALTH CARE (UK) LTD,04/12/2020,485.73,73507-Domiciliary Care,THIRD PARTY PAYMENTS,PRIVATE CONTRACTOR,REVENUE
Walsall Council,http://opendatacommunities.org/id/metropolitan-district-council/walsall,WC121-319,31.12.2021,ADULT SOCIAL CARE,ADVANCE HEALTH CARE (UK) LTD,04/12/2020,824.97,73507-Domiciliary Care,THIRD PARTY PAYMENTS,PRIVATE CONTRACTOR,REVENUE
Walsall Council,http://opendatacommunities.org/id/metropolitan-district-council/walsall,WC121-320,31.12.2021,ADULT SOCIAL CARE,ADVANCE HEALTH CARE (UK) LTD,04/12/2020,485.73,73507-Domiciliary Care,THIRD PARTY PAYMENTS,PRIVATE CONTRACTOR,REVENUE
Walsall Council,http://opendatacommunities.org/id/metropolitan-district-council/walsall,WC121-321,31.12.2021,ADULT SOCIAL CARE,ADVANCE HEALTH CARE (UK) LTD,04/12/2020,485.73,73507-Domiciliary Care,THIRD PARTY PAYMENTS,PRIVATE CONTRACTOR,REVENUE
Walsall Council,http://opendatacommunities.org/id/metropolitan-district-council/walsall,WC121-322,31.12.2021,ADULT SOCIAL CARE,ADVANCE HEALTH CARE (UK) LTD,04/12/2020,377.79,73507-Domiciliary Care,THIRD PARTY PAYMENTS,PRIVATE CONTRACTOR,REVENUE
Walsall Council,http://opendatacommunities.org/id/metropolitan-district-council/walsall,WC121-323,31.12.2021,ADULT SOCIAL CARE,ADVANCE HEALTH CARE (UK) LTD,04/12/2020,485.73,73507-Domiciliary Care,THIRD PARTY PAYMENTS,PRIVATE CONTRACTOR,REVENUE
Walsall Council,http://opendatacommunities.org/id/metropolitan-district-council/walsall,WC121-324,31.12.2021,ADULT SOCIAL CARE,ADVANCE HEALTH CARE (UK) LTD,04/12/2020,431.76,73507-Domiciliary Care,THIRD PARTY PAYMENTS,PRIVATE CONTRACTOR,REVENUE
Walsall Council,http://opendatacommunities.org/id/metropolitan-district-council/walsall,WC121-325,31.12.2021,ADULT SOCIAL CARE,ADVANCE HEALTH CARE (UK) LTD,04/12/2020,539.70,73507-Domiciliary Care,THIRD PARTY PAYMENTS,PRIVATE CONTRACTOR,REVENUE
Walsall Council,http://opendatacommunities.org/id/metropolitan-district-council/walsall,WC121-326,31.12.2021,ADULT SOCIAL CARE,ADVANCE HEALTH CARE (UK) LTD,04/12/2020,431.76,73507-Domiciliary Care,THIRD PARTY PAYMENTS,PRIVATE CONTRACTOR,REVENUE
Walsall Council,http://opendatacommunities.org/id/metropolitan-district-council/walsall,WC121-327,31.12.2021,ADULT SOCIAL CARE,ADVANCE HEALTH CARE (UK) LTD,04/12/2020,323.82,73507-Domiciliary Care,THIRD PARTY PAYMENTS,PRIVATE CONTRACTOR,REVENUE
Walsall Council,http://opendatacommunities.org/id/metropolitan-district-council/walsall,WC121-328,31.12.2021,ADULT SOCIAL CARE,ADVANCE HEALTH CARE (UK) LTD,04/12/2020,431.76,73507-Domiciliary Care,THIRD PARTY PAYMENTS,PRIVATE CONTRACTOR,REVENUE
Walsall Council,http://opendatacommunities.org/id/metropolitan-district-council/walsall,WC121-329,31.12.2021,ADULT SOCIAL CARE,ADVANCE HEALTH CARE (UK) LTD,04/12/2020,431.76,73507-Domiciliary Care,THIRD PARTY PAYMENTS,PRIVATE CONTRACTOR,REVENUE
Walsall Council,http://opendatacommunities.org/id/metropolitan-district-council/walsall,WC121-330,31.12.2021,ADULT SOCIAL CARE,ADVANCE HEALTH CARE (UK) LTD,04/12/2020,462.60,73507-Domiciliary Care,THIRD PARTY PAYMENTS,PRIVATE CONTRACTOR,REVENUE
Walsall Council,http://opendatacommunities.org/id/metropolitan-district-council/walsall,WC121-331,31.12.2021,ADULT SOCIAL CARE,ADVANCE HEALTH CARE (UK) LTD,04/12/2020,485.80,73507-Domiciliary Care,THIRD PARTY PAYMENTS,PRIVATE CONTRACTOR,REVENUE
Walsall Council,http://opendatacommunities.org/id/metropolitan-district-council/walsall,WC121-332,31.12.2021,ADULT SOCIAL CARE,ADVANCE HEALTH CARE (UK) LTD,04/12/2020,501.15,73507-Domiciliary Care,THIRD PARTY PAYMENTS,PRIVATE CONTRACTOR,REVENUE
Walsall Council,http://opendatacommunities.org/id/metropolitan-district-council/walsall,WC121-333,31.12.2021,ADULT SOCIAL CARE,ADVANCE HEALTH CARE (UK) LTD,04/12/2020,431.76,73507-Domiciliary Care,THIRD PARTY PAYMENTS,PRIVATE CONTRACTOR,REVENUE
Walsall Council,http://opendatacommunities.org/id/metropolitan-district-council/walsall,WC121-334,31.12.2021,ADULT SOCIAL CARE,ADVANCE HEALTH CARE (UK) LTD,04/12/2020,377.79,73507-Domiciliary Care,THIRD PARTY PAYMENTS,PRIVATE CONTRACTOR,REVENUE
Walsall Council,http://opendatacommunities.org/id/metropolitan-district-council/walsall,WC121-335,31.12.2021,ADULT SOCIAL CARE,ADVANCE HEALTH CARE (UK) LTD,04/12/2020,431.76,73507-Domiciliary Care,THIRD PARTY PAYMENTS,PRIVATE CONTRACTOR,REVENUE
Walsall Council,http://opendatacommunities.org/id/metropolitan-district-council/walsall,WC121-336,31.12.2021,ADULT SOCIAL CARE,ADVANCE HEALTH CARE (UK) LTD,04/12/2020,359.80,73507-Domiciliary Care,THIRD PARTY PAYMENTS,PRIVATE CONTRACTOR,REVENUE
Walsall Council,http://opendatacommunities.org/id/metropolitan-district-council/walsall,WC121-337,31.12.2021,ADULT SOCIAL CARE,ADVANCE HEALTH CARE (UK) LTD,04/12/2020,323.82,73507-Domiciliary Care,THIRD PARTY PAYMENTS,PRIVATE CONTRACTOR,REVENUE
Walsall Council,http://opendatacommunities.org/id/metropolitan-district-council/walsall,WC121-338,31.12.2021,ADULT SOCIAL CARE,ADVANCE HEALTH CARE (UK) LTD,04/12/2020,701.61,73507-Domiciliary Care,THIRD PARTY PAYMENTS,PRIVATE CONTRACTOR,REVENUE
Walsall Council,http://opendatacommunities.org/id/metropolitan-district-council/walsall,WC121-339,31.12.2021,ADULT SOCIAL CARE,ADVANCE HEALTH CARE (UK) LTD,04/12/2020,431.76,73507-Domiciliary Care,THIRD PARTY PAYMENTS,PRIVATE CONTRACTOR,REVENUE
Walsall Council,http://opendatacommunities.org/id/metropolitan-district-council/walsall,WC121-340,31.12.2021,ADULT SOCIAL CARE,ADVANCE HEALTH CARE (UK) LTD,04/12/2020,485.73,73507-Domiciliary Care,THIRD PARTY PAYMENTS,PRIVATE CONTRACTOR,REVENUE
Walsall Council,http://opendatacommunities.org/id/metropolitan-district-council/walsall,WC121-341,31.12.2021,ADULT SOCIAL CARE,ADVANCE HEALTH CARE (UK) LTD,04/12/2020,755.58,73507-Domiciliary Care,THIRD PARTY PAYMENTS,PRIVATE CONTRACTOR,REVENUE
Walsall Council,http://opendatacommunities.org/id/metropolitan-district-council/walsall,WC121-342,31.12.2021,ADULT SOCIAL CARE,ADVANCE HEALTH CARE (UK) LTD,04/12/2020,470.31,73507-Domiciliary Care,THIRD PARTY PAYMENTS,PRIVATE CONTRACTOR,REVENUE
Walsall Council,http://opendatacommunities.org/id/metropolitan-district-council/walsall,WC121-343,31.12.2021,ADULT SOCIAL CARE,ADVANCE HEALTH CARE (UK) LTD,04/12/2020,462.60,73507-Domiciliary Care,THIRD PARTY PAYMENTS,PRIVATE CONTRACTOR,REVENUE
Walsall Council,http://opendatacommunities.org/id/metropolitan-district-council/walsall,WC121-344,31.12.2021,ADULT SOCIAL CARE,ADVANCE HEALTH CARE (UK) LTD,04/12/2020,524.28,73507-Domiciliary Care,THIRD PARTY PAYMENTS,PRIVATE CONTRACTOR,REVENUE
Walsall Council,http://opendatacommunities.org/id/metropolitan-district-council/walsall,WC121-345,31.12.2021,ADULT SOCIAL CARE,ADVANCE HEALTH CARE (UK) LTD,04/12/2020,485.73,73507-Domiciliary Care,THIRD PARTY PAYMENTS,PRIVATE CONTRACTOR,REVENUE
Walsall Council,http://opendatacommunities.org/id/metropolitan-district-council/walsall,WC121-346,31.12.2021,ADULT SOCIAL CARE,ADVANCE HEALTH CARE (UK) LTD,04/12/2020,359.80,73507-Domiciliary Care,THIRD PARTY PAYMENTS,PRIVATE CONTRACTOR,REVENUE
Walsall Council,http://opendatacommunities.org/id/metropolitan-district-council/walsall,WC121-347,31.12.2021,ADULT SOCIAL CARE,ADVANCE HEALTH CARE (UK) LTD,04/12/2020,359.80,73507-Domiciliary Care,THIRD PARTY PAYMENTS,PRIVATE CONTRACTOR,REVENUE
Walsall Council,http://opendatacommunities.org/id/metropolitan-district-council/walsall,WC121-348,31.12.2021,ADULT SOCIAL CARE,ADVANCE HEALTH CARE (UK) LTD,17/12/2020,462.60,73507-Domiciliary Care,THIRD PARTY PAYMENTS,PRIVATE CONTRACTOR,REVENUE
Walsall Council,http://opendatacommunities.org/id/metropolitan-district-council/walsall,WC121-349,31.12.2021,ADULT SOCIAL CARE,ADVANCE HEALTH CARE (UK) LTD,17/12/2020,524.28,73507-Domiciliary Care,THIRD PARTY PAYMENTS,PRIVATE CONTRACTOR,REVENUE
Walsall Council,http://opendatacommunities.org/id/metropolitan-district-council/walsall,WC121-350,31.12.2021,ADULT SOCIAL CARE,ADVANCE HEALTH CARE (UK) LTD,17/12/2020,323.82,73507-Domiciliary Care,THIRD PARTY PAYMENTS,PRIVATE CONTRACTOR,REVENUE
Walsall Council,http://opendatacommunities.org/id/metropolitan-district-council/walsall,WC121-351,31.12.2021,ADULT SOCIAL CARE,ADVANCE HEALTH CARE (UK) LTD,17/12/2020,701.61,73507-Domiciliary Care,THIRD PARTY PAYMENTS,PRIVATE CONTRACTOR,REVENUE
Walsall Council,http://opendatacommunities.org/id/metropolitan-district-council/walsall,WC121-352,31.12.2021,ADULT SOCIAL CARE,ADVANCE HEALTH CARE (UK) LTD,17/12/2020,377.79,73507-Domiciliary Care,THIRD PARTY PAYMENTS,PRIVATE CONTRACTOR,REVENUE
Walsall Council,http://opendatacommunities.org/id/metropolitan-district-council/walsall,WC121-353,31.12.2021,ADULT SOCIAL CARE,ADVANCE HEALTH CARE (UK) LTD,17/12/2020,400.92,73507-Domiciliary Care,THIRD PARTY PAYMENTS,PRIVATE CONTRACTOR,REVENUE
Walsall Council,http://opendatacommunities.org/id/metropolitan-district-council/walsall,WC121-354,31.12.2021,ADULT SOCIAL CARE,ADVANCE HEALTH CARE (UK) LTD,17/12/2020,"1,727.04",73507-Domiciliary Care,THIRD PARTY PAYMENTS,PRIVATE CONTRACTOR,REVENUE
Walsall Council,http://opendatacommunities.org/id/metropolitan-district-council/walsall,WC121-355,31.12.2021,ADULT SOCIAL CARE,ADVANCE HEALTH CARE (UK) LTD,17/12/2020,485.73,73507-Domiciliary Care,THIRD PARTY PAYMENTS,PRIVATE CONTRACTOR,REVENUE
Walsall Council,http://opendatacommunities.org/id/metropolitan-district-council/walsall,WC121-356,31.12.2021,ADULT SOCIAL CARE,ADVANCE HEALTH CARE (UK) LTD,17/12/2020,485.73,73507-Domiciliary Care,THIRD PARTY PAYMENTS,PRIVATE CONTRACTOR,REVENUE
Walsall Council,http://opendatacommunities.org/id/metropolitan-district-council/walsall,WC121-357,31.12.2021,ADULT SOCIAL CARE,ADVANCE HEALTH CARE (UK) LTD,17/12/2020,485.73,73507-Domiciliary Care,THIRD PARTY PAYMENTS,PRIVATE CONTRACTOR,REVENUE
Walsall Council,http://opendatacommunities.org/id/metropolitan-district-council/walsall,WC121-358,31.12.2021,ADULT SOCIAL CARE,ADVANCE HEALTH CARE (UK) LTD,17/12/2020,431.76,73507-Domiciliary Care,THIRD PARTY PAYMENTS,PRIVATE CONTRACTOR,REVENUE
Walsall Council,http://opendatacommunities.org/id/metropolitan-district-council/walsall,WC121-359,31.12.2021,ADULT SOCIAL CARE,ADVANCE HEALTH CARE (UK) LTD,17/12/2020,755.58,73507-Domiciliary Care,THIRD PARTY PAYMENTS,PRIVATE CONTRACTOR,REVENUE
Walsall Council,http://opendatacommunities.org/id/metropolitan-district-council/walsall,WC121-360,31.12.2021,ADULT SOCIAL CARE,ADVANCE HEALTH CARE (UK) LTD,17/12/2020,470.31,73507-Domiciliary Care,THIRD PARTY PAYMENTS,PRIVATE CONTRACTOR,REVENUE
Walsall Council,http://opendatacommunities.org/id/metropolitan-district-council/walsall,WC121-361,31.12.2021,ADULT SOCIAL CARE,ADVANCE HEALTH CARE (UK) LTD,17/12/2020,431.76,73507-Domiciliary Care,THIRD PARTY PAYMENTS,PRIVATE CONTRACTOR,REVENUE
Walsall Council,http://opendatacommunities.org/id/metropolitan-district-council/walsall,WC121-362,31.12.2021,ADULT SOCIAL CARE,ADVANCE HEALTH CARE (UK) LTD,17/12/2020,485.73,73507-Domiciliary Care,THIRD PARTY PAYMENTS,PRIVATE CONTRACTOR,REVENUE
Walsall Council,http://opendatacommunities.org/id/metropolitan-district-council/walsall,WC121-363,31.12.2021,ADULT SOCIAL CARE,ADVANCE HEALTH CARE (UK) LTD,17/12/2020,485.73,73507-Domiciliary Care,THIRD PARTY PAYMENTS,PRIVATE CONTRACTOR,REVENUE
Walsall Council,http://opendatacommunities.org/id/metropolitan-district-council/walsall,WC121-364,31.12.2021,ADULT SOCIAL CARE,ADVANCE HEALTH CARE (UK) LTD,17/12/2020,485.73,73507-Domiciliary Care,THIRD PARTY PAYMENTS,PRIVATE CONTRACTOR,REVENUE
Walsall Council,http://opendatacommunities.org/id/metropolitan-district-council/walsall,WC121-365,31.12.2021,ADULT SOCIAL CARE,ADVANCE HEALTH CARE (UK) LTD,17/12/2020,824.97,73507-Domiciliary Care,THIRD PARTY PAYMENTS,PRIVATE CONTRACTOR,REVENUE
Walsall Council,http://opendatacommunities.org/id/metropolitan-district-council/walsall,WC121-366,31.12.2021,ADULT SOCIAL CARE,ADVANCE HEALTH CARE (UK) LTD,17/12/2020,485.73,73507-Domiciliary Care,THIRD PARTY PAYMENTS,PRIVATE CONTRACTOR,REVENUE
Walsall Council,http://opendatacommunities.org/id/metropolitan-district-council/walsall,WC121-367,31.12.2021,ADULT SOCIAL CARE,ADVANCE HEALTH CARE (UK) LTD,17/12/2020,485.73,73507-Domiciliary Care,THIRD PARTY PAYMENTS,PRIVATE CONTRACTOR,REVENUE
Walsall Council,http://opendatacommunities.org/id/metropolitan-district-council/walsall,WC121-368,31.12.2021,ADULT SOCIAL CARE,ADVANCE HEALTH CARE (UK) LTD,17/12/2020,431.76,73507-Domiciliary Care,THIRD PARTY PAYMENTS,PRIVATE CONTRACTOR,REVENUE
Walsall Council,http://opendatacommunities.org/id/metropolitan-district-council/walsall,WC121-369,31.12.2021,ADULT SOCIAL CARE,ADVANCE HEALTH CARE (UK) LTD,17/12/2020,485.80,73507-Domiciliary Care,THIRD PARTY PAYMENTS,PRIVATE CONTRACTOR,REVENUE
Walsall Council,http://opendatacommunities.org/id/metropolitan-district-council/walsall,WC121-370,31.12.2021,ADULT SOCIAL CARE,ADVANCE HEALTH CARE (UK) LTD,17/12/2020,501.15,73507-Domiciliary Care,THIRD PARTY PAYMENTS,PRIVATE CONTRACTOR,REVENUE
Walsall Council,http://opendatacommunities.org/id/metropolitan-district-council/walsall,WC121-371,31.12.2021,ADULT SOCIAL CARE,ADVANCE HEALTH CARE (UK) LTD,17/12/2020,431.76,73507-Domiciliary Care,THIRD PARTY PAYMENTS,PRIVATE CONTRACTOR,REVENUE
Walsall Council,http://opendatacommunities.org/id/metropolitan-district-council/walsall,WC121-372,31.12.2021,ADULT SOCIAL CARE,ADVANCE HEALTH CARE (UK) LTD,17/12/2020,539.70,73507-Domiciliary Care,THIRD PARTY PAYMENTS,PRIVATE CONTRACTOR,REVENUE
Walsall Council,http://opendatacommunities.org/id/metropolitan-district-council/walsall,WC121-373,31.12.2021,ADULT SOCIAL CARE,ADVANCE HEALTH CARE (UK) LTD,17/12/2020,431.76,73507-Domiciliary Care,THIRD PARTY PAYMENTS,PRIVATE CONTRACTOR,REVENUE
Walsall Council,http://opendatacommunities.org/id/metropolitan-district-council/walsall,WC121-374,31.12.2021,ADULT SOCIAL CARE,ADVANCE HEALTH CARE (UK) LTD,17/12/2020,323.82,73507-Domiciliary Care,THIRD PARTY PAYMENTS,PRIVATE CONTRACTOR,REVENUE
Walsall Council,http://opendatacommunities.org/id/metropolitan-district-council/walsall,WC121-375,31.12.2021,ADULT SOCIAL CARE,ADVANCE HEALTH CARE (UK) LTD,17/12/2020,377.79,73507-Domiciliary Care,THIRD PARTY PAYMENTS,PRIVATE CONTRACTOR,REVENUE
Walsall Council,http://opendatacommunities.org/id/metropolitan-district-council/walsall,WC121-376,31.12.2021,ADULT SOCIAL CARE,ADVANCE HEALTH CARE (UK) LTD,17/12/2020,431.76,73507-Domiciliary Care,THIRD PARTY PAYMENTS,PRIVATE CONTRACTOR,REVENUE
Walsall Council,http://opendatacommunities.org/id/metropolitan-district-council/walsall,WC121-377,31.12.2021,ADULT SOCIAL CARE,ADVANCE HEALTH CARE (UK) LTD,17/12/2020,359.80,73507-Domiciliary Care,THIRD PARTY PAYMENTS,PRIVATE CONTRACTOR,REVENUE
Walsall Council,http://opendatacommunities.org/id/metropolitan-district-council/walsall,WC121-378,31.12.2021,ADULT SOCIAL CARE,ADVANCE HEALTH CARE (UK) LTD,17/12/2020,431.76,73507-Domiciliary Care,THIRD PARTY PAYMENTS,PRIVATE CONTRACTOR,REVENUE
Walsall Council,http://opendatacommunities.org/id/metropolitan-district-council/walsall,WC121-379,31.12.2021,ADULT SOCIAL CARE,ADVANCE HEALTH CARE (UK) LTD,17/12/2020,431.76,73507-Domiciliary Care,THIRD PARTY PAYMENTS,PRIVATE CONTRACTOR,REVENUE
Walsall Council,http://opendatacommunities.org/id/metropolitan-district-council/walsall,WC121-380,31.12.2021,ADULT SOCIAL CARE,ADVANCE HEALTH CARE (UK) LTD,17/12/2020,593.67,73507-Domiciliary Care,THIRD PARTY PAYMENTS,PRIVATE CONTRACTOR,REVENUE
Walsall Council,http://opendatacommunities.org/id/metropolitan-district-council/walsall,WC121-381,31.12.2021,ADULT SOCIAL CARE,ADVANCE HEALTH CARE (UK) LTD,17/12/2020,359.80,73507-Domiciliary Care,THIRD PARTY PAYMENTS,PRIVATE CONTRACTOR,REVENUE
Walsall Council,http://opendatacommunities.org/id/metropolitan-district-council/walsall,WC121-382,31.12.2021,ADULT SOCIAL CARE,ADVANCE HEALTH CARE (UK) LTD,17/12/2020,359.80,73507-Domiciliary Care,THIRD PARTY PAYMENTS,PRIVATE CONTRACTOR,REVENUE
Walsall Council,http://opendatacommunities.org/id/metropolitan-district-council/walsall,WC121-383,31.12.2021,ADULT SOCIAL CARE,ADVANCE HEALTH CARE (UK) LTD,17/12/2020,439.47,73507-Domiciliary Care,THIRD PARTY PAYMENTS,PRIVATE CONTRACTOR,REVENUE
Walsall Council,http://opendatacommunities.org/id/metropolitan-district-council/walsall,WC121-384,31.12.2021,ADULT SOCIAL CARE,ADVANCE HEALTH CARE (UK) LTD,17/12/2020,593.88,73507-Domiciliary Care,THIRD PARTY PAYMENTS,PRIVATE CONTRACTOR,REVENUE
Walsall Council,http://opendatacommunities.org/id/metropolitan-district-council/walsall,WC121-385,31.12.2021,ADULT SOCIAL CARE,ADVANCE HEALTH CARE (UK) LTD,17/12/2020,485.73,73507-Domiciliary Care,THIRD PARTY PAYMENTS,PRIVATE CONTRACTOR,REVENUE
Walsall Council,http://opendatacommunities.org/id/metropolitan-district-council/walsall,WC121-386,31.12.2021,ADULT SOCIAL CARE,ADVANCE HEALTH CARE (UK) LTD,17/12/2020,863.52,73507-Domiciliary Care,THIRD PARTY PAYMENTS,PRIVATE CONTRACTOR,REVENUE
Walsall Council,http://opendatacommunities.org/id/metropolitan-district-council/walsall,WC121-387,31.12.2021,ADULT SOCIAL CARE,ADVANCE HEALTH CARE (UK) LTD,17/12/2020,323.82,73507-Domiciliary Care,THIRD PARTY PAYMENTS,PRIVATE CONTRACTOR,REVENUE
Walsall Council,http://opendatacommunities.org/id/metropolitan-district-council/walsall,WC121-388,31.12.2021,ADULT SOCIAL CARE,ADVANCE HEALTH CARE (UK) LTD,17/12/2020,377.79,73507-Domiciliary Care,THIRD PARTY PAYMENTS,PRIVATE CONTRACTOR,REVENUE
Walsall Council,http://opendatacommunities.org/id/metropolitan-district-council/walsall,WC121-389,31.12.2021,ADULT SOCIAL CARE,ADVANCE HEALTH CARE (UK) LTD,17/12/2020,359.80,73507-Domiciliary Care,THIRD PARTY PAYMENTS,PRIVATE CONTRACTOR,REVENUE
Walsall Council,http://opendatacommunities.org/id/metropolitan-district-council/walsall,WC121-390,31.12.2021,ADULT SOCIAL CARE,ADVANCE HEALTH CARE (UK) LTD,17/12/2020,339.24,73507-Domiciliary Care,THIRD PARTY PAYMENTS,PRIVATE CONTRACTOR,REVENUE
Walsall Council,http://opendatacommunities.org/id/metropolitan-district-council/walsall,WC121-391,31.12.2021,ADULT SOCIAL CARE,ADVANCE HEALTH CARE (UK) LTD,17/12/2020,701.61,73507-Domiciliary Care,THIRD PARTY PAYMENTS,PRIVATE CONTRACTOR,REVENUE
Walsall Council,http://opendatacommunities.org/id/metropolitan-district-council/walsall,WC121-392,31.12.2021,ADULT SOCIAL CARE,ADVANCE HEALTH CARE (UK) LTD,17/12/2020,431.76,73507-Domiciliary Care,THIRD PARTY PAYMENTS,PRIVATE CONTRACTOR,REVENUE
Walsall Council,http://opendatacommunities.org/id/metropolitan-district-council/walsall,WC121-393,31.12.2021,ADULT SOCIAL CARE,ADVANCE HEALTH CARE (UK) LTD,17/12/2020,462.60,73507-Domiciliary Care,THIRD PARTY PAYMENTS,PRIVATE CONTRACTOR,REVENUE
Walsall Council,http://opendatacommunities.org/id/metropolitan-district-council/walsall,WC121-394,31.12.2021,ADULT SOCIAL CARE,ADVANCE HEALTH CARE (UK) LTD,17/12/2020,524.28,73507-Domiciliary Care,THIRD PARTY PAYMENTS,PRIVATE CONTRACTOR,REVENUE
Walsall Council,http://opendatacommunities.org/id/metropolitan-district-council/walsall,WC121-395,31.12.2021,ADULT SOCIAL CARE,ADVANCE HEALTH CARE (UK) LTD,17/12/2020,431.76,73507-Domiciliary Care,THIRD PARTY PAYMENTS,PRIVATE CONTRACTOR,REVENUE
Walsall Council,http://opendatacommunities.org/id/metropolitan-district-council/walsall,WC121-396,31.12.2021,ADULT SOCIAL CARE,ADVANCE HEALTH CARE (UK) LTD,17/12/2020,485.73,73507-Domiciliary Care,THIRD PARTY PAYMENTS,PRIVATE CONTRACTOR,REVENUE
Walsall Council,http://opendatacommunities.org/id/metropolitan-district-council/walsall,WC121-397,31.12.2021,ADULT SOCIAL CARE,ADVANCE HEALTH CARE (UK) LTD,17/12/2020,755.58,73507-Domiciliary Care,THIRD PARTY PAYMENTS,PRIVATE CONTRACTOR,REVENUE
Walsall Council,http://opendatacommunities.org/id/metropolitan-district-council/walsall,WC121-398,31.12.2021,ADULT SOCIAL CARE,ADVANCE HEALTH CARE (UK) LTD,17/12/2020,485.73,73507-Domiciliary Care,THIRD PARTY PAYMENTS,PRIVATE CONTRACTOR,REVENUE
Walsall Council,http://opendatacommunities.org/id/metropolitan-district-council/walsall,WC121-399,31.12.2021,ADULT SOCIAL CARE,ADVANCE HEALTH CARE (UK) LTD,17/12/2020,485.80,73507-Domiciliary Care,THIRD PARTY PAYMENTS,PRIVATE CONTRACTOR,REVENUE
Walsall Council,http://opendatacommunities.org/id/metropolitan-district-council/walsall,WC121-400,31.12.2021,ADULT SOCIAL CARE,ADVANCE HEALTH CARE (UK) LTD,17/12/2020,501.15,73507-Domiciliary Care,THIRD PARTY PAYMENTS,PRIVATE CONTRACTOR,REVENUE
Walsall Council,http://opendatacommunities.org/id/metropolitan-district-council/walsall,WC121-401,31.12.2021,ADULT SOCIAL CARE,ADVANCE HEALTH CARE (UK) LTD,17/12/2020,431.76,73507-Domiciliary Care,THIRD PARTY PAYMENTS,PRIVATE CONTRACTOR,REVENUE
Walsall Council,http://opendatacommunities.org/id/metropolitan-district-council/walsall,WC121-402,31.12.2021,ADULT SOCIAL CARE,ADVANCE HEALTH CARE (UK) LTD,17/12/2020,377.79,73507-Domiciliary Care,THIRD PARTY PAYMENTS,PRIVATE CONTRACTOR,REVENUE
Walsall Council,http://opendatacommunities.org/id/metropolitan-district-council/walsall,WC121-403,31.12.2021,ADULT SOCIAL CARE,ADVANCE HEALTH CARE (UK) LTD,17/12/2020,485.73,73507-Domiciliary Care,THIRD PARTY PAYMENTS,PRIVATE CONTRACTOR,REVENUE
Walsall Council,http://opendatacommunities.org/id/metropolitan-district-council/walsall,WC121-404,31.12.2021,ADULT SOCIAL CARE,ADVANCE HEALTH CARE (UK) LTD,17/12/2020,824.97,73507-Domiciliary Care,THIRD PARTY PAYMENTS,PRIVATE CONTRACTOR,REVENUE
Walsall Council,http://opendatacommunities.org/id/metropolitan-district-council/walsall,WC121-405,31.12.2021,ADULT SOCIAL CARE,ADVANCE HEALTH CARE (UK) LTD,17/12/2020,485.73,73507-Domiciliary Care,THIRD PARTY PAYMENTS,PRIVATE CONTRACTOR,REVENUE
Walsall Council,http://opendatacommunities.org/id/metropolitan-district-council/walsall,WC121-406,31.12.2021,ADULT SOCIAL CARE,ADVANCE HEALTH CARE (UK) LTD,17/12/2020,485.73,73507-Domiciliary Care,THIRD PARTY PAYMENTS,PRIVATE CONTRACTOR,REVENUE
Walsall Council,http://opendatacommunities.org/id/metropolitan-district-council/walsall,WC121-407,31.12.2021,ADULT SOCIAL CARE,ADVANCE HEALTH CARE (UK) LTD,17/12/2020,431.76,73507-Domiciliary Care,THIRD PARTY PAYMENTS,PRIVATE CONTRACTOR,REVENUE
Walsall Council,http://opendatacommunities.org/id/metropolitan-district-council/walsall,WC121-408,31.12.2021,ADULT SOCIAL CARE,ADVANCE HEALTH CARE (UK) LTD,17/12/2020,539.70,73507-Domiciliary Care,THIRD PARTY PAYMENTS,PRIVATE CONTRACTOR,REVENUE
Walsall Council,http://opendatacommunities.org/id/metropolitan-district-council/walsall,WC121-409,31.12.2021,ADULT SOCIAL CARE,ADVANCE HEALTH CARE (UK) LTD,17/12/2020,431.76,73507-Domiciliary Care,THIRD PARTY PAYMENTS,PRIVATE CONTRACTOR,REVENUE
Walsall Council,http://opendatacommunities.org/id/metropolitan-district-council/walsall,WC121-410,31.12.2021,ADULT SOCIAL CARE,ADVANCE HEALTH CARE (UK) LTD,17/12/2020,323.82,73507-Domiciliary Care,THIRD PARTY PAYMENTS,PRIVATE CONTRACTOR,REVENUE
Walsall Council,http://opendatacommunities.org/id/metropolitan-district-council/walsall,WC121-411,31.12.2021,ADULT SOCIAL CARE,ADVANCE HEALTH CARE (UK) LTD,17/12/2020,431.76,73507-Domiciliary Care,THIRD PARTY PAYMENTS,PRIVATE CONTRACTOR,REVENUE
Walsall Council,http://opendatacommunities.org/id/metropolitan-district-council/walsall,WC121-412,31.12.2021,ADULT SOCIAL CARE,ADVANCE HEALTH CARE (UK) LTD,17/12/2020,485.73,73507-Domiciliary Care,THIRD PARTY PAYMENTS,PRIVATE CONTRACTOR,REVENUE
Walsall Council,http://opendatacommunities.org/id/metropolitan-district-council/walsall,WC121-413,31.12.2021,ADULT SOCIAL CARE,ADVANCE HEALTH CARE (UK) LTD,17/12/2020,485.73,73507-Domiciliary Care,THIRD PARTY PAYMENTS,PRIVATE CONTRACTOR,REVENUE
Walsall Council,http://opendatacommunities.org/id/metropolitan-district-council/walsall,WC121-414,31.12.2021,ADULT SOCIAL CARE,ADVANCE HEALTH CARE (UK) LTD,17/12/2020,431.76,73507-Domiciliary Care,THIRD PARTY PAYMENTS,PRIVATE CONTRACTOR,REVENUE
Walsall Council,http://opendatacommunities.org/id/metropolitan-district-council/walsall,WC121-415,31.12.2021,ADULT SOCIAL CARE,ADVANCE HEALTH CARE (UK) LTD,17/12/2020,359.80,73507-Domiciliary Care,THIRD PARTY PAYMENTS,PRIVATE CONTRACTOR,REVENUE
Walsall Council,http://opendatacommunities.org/id/metropolitan-district-council/walsall,WC121-416,31.12.2021,ADULT SOCIAL CARE,ADVANCE HEALTH CARE (UK) LTD,17/12/2020,431.76,73507-Domiciliary Care,THIRD PARTY PAYMENTS,PRIVATE CONTRACTOR,REVENUE
Walsall Council,http://opendatacommunities.org/id/metropolitan-district-council/walsall,WC121-417,31.12.2021,ADULT SOCIAL CARE,ADVANCE HEALTH CARE (UK) LTD,17/12/2020,431.76,73507-Domiciliary Care,THIRD PARTY PAYMENTS,PRIVATE CONTRACTOR,REVENUE
Walsall Council,http://opendatacommunities.org/id/metropolitan-district-council/walsall,WC121-418,31.12.2021,ADULT SOCIAL CARE,ADVANCE HEALTH CARE (UK) LTD,17/12/2020,593.67,73507-Domiciliary Care,THIRD PARTY PAYMENTS,PRIVATE CONTRACTOR,REVENUE
Walsall Council,http://opendatacommunities.org/id/metropolitan-district-council/walsall,WC121-419,31.12.2021,ADULT SOCIAL CARE,ADVANCE HEALTH CARE (UK) LTD,17/12/2020,439.47,73507-Domiciliary Care,THIRD PARTY PAYMENTS,PRIVATE CONTRACTOR,REVENUE
Walsall Council,http://opendatacommunities.org/id/metropolitan-district-council/walsall,WC121-420,31.12.2021,ADULT SOCIAL CARE,ADVANCE HEALTH CARE (UK) LTD,17/12/2020,593.88,73507-Domiciliary Care,THIRD PARTY PAYMENTS,PRIVATE CONTRACTOR,REVENUE
Walsall Council,http://opendatacommunities.org/id/metropolitan-district-council/walsall,WC121-421,31.12.2021,ADULT SOCIAL CARE,ADVANCE HEALTH CARE (UK) LTD,17/12/2020,485.73,73507-Domiciliary Care,THIRD PARTY PAYMENTS,PRIVATE CONTRACTOR,REVENUE
Walsall Council,http://opendatacommunities.org/id/metropolitan-district-council/walsall,WC121-422,31.12.2021,ADULT SOCIAL CARE,ADVANCE HEALTH CARE (UK) LTD,17/12/2020,863.52,73507-Domiciliary Care,THIRD PARTY PAYMENTS,PRIVATE CONTRACTOR,REVENUE
Walsall Council,http://opendatacommunities.org/id/metropolitan-district-council/walsall,WC121-423,31.12.2021,ADULT SOCIAL CARE,ADVANCE HEALTH CARE (UK) LTD,17/12/2020,323.82,73507-Domiciliary Care,THIRD PARTY PAYMENTS,PRIVATE CONTRACTOR,REVENUE
Walsall Council,http://opendatacommunities.org/id/metropolitan-district-council/walsall,WC121-424,31.12.2021,ADULT SOCIAL CARE,ADVANCE HEALTH CARE (UK) LTD,17/12/2020,377.79,73507-Domiciliary Care,THIRD PARTY PAYMENTS,PRIVATE CONTRACTOR,REVENUE
Walsall Council,http://opendatacommunities.org/id/metropolitan-district-council/walsall,WC121-425,31.12.2021,ADULT SOCIAL CARE,ADVANCE HEALTH CARE (UK) LTD,17/12/2020,377.79,73507-Domiciliary Care,THIRD PARTY PAYMENTS,PRIVATE CONTRACTOR,REVENUE
Walsall Council,http://opendatacommunities.org/id/metropolitan-district-council/walsall,WC121-426,31.12.2021,ADULT SOCIAL CARE,ADVANCE HEALTH CARE (UK) LTD,17/12/2020,485.73,73507-Domiciliary Care,THIRD PARTY PAYMENTS,PRIVATE CONTRACTOR,REVENUE
Walsall Council,http://opendatacommunities.org/id/metropolitan-district-council/walsall,WC121-427,31.12.2021,ADULT SOCIAL CARE,ADVANCE HEALTH CARE (UK) LTD,17/12/2020,431.76,73507-Domiciliary Care,THIRD PARTY PAYMENTS,PRIVATE CONTRACTOR,REVENUE
Walsall Council,http://opendatacommunities.org/id/metropolitan-district-council/walsall,WC121-428,31.12.2021,ADULT SOCIAL CARE,ADVANCE HEALTH CARE (UK) LTD,15/12/2020,"27,943.72",73025-Professional Services-Priv Contractor & Other Agencies,THIRD PARTY PAYMENTS,PRIVATE CONTRACTOR,REVENUE
Walsall Council,http://opendatacommunities.org/id/metropolitan-district-council/walsall,WC121-429,31.12.2021,ADULT SOCIAL CARE,ADVANCE HEALTH CARE (UK) LTD,01/12/2020,485.73,73025-Professional Services-Priv Contractor & Other Agencies,THIRD PARTY PAYMENTS,PRIVATE CONTRACTOR,REVENUE
Walsall Council,http://opendatacommunities.org/id/metropolitan-district-council/walsall,WC121-430,31.12.2021,ADULT SOCIAL CARE,ADVANCE HEALTH CARE (UK) LTD,01/12/2020,485.73,73025-Professional Services-Priv Contractor & Other Agencies,THIRD PARTY PAYMENTS,PRIVATE CONTRACTOR,REVENUE
Walsall Council,http://opendatacommunities.org/id/metropolitan-district-council/walsall,WC121-431,31.12.2021,ADULT SOCIAL CARE,ADVANCE HEALTH CARE (UK) LTD,01/12/2020,485.73,73025-Professional Services-Priv Contractor & Other Agencies,THIRD PARTY PAYMENTS,PRIVATE CONTRACTOR,REVENUE
Walsall Council,http://opendatacommunities.org/id/metropolitan-district-council/walsall,WC121-432,31.12.2021,ADULT SOCIAL CARE,ADVANCE HEALTH CARE (UK) LTD,01/12/2020,485.73,73025-Professional Services-Priv Contractor & Other Agencies,THIRD PARTY PAYMENTS,PRIVATE CONTRACTOR,REVENUE
Walsall Council,http://opendatacommunities.org/id/metropolitan-district-council/walsall,WC121-433,31.12.2021,ADULT SOCIAL CARE,ADVANCE HEALTH CARE (UK) LTD,07/12/2020,485.73,73025-Professional Services-Priv Contractor & Other Agencies,THIRD PARTY PAYMENTS,PRIVATE CONTRACTOR,REVENUE
Walsall Council,http://opendatacommunities.org/id/metropolitan-district-council/walsall,WC121-434,31.12.2021,ADULT SOCIAL CARE,ADVANCE HEALTH CARE (UK) LTD,01/12/2020,485.73,73025-Professional Services-Priv Contractor & Other Agencies,THIRD PARTY PAYMENTS,PRIVATE CONTRACTOR,REVENUE
Walsall Council,http://opendatacommunities.org/id/metropolitan-district-council/walsall,WC121-435,31.12.2021,ADULT SOCIAL CARE,ADVANCE HEALTH CARE (UK) LTD,01/12/2020,485.73,73025-Professional Services-Priv Contractor & Other Agencies,THIRD PARTY PAYMENTS,PRIVATE CONTRACTOR,REVENUE
Walsall Council,http://opendatacommunities.org/id/metropolitan-district-council/walsall,WC121-436,31.12.2021,ADULT SOCIAL CARE,ADVANCE HEALTH CARE (UK) LTD,07/12/2020,629.65,73025-Professional Services-Priv Contractor & Other Agencies,THIRD PARTY PAYMENTS,PRIVATE CONTRACTOR,REVENUE
Walsall Council,http://opendatacommunities.org/id/metropolitan-district-council/walsall,WC121-437,31.12.2021,ADULT SOCIAL CARE,ADVANCE HEALTH CARE (UK) LTD,07/12/2020,485.73,73025-Professional Services-Priv Contractor & Other Agencies,THIRD PARTY PAYMENTS,PRIVATE CONTRACTOR,REVENUE
Walsall Council,http://opendatacommunities.org/id/metropolitan-district-council/walsall,WC121-438,31.12.2021,ADULT SOCIAL CARE,ADVANCE HEALTH CARE (UK) LTD,07/12/2020,485.73,73025-Professional Services-Priv Contractor & Other Agencies,THIRD PARTY PAYMENTS,PRIVATE CONTRACTOR,REVENUE
Walsall Council,http://opendatacommunities.org/id/metropolitan-district-council/walsall,WC121-439,31.12.2021,ADULT SOCIAL CARE,ADVANCE HEALTH CARE (UK) LTD,07/12/2020,485.73,73025-Professional Services-Priv Contractor & Other Agencies,THIRD PARTY PAYMENTS,PRIVATE CONTRACTOR,REVENUE
Walsall Council,http://opendatacommunities.org/id/metropolitan-district-council/walsall,WC121-440,31.12.2021,ADULT SOCIAL CARE,ADVANCE HEALTH CARE (UK) LTD,07/12/2020,693.90,73025-Professional Services-Priv Contractor & Other Agencies,THIRD PARTY PAYMENTS,PRIVATE CONTRACTOR,REVENUE
Walsall Council,http://opendatacommunities.org/id/metropolitan-district-council/walsall,WC121-441,31.12.2021,ADULT SOCIAL CARE,ADVANCE HEALTH CARE (UK) LTD,08/12/2020,485.73,73025-Professional Services-Priv Contractor & Other Agencies,THIRD PARTY PAYMENTS,PRIVATE CONTRACTOR,REVENUE
Walsall Council,http://opendatacommunities.org/id/metropolitan-district-council/walsall,WC121-442,31.12.2021,ADULT SOCIAL CARE,ADVANCE HEALTH CARE (UK) LTD,08/12/2020,485.73,73025-Professional Services-Priv Contractor & Other Agencies,THIRD PARTY PAYMENTS,PRIVATE CONTRACTOR,REVENUE
Walsall Council,http://opendatacommunities.org/id/metropolitan-district-council/walsall,WC121-443,31.12.2021,ADULT SOCIAL CARE,ADVANCE HEALTH CARE (UK) LTD,09/12/2020,485.73,73025-Professional Services-Priv Contractor & Other Agencies,THIRD PARTY PAYMENTS,PRIVATE CONTRACTOR,REVENUE
Walsall Council,http://opendatacommunities.org/id/metropolitan-district-council/walsall,WC121-444,31.12.2021,ADULT SOCIAL CARE,ADVANCE HEALTH CARE (UK) LTD,09/12/2020,629.65,73025-Professional Services-Priv Contractor & Other Agencies,THIRD PARTY PAYMENTS,PRIVATE CONTRACTOR,REVENUE
Walsall Council,http://opendatacommunities.org/id/metropolitan-district-council/walsall,WC121-445,31.12.2021,ADULT SOCIAL CARE,ADVANCE HEALTH CARE (UK) LTD,09/12/2020,485.73,73025-Professional Services-Priv Contractor & Other Agencies,THIRD PARTY PAYMENTS,PRIVATE CONTRACTOR,REVENUE
Walsall Council,http://opendatacommunities.org/id/metropolitan-district-council/walsall,WC121-446,31.12.2021,ADULT SOCIAL CARE,ADVANCE HEALTH CARE (UK) LTD,09/12/2020,485.73,73025-Professional Services-Priv Contractor & Other Agencies,THIRD PARTY PAYMENTS,PRIVATE CONTRACTOR,REVENUE
Walsall Council,http://opendatacommunities.org/id/metropolitan-district-council/walsall,WC121-447,31.12.2021,ADULT SOCIAL CARE,ADVANCE HEALTH CARE (UK) LTD,09/12/2020,362.37,73025-Professional Services-Priv Contractor & Other Agencies,THIRD PARTY PAYMENTS,PRIVATE CONTRACTOR,REVENUE
Walsall Council,http://opendatacommunities.org/id/metropolitan-district-council/walsall,WC121-448,31.12.2021,ADULT SOCIAL CARE,ADVANCE HEALTH CARE (UK) LTD,09/12/2020,277.56,73025-Professional Services-Priv Contractor & Other Agencies,THIRD PARTY PAYMENTS,PRIVATE CONTRACTOR,REVENUE
Walsall Council,http://opendatacommunities.org/id/metropolitan-district-council/walsall,WC121-449,31.12.2021,ADULT SOCIAL CARE,ADVANCE HEALTH CARE (UK) LTD,09/12/2020,824.97,73025-Professional Services-Priv Contractor & Other Agencies,THIRD PARTY PAYMENTS,PRIVATE CONTRACTOR,REVENUE
Walsall Council,http://opendatacommunities.org/id/metropolitan-district-council/walsall,WC121-450,31.12.2021,ADULT SOCIAL CARE,ADVANCE HEALTH CARE (UK) LTD,29/12/2020,485.73,73025-Professional Services-Priv Contractor & Other Agencies,THIRD PARTY PAYMENTS,PRIVATE CONTRACTOR,REVENUE
Walsall Council,http://opendatacommunities.org/id/metropolitan-district-council/walsall,WC121-451,31.12.2021,ADULT SOCIAL CARE,ADVANCE HEALTH CARE (UK) LTD,29/12/2020,485.73,73025-Professional Services-Priv Contractor & Other Agencies,THIRD PARTY PAYMENTS,PRIVATE CONTRACTOR,REVENUE
Walsall Council,http://opendatacommunities.org/id/metropolitan-district-council/walsall,WC121-452,31.12.2021,ADULT SOCIAL CARE,ADVANCE HEALTH CARE (UK) LTD,29/12/2020,485.73,73025-Professional Services-Priv Contractor & Other Agencies,THIRD PARTY PAYMENTS,PRIVATE CONTRACTOR,REVENUE
Walsall Council,http://opendatacommunities.org/id/metropolitan-district-council/walsall,WC121-453,31.12.2021,ADULT SOCIAL CARE,ADVANCE HEALTH CARE (UK) LTD,29/12/2020,485.73,73025-Professional Services-Priv Contractor & Other Agencies,THIRD PARTY PAYMENTS,PRIVATE CONTRACTOR,REVENUE
Walsall Council,http://opendatacommunities.org/id/metropolitan-district-council/walsall,WC121-454,31.12.2021,ADULT SOCIAL CARE,ADVANCE HEALTH CARE (UK) LTD,29/12/2020,377.79,73025-Professional Services-Priv Contractor & Other Agencies,THIRD PARTY PAYMENTS,PRIVATE CONTRACTOR,REVENUE
Walsall Council,http://opendatacommunities.org/id/metropolitan-district-council/walsall,WC121-455,31.12.2021,ADULT SOCIAL CARE,ADVANCE HEALTH CARE (UK) LTD,29/12/2020,485.73,73025-Professional Services-Priv Contractor & Other Agencies,THIRD PARTY PAYMENTS,PRIVATE CONTRACTOR,REVENUE
Walsall Council,http://opendatacommunities.org/id/metropolitan-district-council/walsall,WC121-456,31.12.2021,ADULT SOCIAL CARE,ADVANCE HEALTH CARE (UK) LTD,29/12/2020,629.65,73025-Professional Services-Priv Contractor & Other Agencies,THIRD PARTY PAYMENTS,PRIVATE CONTRACTOR,REVENUE
Walsall Council,http://opendatacommunities.org/id/metropolitan-district-council/walsall,WC121-457,31.12.2021,ADULT SOCIAL CARE,ADVANCE HEALTH CARE (UK) LTD,29/12/2020,485.73,73025-Professional Services-Priv Contractor & Other Agencies,THIRD PARTY PAYMENTS,PRIVATE CONTRACTOR,REVENUE
Walsall Council,http://opendatacommunities.org/id/metropolitan-district-council/walsall,WC121-458,31.12.2021,ADULT SOCIAL CARE,ADVANCE HEALTH CARE (UK) LTD,29/12/2020,485.73,73025-Professional Services-Priv Contractor & Other Agencies,THIRD PARTY PAYMENTS,PRIVATE CONTRACTOR,REVENUE
Walsall Council,http://opendatacommunities.org/id/metropolitan-district-council/walsall,WC121-459,31.12.2021,ADULT SOCIAL CARE,ADVANCE HEALTH CARE (UK) LTD,29/12/2020,346.95,73025-Professional Services-Priv Contractor & Other Agencies,THIRD PARTY PAYMENTS,PRIVATE CONTRACTOR,REVENUE
Walsall Council,http://opendatacommunities.org/id/metropolitan-district-council/walsall,WC121-460,31.12.2021,ADULT SOCIAL CARE,ADVANCE HEALTH CARE (UK) LTD,29/12/2020,824.97,73025-Professional Services-Priv Contractor & Other Agencies,THIRD PARTY PAYMENTS,PRIVATE CONTRACTOR,REVENUE
Walsall Council,http://opendatacommunities.org/id/metropolitan-district-council/walsall,WC121-461,31.12.2021,ADULT SOCIAL CARE,ADVANCE HEALTH CARE (UK) LTD,29/12/2020,485.73,73025-Professional Services-Priv Contractor & Other Agencies,THIRD PARTY PAYMENTS,PRIVATE CONTRACTOR,REVENUE
Walsall Council,http://opendatacommunities.org/id/metropolitan-district-council/walsall,WC121-462,31.12.2021,ADULT SOCIAL CARE,ADVANCE HEALTH CARE (UK) LTD,29/12/2020,485.73,73025-Professional Services-Priv Contractor & Other Agencies,THIRD PARTY PAYMENTS,PRIVATE CONTRACTOR,REVENUE
Walsall Council,http://opendatacommunities.org/id/metropolitan-district-council/walsall,WC121-463,31.12.2021,ADULT SOCIAL CARE,ADVANCE HEALTH CARE (UK) LTD,29/12/2020,485.73,73025-Professional Services-Priv Contractor & Other Agencies,THIRD PARTY PAYMENTS,PRIVATE CONTRACTOR,REVENUE
Walsall Council,http://opendatacommunities.org/id/metropolitan-district-council/walsall,WC121-464,31.12.2021,ADULT SOCIAL CARE,ADVANCE HEALTH CARE (UK) LTD,31/12/2020,485.73,73025-Professional Services-Priv Contractor & Other Agencies,THIRD PARTY PAYMENTS,PRIVATE CONTRACTOR,REVENUE
Walsall Council,http://opendatacommunities.org/id/metropolitan-district-council/walsall,WC121-465,31.12.2021,ADULT SOCIAL CARE,ADVANCE HEALTH CARE (UK) LTD,31/12/2020,485.73,73025-Professional Services-Priv Contractor & Other Agencies,THIRD PARTY PAYMENTS,PRIVATE CONTRACTOR,REVENUE
Walsall Council,http://opendatacommunities.org/id/metropolitan-district-council/walsall,WC121-466,31.12.2021,ADULT SOCIAL CARE,ADVANCE HEALTH CARE (UK) LTD,31/12/2020,485.73,73025-Professional Services-Priv Contractor & Other Agencies,THIRD PARTY PAYMENTS,PRIVATE CONTRACTOR,REVENUE
Walsall Council,http://opendatacommunities.org/id/metropolitan-district-council/walsall,WC121-467,31.12.2021,ADULT SOCIAL CARE,ADVANCE HEALTH CARE (UK) LTD,15/12/2020,817.40,73507-Domiciliary Care,THIRD PARTY PAYMENTS,PRIVATE CONTRACTOR,REVENUE
Walsall Council,http://opendatacommunities.org/id/metropolitan-district-council/walsall,WC121-468,31.12.2021,ADULT SOCIAL CARE,ADVANCE HEALTH CARE (UK) LTD,15/12/2020,"2,734.48",73507-Domiciliary Care,THIRD PARTY PAYMENTS,PRIVATE CONTRACTOR,REVENUE
Walsall Council,http://opendatacommunities.org/id/metropolitan-district-council/walsall,WC121-469,31.12.2021,ADULT SOCIAL CARE,ADVANCE HEALTH CARE (UK) LTD,15/12/2020,760.72,73507-Domiciliary Care,THIRD PARTY PAYMENTS,PRIVATE CONTRACTOR,REVENUE
Walsall Council,http://opendatacommunities.org/id/metropolitan-district-council/walsall,WC121-470,31.12.2021,ADULT SOCIAL CARE,ADVANCE HEALTH CARE (UK) LTD,15/12/2020,"1,017.72",73507-Domiciliary Care,THIRD PARTY PAYMENTS,PRIVATE CONTRACTOR,REVENUE
Walsall Council,http://opendatacommunities.org/id/metropolitan-district-council/walsall,WC121-471,31.12.2021,ADULT SOCIAL CARE,ADVANCE HEALTH CARE (UK) LTD,15/12/2020,842.96,73507-Domiciliary Care,THIRD PARTY PAYMENTS,PRIVATE CONTRACTOR,REVENUE
Walsall Council,http://opendatacommunities.org/id/metropolitan-district-council/walsall,WC121-472,31.12.2021,ADULT SOCIAL CARE,ADVANCE HEALTH CARE (UK) LTD,15/12/2020,673.48,73507-Domiciliary Care,THIRD PARTY PAYMENTS,PRIVATE CONTRACTOR,REVENUE
Walsall Council,http://opendatacommunities.org/id/metropolitan-district-council/walsall,WC121-473,31.12.2021,ADULT SOCIAL CARE,ADVANCE HEALTH CARE (UK) LTD,15/12/2020,740.16,73507-Domiciliary Care,THIRD PARTY PAYMENTS,PRIVATE CONTRACTOR,REVENUE
Walsall Council,http://opendatacommunities.org/id/metropolitan-district-council/walsall,WC121-474,31.12.2021,CHILDRENS,ADVENTURELAND DAY NURSERY,14/12/2020,"4,213.44",66505-Other-Grants to Other Orgs,SUPPLIES & SERVICES,GRANTS (EXP) & SUBSCRIPTIONS,REVENUE
Walsall Council,http://opendatacommunities.org/id/metropolitan-district-council/walsall,WC121-475,31.12.2021,ADULT SOCIAL CARE,ADVINIA CARE HOMES LTD - HAMMERWICH HALL CARE HOME,18/12/2020,"2,044.00",73500-Residential,THIRD PARTY PAYMENTS,PRIVATE CONTRACTOR,REVENUE
Walsall Council,http://opendatacommunities.org/id/metropolitan-district-council/walsall,WC121-476,31.12.2021,ADULT SOCIAL CARE,ADVINIA CARE HOMES LTD - HAMMERWICH HALL CARE HOME,18/12/2020,"2,308.00",73501-Residential EMI,THIRD PARTY PAYMENTS,PRIVATE CONTRACTOR,REVENUE
Walsall Council,http://opendatacommunities.org/id/metropolitan-district-council/walsall,WC121-477,31.12.2021,ECONOMY & ENVIRONMENT,AECOM LIMITED,09/12/2020,"-1,097.11",63000-Professional Fees & Services,SUPPLIES & SERVICES,SERVICES,REVENUE
Walsall Council,http://opendatacommunities.org/id/metropolitan-district-council/walsall,WC121-478,31.12.2021,ECONOMY & ENVIRONMENT,AECOM LIMITED,09/12/2020,"1,097.11",63000-Professional Fees & Services,SUPPLIES & SERVICES,SERVICES,REVENUE
Walsall Council,http://opendatacommunities.org/id/metropolitan-district-council/walsall,WC121-479,31.12.2021,ECONOMY & ENVIRONMENT,AECOM LIMITED,15/12/2020,"-1,097.11",63000-Professional Fees & Services,SUPPLIES & SERVICES,SERVICES,REVENUE
Walsall Council,http://opendatacommunities.org/id/metropolitan-district-council/walsall,WC121-480,31.12.2021,ECONOMY & ENVIRONMENT,AECOM LIMITED,15/12/2020,"1,097.11",63000-Professional Fees & Services,SUPPLIES & SERVICES,SERVICES,REVENUE
Walsall Council,http://opendatacommunities.org/id/metropolitan-district-council/walsall,WC121-481,31.12.2021,ECONOMY & ENVIRONMENT,AFGHAN COMMUNITY & WELFARE CENTRE,09/12/2020,367.50,66500-Grants to Other Orgs,SUPPLIES & SERVICES,GRANTS (EXP) & SUBSCRIPTIONS,REVENUE
Walsall Council,http://opendatacommunities.org/id/metropolitan-district-council/walsall,WC121-482,31.12.2021,ECONOMY & ENVIRONMENT,AFGHAN COMMUNITY & WELFARE CENTRE,09/12/2020,330.00,66500-Grants to Other Orgs,SUPPLIES & SERVICES,GRANTS (EXP) & SUBSCRIPTIONS,REVENUE
Walsall Council,http://opendatacommunities.org/id/metropolitan-district-council/walsall,WC121-483,31.12.2021,ECONOMY & ENVIRONMENT,AFGHAN COMMUNITY & WELFARE CENTRE,09/12/2020,367.50,66500-Grants to Other Orgs,SUPPLIES & SERVICES,GRANTS (EXP) & SUBSCRIPTIONS,REVENUE
Walsall Council,http://opendatacommunities.org/id/metropolitan-district-council/walsall,WC121-484,31.12.2021,ECONOMY & ENVIRONMENT,ALBERT JAGGER LTD,23/12/2020,334.90,60500-Materials,SUPPLIES & SERVICES,EQUIPMENT FURNITURE & MATERIALS,REVENUE
Walsall Council,http://opendatacommunities.org/id/metropolitan-district-council/walsall,WC121-485,31.12.2021,ADULT SOCIAL CARE,ALDERGROVE MANOR LTD,18/12/2020,"2,308.00",73501-Residential EMI,THIRD PARTY PAYMENTS,PRIVATE CONTRACTOR,REVENUE
Walsall Council,http://opendatacommunities.org/id/metropolitan-district-council/walsall,WC121-486,31.12.2021,ADULT SOCIAL CARE,ALDERGROVE MANOR LTD,18/12/2020,"2,308.00",73501-Residential EMI,THIRD PARTY PAYMENTS,PRIVATE CONTRACTOR,REVENUE
Walsall Council,http://opendatacommunities.org/id/metropolitan-district-council/walsall,WC121-487,31.12.2021,CHILDRENS,ALDRIDGE & BARONS LIMITED,02/12/2020,"1,949.40",52000-Hire of Vehicle with Driver,TRANSPORT,DIRECT TRANSPORT COSTS,REVENUE
Walsall Council,http://opendatacommunities.org/id/metropolitan-district-council/walsall,WC121-488,31.12.2021,CHILDRENS,ALDRIDGE & BARONS LIMITED,02/12/2020,"1,789.20",52000-Hire of Vehicle with Driver,TRANSPORT,DIRECT TRANSPORT COSTS,REVENUE
Walsall Council,http://opendatacommunities.org/id/metropolitan-district-council/walsall,WC121-489,31.12.2021,CHILDRENS,ALDRIDGE & BARONS LIMITED,02/12/2020,"1,372.00",52000-Hire of Vehicle with Driver,TRANSPORT,DIRECT TRANSPORT COSTS,REVENUE
Walsall Council,http://opendatacommunities.org/id/metropolitan-district-council/walsall,WC121-490,31.12.2021,CHILDRENS,ALDRIDGE & BARONS LIMITED,02/12/2020,"1,062.00",52000-Hire of Vehicle with Driver,TRANSPORT,DIRECT TRANSPORT COSTS,REVENUE
Walsall Council,http://opendatacommunities.org/id/metropolitan-district-council/walsall,WC121-491,31.12.2021,CHILDRENS,ALDRIDGE & BARONS LIMITED,02/12/2020,820.00,52000-Hire of Vehicle with Driver,TRANSPORT,DIRECT TRANSPORT COSTS,REVENUE
Walsall Council,http://opendatacommunities.org/id/metropolitan-district-council/walsall,WC121-492,31.12.2021,CHILDRENS,ALDRIDGE & BARONS LIMITED,02/12/2020,"1,176.00",52000-Hire of Vehicle with Driver,TRANSPORT,DIRECT TRANSPORT COSTS,REVENUE
Walsall Council,http://opendatacommunities.org/id/metropolitan-district-council/walsall,WC121-493,31.12.2021,CHILDRENS,ALDRIDGE & BARONS LIMITED,02/12/2020,"1,652.40",52000-Hire of Vehicle with Driver,TRANSPORT,DIRECT TRANSPORT COSTS,REVENUE
Walsall Council,http://opendatacommunities.org/id/metropolitan-district-council/walsall,WC121-494,31.12.2021,CHILDRENS,ALDRIDGE & BARONS LIMITED,02/12/2020,870.00,52000-Hire of Vehicle with Driver,TRANSPORT,DIRECT TRANSPORT COSTS,REVENUE
Walsall Council,http://opendatacommunities.org/id/metropolitan-district-council/walsall,WC121-495,31.12.2021,CHILDRENS,ALDRIDGE & BARONS LIMITED,02/12/2020,855.00,52000-Hire of Vehicle with Driver,TRANSPORT,DIRECT TRANSPORT COSTS,REVENUE
Walsall Council,http://opendatacommunities.org/id/metropolitan-district-council/walsall,WC121-496,31.12.2021,CHILDRENS,ALDRIDGE & BARONS LIMITED,02/12/2020,"3,535.00",52000-Hire of Vehicle with Driver,TRANSPORT,DIRECT TRANSPORT COSTS,REVENUE
Walsall Council,http://opendatacommunities.org/id/metropolitan-district-council/walsall,WC121-497,31.12.2021,CHILDRENS,ALDRIDGE & BARONS LIMITED,02/12/2020,"1,503.36",52000-Hire of Vehicle with Driver,TRANSPORT,DIRECT TRANSPORT COSTS,REVENUE
Walsall Council,http://opendatacommunities.org/id/metropolitan-district-council/walsall,WC121-498,31.12.2021,CHILDRENS,ALDRIDGE & BARONS LIMITED,02/12/2020,"1,400.00",52000-Hire of Vehicle with Driver,TRANSPORT,DIRECT TRANSPORT COSTS,REVENUE
Walsall Council,http://opendatacommunities.org/id/metropolitan-district-council/walsall,WC121-499,31.12.2021,CHILDRENS,ALDRIDGE & BARONS LIMITED,02/12/2020,"1,200.00",52000-Hire of Vehicle with Driver,TRANSPORT,DIRECT TRANSPORT COSTS,REVENUE
Walsall Council,http://opendatacommunities.org/id/metropolitan-district-council/walsall,WC121-500,31.12.2021,CHILDRENS,ALDRIDGE & BARONS LIMITED,02/12/2020,"1,364.40",52000-Hire of Vehicle with Driver,TRANSPORT,DIRECT TRANSPORT COSTS,REVENUE
Walsall Council,http://opendatacommunities.org/id/metropolitan-district-council/walsall,WC121-501,31.12.2021,CHILDRENS,ALDRIDGE & BARONS LIMITED,02/12/2020,"2,250.00",52000-Hire of Vehicle with Driver,TRANSPORT,DIRECT TRANSPORT COSTS,REVENUE
Walsall Council,http://opendatacommunities.org/id/metropolitan-district-council/walsall,WC121-502,31.12.2021,CHILDRENS,ALDRIDGE & BARONS LIMITED,02/12/2020,"1,290.00",52000-Hire of Vehicle with Driver,TRANSPORT,DIRECT TRANSPORT COSTS,REVENUE
Walsall Council,http://opendatacommunities.org/id/metropolitan-district-council/walsall,WC121-503,31.12.2021,CHILDRENS,ALDRIDGE & BARONS LIMITED,02/12/2020,"1,573.96",52000-Hire of Vehicle with Driver,TRANSPORT,DIRECT TRANSPORT COSTS,REVENUE
Walsall Council,http://opendatacommunities.org/id/metropolitan-district-council/walsall,WC121-504,31.12.2021,CHILDRENS,ALDRIDGE & BARONS LIMITED,02/12/2020,855.00,52000-Hire of Vehicle with Driver,TRANSPORT,DIRECT TRANSPORT COSTS,REVENUE
Walsall Council,http://opendatacommunities.org/id/metropolitan-district-council/walsall,WC121-505,31.12.2021,CHILDRENS,ALDRIDGE & BARONS LIMITED,02/12/2020,"1,134.90",52000-Hire of Vehicle with Driver,TRANSPORT,DIRECT TRANSPORT COSTS,REVENUE
Walsall Council,http://opendatacommunities.org/id/metropolitan-district-council/walsall,WC121-506,31.12.2021,CHILDRENS,ALDRIDGE & BARONS LIMITED,02/12/2020,"1,410.00",52000-Hire of Vehicle with Driver,TRANSPORT,DIRECT TRANSPORT COSTS,REVENUE
Walsall Council,http://opendatacommunities.org/id/metropolitan-district-council/walsall,WC121-507,31.12.2021,CHILDRENS,ALDRIDGE & BARONS LIMITED,02/12/2020,"1,786.00",52000-Hire of Vehicle with Driver,TRANSPORT,DIRECT TRANSPORT COSTS,REVENUE
Walsall Council,http://opendatacommunities.org/id/metropolitan-district-council/walsall,WC121-508,31.12.2021,CHILDRENS,ALDRIDGE & BARONS LIMITED,02/12/2020,"1,896.00",52000-Hire of Vehicle with Driver,TRANSPORT,DIRECT TRANSPORT COSTS,REVENUE
Walsall Council,http://opendatacommunities.org/id/metropolitan-district-council/walsall,WC121-509,31.12.2021,CHILDRENS,ALDRIDGE & BARONS LIMITED,02/12/2020,"1,050.00",52000-Hire of Vehicle with Driver,TRANSPORT,DIRECT TRANSPORT COSTS,REVENUE
Walsall Council,http://opendatacommunities.org/id/metropolitan-district-council/walsall,WC121-510,31.12.2021,CHILDRENS,ALDRIDGE & BARONS LIMITED,02/12/2020,540.00,52000-Hire of Vehicle with Driver,TRANSPORT,DIRECT TRANSPORT COSTS,REVENUE
Walsall Council,http://opendatacommunities.org/id/metropolitan-district-council/walsall,WC121-511,31.12.2021,CHILDRENS,ALDRIDGE & BARONS LIMITED,02/12/2020,"1,413.75",52000-Hire of Vehicle with Driver,TRANSPORT,DIRECT TRANSPORT COSTS,REVENUE
Walsall Council,http://opendatacommunities.org/id/metropolitan-district-council/walsall,WC121-512,31.12.2021,CHILDRENS,ALDRIDGE & BARONS LIMITED,02/12/2020,"3,081.40",52000-Hire of Vehicle with Driver,TRANSPORT,DIRECT TRANSPORT COSTS,REVENUE
Walsall Council,http://opendatacommunities.org/id/metropolitan-district-council/walsall,WC121-513,31.12.2021,CHILDRENS,ALDRIDGE & BARONS LIMITED,02/12/2020,"1,347.84",52000-Hire of Vehicle with Driver,TRANSPORT,DIRECT TRANSPORT COSTS,REVENUE
Walsall Council,http://opendatacommunities.org/id/metropolitan-district-council/walsall,WC121-514,31.12.2021,CHILDRENS,ALDRIDGE & BARONS LIMITED,02/12/2020,"1,200.00",52000-Hire of Vehicle with Driver,TRANSPORT,DIRECT TRANSPORT COSTS,REVENUE
Walsall Council,http://opendatacommunities.org/id/metropolitan-district-council/walsall,WC121-515,31.12.2021,CHILDRENS,ALDRIDGE & BARONS LIMITED,02/12/2020,"1,350.00",52000-Hire of Vehicle with Driver,TRANSPORT,DIRECT TRANSPORT COSTS,REVENUE
Walsall Council,http://opendatacommunities.org/id/metropolitan-district-council/walsall,WC121-516,31.12.2021,CHILDRENS,ALDRIDGE & BARONS LIMITED,02/12/2020,"1,560.00",52000-Hire of Vehicle with Driver,TRANSPORT,DIRECT TRANSPORT COSTS,REVENUE
Walsall Council,http://opendatacommunities.org/id/metropolitan-district-council/walsall,WC121-517,31.12.2021,CHILDRENS,ALDRIDGE & BARONS LIMITED,02/12/2020,"2,845.80",52000-Hire of Vehicle with Driver,TRANSPORT,DIRECT TRANSPORT COSTS,REVENUE
Walsall Council,http://opendatacommunities.org/id/metropolitan-district-council/walsall,WC121-518,31.12.2021,CHILDRENS,ALDRIDGE & BARONS LIMITED,23/12/2020,"1,176.00",52000-Hire of Vehicle with Driver,TRANSPORT,DIRECT TRANSPORT COSTS,REVENUE
Walsall Council,http://opendatacommunities.org/id/metropolitan-district-council/walsall,WC121-519,31.12.2021,CHILDRENS,ALDRIDGE & BARONS LIMITED,23/12/2020,"1,944.00",52000-Hire of Vehicle with Driver,TRANSPORT,DIRECT TRANSPORT COSTS,REVENUE
Walsall Council,http://opendatacommunities.org/id/metropolitan-district-council/walsall,WC121-520,31.12.2021,CHILDRENS,ALDRIDGE & BARONS LIMITED,23/12/2020,"1,160.00",52000-Hire of Vehicle with Driver,TRANSPORT,DIRECT TRANSPORT COSTS,REVENUE
Walsall Council,http://opendatacommunities.org/id/metropolitan-district-council/walsall,WC121-521,31.12.2021,CHILDRENS,ALDRIDGE & BARONS LIMITED,23/12/2020,"1,600.00",52000-Hire of Vehicle with Driver,TRANSPORT,DIRECT TRANSPORT COSTS,REVENUE
Walsall Council,http://opendatacommunities.org/id/metropolitan-district-council/walsall,WC121-522,31.12.2021,CHILDRENS,ALDRIDGE & BARONS LIMITED,23/12/2020,"1,819.20",52000-Hire of Vehicle with Driver,TRANSPORT,DIRECT TRANSPORT COSTS,REVENUE
Walsall Council,http://opendatacommunities.org/id/metropolitan-district-council/walsall,WC121-523,31.12.2021,CHILDRENS,ALDRIDGE & BARONS LIMITED,23/12/2020,"3,000.00",52000-Hire of Vehicle with Driver,TRANSPORT,DIRECT TRANSPORT COSTS,REVENUE
Walsall Council,http://opendatacommunities.org/id/metropolitan-district-council/walsall,WC121-524,31.12.2021,CHILDRENS,ALDRIDGE & BARONS LIMITED,23/12/2020,"1,634.00",52000-Hire of Vehicle with Driver,TRANSPORT,DIRECT TRANSPORT COSTS,REVENUE
Walsall Council,http://opendatacommunities.org/id/metropolitan-district-council/walsall,WC121-525,31.12.2021,CHILDRENS,ALDRIDGE & BARONS LIMITED,23/12/2020,"1,656.80",52000-Hire of Vehicle with Driver,TRANSPORT,DIRECT TRANSPORT COSTS,REVENUE
Walsall Council,http://opendatacommunities.org/id/metropolitan-district-council/walsall,WC121-526,31.12.2021,CHILDRENS,ALDRIDGE & BARONS LIMITED,23/12/2020,"1,805.00",52000-Hire of Vehicle with Driver,TRANSPORT,DIRECT TRANSPORT COSTS,REVENUE
Walsall Council,http://opendatacommunities.org/id/metropolitan-district-council/walsall,WC121-527,31.12.2021,CHILDRENS,ALDRIDGE & BARONS LIMITED,23/12/2020,"1,512.00",52000-Hire of Vehicle with Driver,TRANSPORT,DIRECT TRANSPORT COSTS,REVENUE
Walsall Council,http://opendatacommunities.org/id/metropolitan-district-council/walsall,WC121-528,31.12.2021,CHILDRENS,ALDRIDGE & BARONS LIMITED,23/12/2020,"2,154.60",52000-Hire of Vehicle with Driver,TRANSPORT,DIRECT TRANSPORT COSTS,REVENUE
Walsall Council,http://opendatacommunities.org/id/metropolitan-district-council/walsall,WC121-529,31.12.2021,CHILDRENS,ALDRIDGE & BARONS LIMITED,23/12/2020,"2,556.00",52000-Hire of Vehicle with Driver,TRANSPORT,DIRECT TRANSPORT COSTS,REVENUE
Walsall Council,http://opendatacommunities.org/id/metropolitan-district-council/walsall,WC121-530,31.12.2021,CHILDRENS,ALDRIDGE & BARONS LIMITED,23/12/2020,"1,960.00",52000-Hire of Vehicle with Driver,TRANSPORT,DIRECT TRANSPORT COSTS,REVENUE
Walsall Council,http://opendatacommunities.org/id/metropolitan-district-council/walsall,WC121-531,31.12.2021,CHILDRENS,ALDRIDGE & BARONS LIMITED,23/12/2020,"1,416.00",52000-Hire of Vehicle with Driver,TRANSPORT,DIRECT TRANSPORT COSTS,REVENUE
Walsall Council,http://opendatacommunities.org/id/metropolitan-district-council/walsall,WC121-532,31.12.2021,CHILDRENS,ALDRIDGE & BARONS LIMITED,23/12/2020,"1,640.00",52000-Hire of Vehicle with Driver,TRANSPORT,DIRECT TRANSPORT COSTS,REVENUE
Walsall Council,http://opendatacommunities.org/id/metropolitan-district-council/walsall,WC121-533,31.12.2021,CHILDRENS,ALDRIDGE & BARONS LIMITED,23/12/2020,"2,138.40",52000-Hire of Vehicle with Driver,TRANSPORT,DIRECT TRANSPORT COSTS,REVENUE
Walsall Council,http://opendatacommunities.org/id/metropolitan-district-council/walsall,WC121-534,31.12.2021,CHILDRENS,ALDRIDGE & BARONS LIMITED,23/12/2020,"2,000.00",52000-Hire of Vehicle with Driver,TRANSPORT,DIRECT TRANSPORT COSTS,REVENUE
Walsall Council,http://opendatacommunities.org/id/metropolitan-district-council/walsall,WC121-535,31.12.2021,CHILDRENS,ALDRIDGE & BARONS LIMITED,23/12/2020,470.00,52000-Hire of Vehicle with Driver,TRANSPORT,DIRECT TRANSPORT COSTS,REVENUE
Walsall Council,http://opendatacommunities.org/id/metropolitan-district-council/walsall,WC121-536,31.12.2021,CHILDRENS,ALDRIDGE & BARONS LIMITED,23/12/2020,"1,885.00",52000-Hire of Vehicle with Driver,TRANSPORT,DIRECT TRANSPORT COSTS,REVENUE
Walsall Council,http://opendatacommunities.org/id/metropolitan-district-council/walsall,WC121-537,31.12.2021,CHILDRENS,ALDRIDGE & BARONS LIMITED,23/12/2020,"1,988.00",52000-Hire of Vehicle with Driver,TRANSPORT,DIRECT TRANSPORT COSTS,REVENUE
Walsall Council,http://opendatacommunities.org/id/metropolitan-district-council/walsall,WC121-538,31.12.2021,CHILDRENS,ALDRIDGE & BARONS LIMITED,23/12/2020,"1,956.00",52000-Hire of Vehicle with Driver,TRANSPORT,DIRECT TRANSPORT COSTS,REVENUE
Walsall Council,http://opendatacommunities.org/id/metropolitan-district-council/walsall,WC121-539,31.12.2021,CHILDRENS,ALDRIDGE & BARONS LIMITED,23/12/2020,"1,600.00",52000-Hire of Vehicle with Driver,TRANSPORT,DIRECT TRANSPORT COSTS,REVENUE
Walsall Council,http://opendatacommunities.org/id/metropolitan-district-council/walsall,WC121-540,31.12.2021,CHILDRENS,ALDRIDGE & BARONS LIMITED,23/12/2020,350.00,52000-Hire of Vehicle with Driver,TRANSPORT,DIRECT TRANSPORT COSTS,REVENUE
Walsall Council,http://opendatacommunities.org/id/metropolitan-district-council/walsall,WC121-541,31.12.2021,CHILDRENS,ALDRIDGE & BARONS LIMITED,23/12/2020,"1,880.00",52000-Hire of Vehicle with Driver,TRANSPORT,DIRECT TRANSPORT COSTS,REVENUE
Walsall Council,http://opendatacommunities.org/id/metropolitan-district-council/walsall,WC121-542,31.12.2021,CHILDRENS,ALDRIDGE & BARONS LIMITED,23/12/2020,"1,786.00",52000-Hire of Vehicle with Driver,TRANSPORT,DIRECT TRANSPORT COSTS,REVENUE
Walsall Council,http://opendatacommunities.org/id/metropolitan-district-council/walsall,WC121-543,31.12.2021,CHILDRENS,ALDRIDGE & BARONS LIMITED,23/12/2020,"2,528.00",52000-Hire of Vehicle with Driver,TRANSPORT,DIRECT TRANSPORT COSTS,REVENUE
Walsall Council,http://opendatacommunities.org/id/metropolitan-district-council/walsall,WC121-544,31.12.2021,CHILDRENS,ALDRIDGE & BARONS LIMITED,23/12/2020,"1,400.00",52000-Hire of Vehicle with Driver,TRANSPORT,DIRECT TRANSPORT COSTS,REVENUE
Walsall Council,http://opendatacommunities.org/id/metropolitan-district-council/walsall,WC121-545,31.12.2021,CHILDRENS,ALDRIDGE & BARONS LIMITED,23/12/2020,720.00,52000-Hire of Vehicle with Driver,TRANSPORT,DIRECT TRANSPORT COSTS,REVENUE
Walsall Council,http://opendatacommunities.org/id/metropolitan-district-council/walsall,WC121-546,31.12.2021,CHILDRENS,ALDRIDGE & BARONS LIMITED,23/12/2020,322.00,52000-Hire of Vehicle with Driver,TRANSPORT,DIRECT TRANSPORT COSTS,REVENUE
Walsall Council,http://opendatacommunities.org/id/metropolitan-district-council/walsall,WC121-547,31.12.2021,CHILDRENS,ALDRIDGE & BARONS LIMITED,23/12/2020,"1,800.00",52000-Hire of Vehicle with Driver,TRANSPORT,DIRECT TRANSPORT COSTS,REVENUE
Walsall Council,http://opendatacommunities.org/id/metropolitan-district-council/walsall,WC121-548,31.12.2021,CHILDRENS,ALDRIDGE & BARONS LIMITED,23/12/2020,"2,080.00",52000-Hire of Vehicle with Driver,TRANSPORT,DIRECT TRANSPORT COSTS,REVENUE
Walsall Council,http://opendatacommunities.org/id/metropolitan-district-council/walsall,WC121-549,31.12.2021,CHILDRENS,ALDRIDGE & BARONS LIMITED,23/12/2020,"1,116.00",52000-Hire of Vehicle with Driver,TRANSPORT,DIRECT TRANSPORT COSTS,REVENUE
Walsall Council,http://opendatacommunities.org/id/metropolitan-district-council/walsall,WC121-550,31.12.2021,CHILDRENS,ALDRIDGE ACCIDENT REPAIR CENTRE,04/12/2020,"14,859.00",40000-Operational Maintenance,PREMISES,REPAIRS & MAINTENANCE,REVENUE
Walsall Council,http://opendatacommunities.org/id/metropolitan-district-council/walsall,WC121-551,31.12.2021,ADULT SOCIAL CARE,ALDRIDGE METHODIST CHURCH 001,07/12/2020,"1,090.91",63102-Consultant Fees,SUPPLIES & SERVICES,SERVICES,REVENUE
Walsall Council,http://opendatacommunities.org/id/metropolitan-district-council/walsall,WC121-552,31.12.2021,ADULT SOCIAL CARE,ALDRIDGE METHODIST CHURCH 001,02/12/2020,"1,090.91",63102-Consultant Fees,SUPPLIES & SERVICES,SERVICES,REVENUE
Walsall Council,http://opendatacommunities.org/id/metropolitan-district-council/walsall,WC121-553,31.12.2021,CHILDRENS,ALL SAINTS NATIONAL ACADEMY #1,02/12/2020,"11,052.72",66502-Top Up Funding -Grants to Schools,SUPPLIES & SERVICES,GRANTS (EXP) & SUBSCRIPTIONS,REVENUE
Walsall Council,http://opendatacommunities.org/id/metropolitan-district-council/walsall,WC121-554,31.12.2021,RESOURCES AND TRANSFORMATION,ALLIED PUBLICITY SERVICES (MANCHESTER) LIMITED T/A APS GROUP,01/12/2020,"1,134.59",62000-External Printing Services,SUPPLIES & SERVICES,PRINTING STATIONERY & GENERAL OFFICE,REVENUE
Walsall Council,http://opendatacommunities.org/id/metropolitan-district-council/walsall,WC121-555,31.12.2021,RESOURCES AND TRANSFORMATION,ALLIED PUBLICITY SERVICES (MANCHESTER) LIMITED T/A APS GROUP,02/12/2020,971.38,62000-External Printing Services,SUPPLIES & SERVICES,PRINTING STATIONERY & GENERAL OFFICE,REVENUE
Walsall Council,http://opendatacommunities.org/id/metropolitan-district-council/walsall,WC121-556,31.12.2021,ADULT SOCIAL CARE,ALMA COURT,02/12/2020,"6,642.86",73025-Professional Services-Priv Contractor & Other Agencies,THIRD PARTY PAYMENTS,PRIVATE CONTRACTOR,REVENUE
Walsall Council,http://opendatacommunities.org/id/metropolitan-district-council/walsall,WC121-557,31.12.2021,ADULT SOCIAL CARE,ALMA COURT,11/12/2020,"4,200.00",73025-Professional Services-Priv Contractor & Other Agencies,THIRD PARTY PAYMENTS,PRIVATE CONTRACTOR,REVENUE
Walsall Council,http://opendatacommunities.org/id/metropolitan-district-council/walsall,WC121-558,31.12.2021,ADULT SOCIAL CARE,ALMA COURT,18/12/2020,"6,553.60",73500-Residential,THIRD PARTY PAYMENTS,PRIVATE CONTRACTOR,REVENUE
Walsall Council,http://opendatacommunities.org/id/metropolitan-district-council/walsall,WC121-559,31.12.2021,ADULT SOCIAL CARE,ALMA COURT,18/12/2020,"4,737.92",73503-Nursing EMI,THIRD PARTY PAYMENTS,PRIVATE CONTRACTOR,REVENUE
Walsall Council,http://opendatacommunities.org/id/metropolitan-district-council/walsall,WC121-560,31.12.2021,ADULT SOCIAL CARE,ALMA COURT,18/12/2020,"5,939.20",73503-Nursing EMI,THIRD PARTY PAYMENTS,PRIVATE CONTRACTOR,REVENUE
Walsall Council,http://opendatacommunities.org/id/metropolitan-district-council/walsall,WC121-561,31.12.2021,ADULT SOCIAL CARE,ALMA COURT,21/12/2020,"-2,571.43",73025-Professional Services-Priv Contractor & Other Agencies,THIRD PARTY PAYMENTS,PRIVATE CONTRACTOR,REVENUE
Walsall Council,http://opendatacommunities.org/id/metropolitan-district-council/walsall,WC121-562,31.12.2021,ADULT SOCIAL CARE,ALPHA HEALTH CARE LTD,02/12/2020,371.43,73025-Professional Services-Priv Contractor & Other Agencies,THIRD PARTY PAYMENTS,PRIVATE CONTRACTOR,REVENUE
Walsall Council,http://opendatacommunities.org/id/metropolitan-district-council/walsall,WC121-563,31.12.2021,ADULT SOCIAL CARE,ALPHA HEALTH CARE LTD,11/12/2020,"7,750.00",73025-Professional Services-Priv Contractor & Other Agencies,THIRD PARTY PAYMENTS,PRIVATE CONTRACTOR,REVENUE
Walsall Council,http://opendatacommunities.org/id/metropolitan-district-council/walsall,WC121-564,31.12.2021,ADULT SOCIAL CARE,ALPHA HEALTH CARE LTD,11/12/2020,"4,207.14",73025-Professional Services-Priv Contractor & Other Agencies,THIRD PARTY PAYMENTS,PRIVATE CONTRACTOR,REVENUE
Walsall Council,http://opendatacommunities.org/id/metropolitan-district-council/walsall,WC121-565,31.12.2021,ADULT SOCIAL CARE,ALPHA HEALTH CARE LTD,18/12/2020,"2,831.48",73501-Residential EMI,THIRD PARTY PAYMENTS,PRIVATE CONTRACTOR,REVENUE
Walsall Council,http://opendatacommunities.org/id/metropolitan-district-council/walsall,WC121-566,31.12.2021,ADULT SOCIAL CARE,ALPHA HEALTH CARE LTD,18/12/2020,"2,881.80",73503-Nursing EMI,THIRD PARTY PAYMENTS,PRIVATE CONTRACTOR,REVENUE
Walsall Council,http://opendatacommunities.org/id/metropolitan-district-council/walsall,WC121-567,31.12.2021,ADULT SOCIAL CARE,ALPHA HEALTH CARE LTD,18/12/2020,"2,696.00",73503-Nursing EMI,THIRD PARTY PAYMENTS,PRIVATE CONTRACTOR,REVENUE
Walsall Council,http://opendatacommunities.org/id/metropolitan-district-council/walsall,WC121-568,31.12.2021,ADULT SOCIAL CARE,ALPHA HEALTH CARE LTD,18/12/2020,"2,044.00",73500-Residential,THIRD PARTY PAYMENTS,PRIVATE CONTRACTOR,REVENUE
Walsall Council,http://opendatacommunities.org/id/metropolitan-district-council/walsall,WC121-569,31.12.2021,ADULT SOCIAL CARE,ALPHA HEALTH CARE LTD,18/12/2020,"3,035.72",73501-Residential EMI,THIRD PARTY PAYMENTS,PRIVATE CONTRACTOR,REVENUE
Walsall Council,http://opendatacommunities.org/id/metropolitan-district-council/walsall,WC121-570,31.12.2021,ADULT SOCIAL CARE,ALPHA HEALTH CARE LTD,18/12/2020,"2,308.00",73501-Residential EMI,THIRD PARTY PAYMENTS,PRIVATE CONTRACTOR,REVENUE
Walsall Council,http://opendatacommunities.org/id/metropolitan-district-council/walsall,WC121-571,31.12.2021,ADULT SOCIAL CARE,ALPHA HEALTH CARE LTD,18/12/2020,"2,881.84",73503-Nursing EMI,THIRD PARTY PAYMENTS,PRIVATE CONTRACTOR,REVENUE
Walsall Council,http://opendatacommunities.org/id/metropolitan-district-council/walsall,WC121-572,31.12.2021,ADULT SOCIAL CARE,ALPHA HEALTH CARE LTD,18/12/2020,"2,696.00",73503-Nursing EMI,THIRD PARTY PAYMENTS,PRIVATE CONTRACTOR,REVENUE
Walsall Council,http://opendatacommunities.org/id/metropolitan-district-council/walsall,WC121-573,31.12.2021,ADULT SOCIAL CARE,ALPHA HEALTH CARE LTD,18/12/2020,"2,937.88",73503-Nursing EMI,THIRD PARTY PAYMENTS,PRIVATE CONTRACTOR,REVENUE
Walsall Council,http://opendatacommunities.org/id/metropolitan-district-council/walsall,WC121-574,31.12.2021,ADULT SOCIAL CARE,ALPHA HEALTH CARE LTD,18/12/2020,"2,308.00",73501-Residential EMI,THIRD PARTY PAYMENTS,PRIVATE CONTRACTOR,REVENUE
Walsall Council,http://opendatacommunities.org/id/metropolitan-district-council/walsall,WC121-575,31.12.2021,ADULT SOCIAL CARE,ALPHA HEALTH CARE LTD,18/12/2020,"2,308.00",73501-Residential EMI,THIRD PARTY PAYMENTS,PRIVATE CONTRACTOR,REVENUE
Walsall Council,http://opendatacommunities.org/id/metropolitan-district-council/walsall,WC121-576,31.12.2021,ADULT SOCIAL CARE,ALPHA HEALTH CARE LTD,18/12/2020,"3,180.00",73501-Residential EMI,THIRD PARTY PAYMENTS,PRIVATE CONTRACTOR,REVENUE
Walsall Council,http://opendatacommunities.org/id/metropolitan-district-council/walsall,WC121-577,31.12.2021,ADULT SOCIAL CARE,ALPHA HEALTH CARE LTD,18/12/2020,"3,600.00",73503-Nursing EMI,THIRD PARTY PAYMENTS,PRIVATE CONTRACTOR,REVENUE
Walsall Council,http://opendatacommunities.org/id/metropolitan-district-council/walsall,WC121-578,31.12.2021,ADULT SOCIAL CARE,ALPHA HEALTH CARE LTD,18/12/2020,"7,000.00",73503-Nursing EMI,THIRD PARTY PAYMENTS,PRIVATE CONTRACTOR,REVENUE
Walsall Council,http://opendatacommunities.org/id/metropolitan-district-council/walsall,WC121-579,31.12.2021,ADULT SOCIAL CARE,ALPHA HEALTH CARE LTD,18/12/2020,"5,600.00",73500-Residential,THIRD PARTY PAYMENTS,PRIVATE CONTRACTOR,REVENUE
Walsall Council,http://opendatacommunities.org/id/metropolitan-district-council/walsall,WC121-580,31.12.2021,ADULT SOCIAL CARE,ALPHA HEALTH CARE LTD,18/12/2020,"3,611.52",73503-Nursing EMI,THIRD PARTY PAYMENTS,PRIVATE CONTRACTOR,REVENUE
Walsall Council,http://opendatacommunities.org/id/metropolitan-district-council/walsall,WC121-581,31.12.2021,ADULT SOCIAL CARE,ALPHA HEALTH CARE LTD,18/12/2020,"2,396.00",73502-Nursing,THIRD PARTY PAYMENTS,PRIVATE CONTRACTOR,REVENUE
Walsall Council,http://opendatacommunities.org/id/metropolitan-district-council/walsall,WC121-582,31.12.2021,ADULT SOCIAL CARE,ALPHA HEALTH CARE LTD,18/12/2020,"2,696.00",73503-Nursing EMI,THIRD PARTY PAYMENTS,PRIVATE CONTRACTOR,REVENUE
Walsall Council,http://opendatacommunities.org/id/metropolitan-district-council/walsall,WC121-583,31.12.2021,ADULT SOCIAL CARE,ALPHA HEALTH CARE LTD,18/12/2020,"3,290.36",73503-Nursing EMI,THIRD PARTY PAYMENTS,PRIVATE CONTRACTOR,REVENUE
Walsall Council,http://opendatacommunities.org/id/metropolitan-district-council/walsall,WC121-584,31.12.2021,ADULT SOCIAL CARE,ALPHA HEALTH CARE LTD,18/12/2020,"2,937.76",73502-Nursing,THIRD PARTY PAYMENTS,PRIVATE CONTRACTOR,REVENUE
Walsall Council,http://opendatacommunities.org/id/metropolitan-district-council/walsall,WC121-585,31.12.2021,ADULT SOCIAL CARE,ALPHA HEALTH CARE LTD,18/12/2020,"3,180.00",73500-Residential,THIRD PARTY PAYMENTS,PRIVATE CONTRACTOR,REVENUE
Walsall Council,http://opendatacommunities.org/id/metropolitan-district-council/walsall,WC121-586,31.12.2021,ADULT SOCIAL CARE,ALPHA HEALTH CARE LTD,18/12/2020,"-7,426.00",73503-Nursing EMI,THIRD PARTY PAYMENTS,PRIVATE CONTRACTOR,REVENUE
Walsall Council,http://opendatacommunities.org/id/metropolitan-district-council/walsall,WC121-587,31.12.2021,ADULT SOCIAL CARE,ALPHA HEALTH CARE LTD,18/12/2020,"2,308.00",73501-Residential EMI,THIRD PARTY PAYMENTS,PRIVATE CONTRACTOR,REVENUE
Walsall Council,http://opendatacommunities.org/id/metropolitan-district-council/walsall,WC121-588,31.12.2021,ADULT SOCIAL CARE,ALPHA HEALTH CARE LTD,18/12/2020,"7,500.00",73025-Professional Services-Priv Contractor & Other Agencies,THIRD PARTY PAYMENTS,PRIVATE CONTRACTOR,REVENUE
Walsall Council,http://opendatacommunities.org/id/metropolitan-district-council/walsall,WC121-589,31.12.2021,ADULT SOCIAL CARE,ALPHA HEALTH CARE LTD,18/12/2020,"3,857.14",73025-Professional Services-Priv Contractor & Other Agencies,THIRD PARTY PAYMENTS,PRIVATE CONTRACTOR,REVENUE
Walsall Council,http://opendatacommunities.org/id/metropolitan-district-council/walsall,WC121-590,31.12.2021,ADULT SOCIAL CARE,ALPHA HEALTH CARE LTD,18/12/2020,"4,071.43",73025-Professional Services-Priv Contractor & Other Agencies,THIRD PARTY PAYMENTS,PRIVATE CONTRACTOR,REVENUE
Walsall Council,http://opendatacommunities.org/id/metropolitan-district-council/walsall,WC121-591,31.12.2021,ADULT SOCIAL CARE,ALPHA HEALTH CARE LTD,18/12/2020,"4,071.43",73025-Professional Services-Priv Contractor & Other Agencies,THIRD PARTY PAYMENTS,PRIVATE CONTRACTOR,REVENUE
Walsall Council,http://opendatacommunities.org/id/metropolitan-district-council/walsall,WC121-592,31.12.2021,ADULT SOCIAL CARE,ALPHA HEALTH CARE LTD,21/12/2020,"5,571.43",73025-Professional Services-Priv Contractor & Other Agencies,THIRD PARTY PAYMENTS,PRIVATE CONTRACTOR,REVENUE
Walsall Council,http://opendatacommunities.org/id/metropolitan-district-council/walsall,WC121-593,31.12.2021,CHILDRENS,ALPHA TRAINING ACADEMY UK LTD,02/12/2020,"7,242.00",63000-Professional Fees & Services,SUPPLIES & SERVICES,SERVICES,REVENUE
Walsall Council,http://opendatacommunities.org/id/metropolitan-district-council/walsall,WC121-594,31.12.2021,CHILDRENS,ALPHA TRAINING ACADEMY UK LTD,21/12/2020,"2,425.00",60500-Materials,SUPPLIES & SERVICES,EQUIPMENT FURNITURE & MATERIALS,REVENUE
Walsall Council,http://opendatacommunities.org/id/metropolitan-district-council/walsall,WC121-595,31.12.2021,RESOURCES AND TRANSFORMATION,ALPHABIOLABS,10/12/2020,280.00,73014-School Only Payments - Catering,THIRD PARTY PAYMENTS,INDEPENDENT UNIT WITHIN COUNCIL,REVENUE
Walsall Council,http://opendatacommunities.org/id/metropolitan-district-council/walsall,WC121-596,31.12.2021,CHILDRENS,AMAH NURSERIES LIMITED T/A BANANA MOON WALSALL,14/12/2020,893.76,66505-Other-Grants to Other Orgs,SUPPLIES & SERVICES,GRANTS (EXP) & SUBSCRIPTIONS,REVENUE
Walsall Council,http://opendatacommunities.org/id/metropolitan-district-council/walsall,WC121-597,31.12.2021,CHILDRENS,AMAH NURSERIES LIMITED T/A BANANA MOON WALSALL,14/12/2020,"2,046.66",66505-Other-Grants to Other Orgs,SUPPLIES & SERVICES,GRANTS (EXP) & SUBSCRIPTIONS,REVENUE
Walsall Council,http://opendatacommunities.org/id/metropolitan-district-council/walsall,WC121-598,31.12.2021,ECONOMY & ENVIRONMENT,AMEY LG LIMITED,01/12/2020,"4,169.71",60500-Materials,SUPPLIES & SERVICES,EQUIPMENT FURNITURE & MATERIALS,REVENUE
Walsall Council,http://opendatacommunities.org/id/metropolitan-district-council/walsall,WC121-599,31.12.2021,ECONOMY & ENVIRONMENT,AMEY LG LIMITED,07/12/2020,"1,255.64",60008-Repair & Maintenance of Furniture & Equipment,SUPPLIES & SERVICES,EQUIPMENT FURNITURE & MATERIALS,REVENUE
Walsall Council,http://opendatacommunities.org/id/metropolitan-district-council/walsall,WC121-600,31.12.2021,ECONOMY & ENVIRONMENT,AMEY LG LIMITED,29/12/2020,"10,758.45",60500-Materials,SUPPLIES & SERVICES,EQUIPMENT FURNITURE & MATERIALS,REVENUE
Walsall Council,http://opendatacommunities.org/id/metropolitan-district-council/walsall,WC121-601,31.12.2021,CHILDRENS,AMG NURSING CARE SERVICES,02/12/2020,"2,630.48",63000-Professional Fees & Services,SUPPLIES & SERVICES,SERVICES,REVENUE
Walsall Council,http://opendatacommunities.org/id/metropolitan-district-council/walsall,WC121-602,31.12.2021,ADULT SOCIAL CARE,ANCHOR CAREHOMES LTD - HARDEN HALL,18/12/2020,"2,266.12",73500-Residential,THIRD PARTY PAYMENTS,PRIVATE CONTRACTOR,REVENUE
Walsall Council,http://opendatacommunities.org/id/metropolitan-district-council/walsall,WC121-603,31.12.2021,ADULT SOCIAL CARE,ANCHOR CAREHOMES LTD - HARDEN HALL,18/12/2020,"2,332.24",73501-Residential EMI,THIRD PARTY PAYMENTS,PRIVATE CONTRACTOR,REVENUE
Walsall Council,http://opendatacommunities.org/id/metropolitan-district-council/walsall,WC121-604,31.12.2021,ADULT SOCIAL CARE,ANCHOR CAREHOMES LTD - HARDEN HALL,18/12/2020,"2,312.24",73501-Residential EMI,THIRD PARTY PAYMENTS,PRIVATE CONTRACTOR,REVENUE
Walsall Council,http://opendatacommunities.org/id/metropolitan-district-council/walsall,WC121-605,31.12.2021,ADULT SOCIAL CARE,ANCHOR CAREHOMES LTD - HARDEN HALL,18/12/2020,"2,308.00",73501-Residential EMI,THIRD PARTY PAYMENTS,PRIVATE CONTRACTOR,REVENUE
Walsall Council,http://opendatacommunities.org/id/metropolitan-district-council/walsall,WC121-606,31.12.2021,ADULT SOCIAL CARE,ANCHOR CAREHOMES LTD - HARDEN HALL,18/12/2020,"2,044.00",73500-Residential,THIRD PARTY PAYMENTS,PRIVATE CONTRACTOR,REVENUE
Walsall Council,http://opendatacommunities.org/id/metropolitan-district-council/walsall,WC121-607,31.12.2021,ADULT SOCIAL CARE,ANCHOR CAREHOMES LTD - HARDEN HALL,18/12/2020,"2,308.00",73501-Residential EMI,THIRD PARTY PAYMENTS,PRIVATE CONTRACTOR,REVENUE
Walsall Council,http://opendatacommunities.org/id/metropolitan-district-council/walsall,WC121-608,31.12.2021,ADULT SOCIAL CARE,ANCHOR CAREHOMES LTD - HARDEN HALL,18/12/2020,"2,308.00",73501-Residential EMI,THIRD PARTY PAYMENTS,PRIVATE CONTRACTOR,REVENUE
Walsall Council,http://opendatacommunities.org/id/metropolitan-district-council/walsall,WC121-609,31.12.2021,ADULT SOCIAL CARE,ANCHOR CAREHOMES LTD - HARDEN HALL,18/12/2020,"2,044.00",73500-Residential,THIRD PARTY PAYMENTS,PRIVATE CONTRACTOR,REVENUE
Walsall Council,http://opendatacommunities.org/id/metropolitan-district-council/walsall,WC121-610,31.12.2021,ADULT SOCIAL CARE,ANCHOR CAREHOMES LTD - HARDEN HALL,18/12/2020,"2,044.00",73500-Residential,THIRD PARTY PAYMENTS,PRIVATE CONTRACTOR,REVENUE
Walsall Council,http://opendatacommunities.org/id/metropolitan-district-council/walsall,WC121-611,31.12.2021,ADULT SOCIAL CARE,ANCHOR CAREHOMES LTD - HARDEN HALL,18/12/2020,"2,094.96",73500-Residential,THIRD PARTY PAYMENTS,PRIVATE CONTRACTOR,REVENUE
Walsall Council,http://opendatacommunities.org/id/metropolitan-district-council/walsall,WC121-612,31.12.2021,ADULT SOCIAL CARE,ANCHOR CAREHOMES LTD - HARDEN HALL,18/12/2020,"2,332.24",73501-Residential EMI,THIRD PARTY PAYMENTS,PRIVATE CONTRACTOR,REVENUE
Walsall Council,http://opendatacommunities.org/id/metropolitan-district-council/walsall,WC121-613,31.12.2021,ADULT SOCIAL CARE,ANCHOR CAREHOMES LTD - HARDEN HALL,18/12/2020,"2,308.00",73501-Residential EMI,THIRD PARTY PAYMENTS,PRIVATE CONTRACTOR,REVENUE
Walsall Council,http://opendatacommunities.org/id/metropolitan-district-council/walsall,WC121-614,31.12.2021,ADULT SOCIAL CARE,ANCHOR CAREHOMES LTD - HARDEN HALL,18/12/2020,"2,271.48",73501-Residential EMI,THIRD PARTY PAYMENTS,PRIVATE CONTRACTOR,REVENUE
Walsall Council,http://opendatacommunities.org/id/metropolitan-district-council/walsall,WC121-615,31.12.2021,ADULT SOCIAL CARE,ANCHOR CAREHOMES LTD - HARDEN HALL,18/12/2020,"2,044.00",73500-Residential,THIRD PARTY PAYMENTS,PRIVATE CONTRACTOR,REVENUE
Walsall Council,http://opendatacommunities.org/id/metropolitan-district-council/walsall,WC121-616,31.12.2021,ADULT SOCIAL CARE,ANCHOR CAREHOMES LTD - HARDEN HALL,18/12/2020,"2,312.24",73501-Residential EMI,THIRD PARTY PAYMENTS,PRIVATE CONTRACTOR,REVENUE
Walsall Council,http://opendatacommunities.org/id/metropolitan-district-council/walsall,WC121-617,31.12.2021,ADULT SOCIAL CARE,ANCHOR CAREHOMES LTD - HARDEN HALL,18/12/2020,"2,308.00",73501-Residential EMI,THIRD PARTY PAYMENTS,PRIVATE CONTRACTOR,REVENUE
Walsall Council,http://opendatacommunities.org/id/metropolitan-district-council/walsall,WC121-618,31.12.2021,ADULT SOCIAL CARE,ANCHOR CAREHOMES LTD - HARDEN HALL,18/12/2020,"2,054.96",73500-Residential,THIRD PARTY PAYMENTS,PRIVATE CONTRACTOR,REVENUE
Walsall Council,http://opendatacommunities.org/id/metropolitan-district-council/walsall,WC121-619,31.12.2021,ADULT SOCIAL CARE,ANCHOR CAREHOMES LTD - HARDEN HALL,18/12/2020,"2,308.00",73501-Residential EMI,THIRD PARTY PAYMENTS,PRIVATE CONTRACTOR,REVENUE
Walsall Council,http://opendatacommunities.org/id/metropolitan-district-council/walsall,WC121-620,31.12.2021,ADULT SOCIAL CARE,ANCHOR CAREHOMES LTD - HARDEN HALL,18/12/2020,"2,308.00",73501-Residential EMI,THIRD PARTY PAYMENTS,PRIVATE CONTRACTOR,REVENUE
Walsall Council,http://opendatacommunities.org/id/metropolitan-district-council/walsall,WC121-621,31.12.2021,ADULT SOCIAL CARE,ANCHOR CAREHOMES LTD - HARDEN HALL,18/12/2020,"2,308.00",73501-Residential EMI,THIRD PARTY PAYMENTS,PRIVATE CONTRACTOR,REVENUE
Walsall Council,http://opendatacommunities.org/id/metropolitan-district-council/walsall,WC121-622,31.12.2021,ADULT SOCIAL CARE,ANCHOR CAREHOMES LTD - HARDEN HALL,18/12/2020,"2,648.00",73501-Residential EMI,THIRD PARTY PAYMENTS,PRIVATE CONTRACTOR,REVENUE
Walsall Council,http://opendatacommunities.org/id/metropolitan-district-council/walsall,WC121-623,31.12.2021,ADULT SOCIAL CARE,ANCHOR CAREHOMES LTD - HARDEN HALL,18/12/2020,"2,332.24",73501-Residential EMI,THIRD PARTY PAYMENTS,PRIVATE CONTRACTOR,REVENUE
Walsall Council,http://opendatacommunities.org/id/metropolitan-district-council/walsall,WC121-624,31.12.2021,ADULT SOCIAL CARE,ANCHOR CAREHOMES LTD - HARDEN HALL,18/12/2020,"2,044.00",73500-Residential,THIRD PARTY PAYMENTS,PRIVATE CONTRACTOR,REVENUE
Walsall Council,http://opendatacommunities.org/id/metropolitan-district-council/walsall,WC121-625,31.12.2021,ADULT SOCIAL CARE,ANCHOR CAREHOMES LTD - HARDEN HALL,18/12/2020,"2,308.00",73501-Residential EMI,THIRD PARTY PAYMENTS,PRIVATE CONTRACTOR,REVENUE
Walsall Council,http://opendatacommunities.org/id/metropolitan-district-council/walsall,WC121-626,31.12.2021,ADULT SOCIAL CARE,ANCHOR CAREHOMES LTD - HARDEN HALL,18/12/2020,"2,308.00",73501-Residential EMI,THIRD PARTY PAYMENTS,PRIVATE CONTRACTOR,REVENUE
Walsall Council,http://opendatacommunities.org/id/metropolitan-district-council/walsall,WC121-627,31.12.2021,ADULT SOCIAL CARE,ANCHOR CAREHOMES LTD - HARDEN HALL,18/12/2020,"2,308.00",73501-Residential EMI,THIRD PARTY PAYMENTS,PRIVATE CONTRACTOR,REVENUE
Walsall Council,http://opendatacommunities.org/id/metropolitan-district-council/walsall,WC121-628,31.12.2021,ADULT SOCIAL CARE,ANCHOR CAREHOMES LTD - HARDEN HALL,18/12/2020,"2,409.00",73500-Residential,THIRD PARTY PAYMENTS,PRIVATE CONTRACTOR,REVENUE
Walsall Council,http://opendatacommunities.org/id/metropolitan-district-council/walsall,WC121-629,31.12.2021,ADULT SOCIAL CARE,ANCHOR CAREHOMES LTD - HARDEN HALL,18/12/2020,"2,308.00",73501-Residential EMI,THIRD PARTY PAYMENTS,PRIVATE CONTRACTOR,REVENUE
Walsall Council,http://opendatacommunities.org/id/metropolitan-district-council/walsall,WC121-630,31.12.2021,ADULT SOCIAL CARE,ANCHOR CAREHOMES LTD - HARDEN HALL,18/12/2020,"2,332.24",73501-Residential EMI,THIRD PARTY PAYMENTS,PRIVATE CONTRACTOR,REVENUE
Walsall Council,http://opendatacommunities.org/id/metropolitan-district-council/walsall,WC121-631,31.12.2021,ADULT SOCIAL CARE,ANCHOR CAREHOMES LTD - HARDEN HALL,18/12/2020,"2,308.00",73501-Residential EMI,THIRD PARTY PAYMENTS,PRIVATE CONTRACTOR,REVENUE
Walsall Council,http://opendatacommunities.org/id/metropolitan-district-council/walsall,WC121-632,31.12.2021,ADULT SOCIAL CARE,ANCHOR CAREHOMES LTD - HARDEN HALL,18/12/2020,"2,308.00",73501-Residential EMI,THIRD PARTY PAYMENTS,PRIVATE CONTRACTOR,REVENUE
Walsall Council,http://opendatacommunities.org/id/metropolitan-district-council/walsall,WC121-633,31.12.2021,ADULT SOCIAL CARE,ANCHOR CAREHOMES LTD - HARDEN HALL,18/12/2020,"2,358.96",73501-Residential EMI,THIRD PARTY PAYMENTS,PRIVATE CONTRACTOR,REVENUE
Walsall Council,http://opendatacommunities.org/id/metropolitan-district-council/walsall,WC121-634,31.12.2021,ADULT SOCIAL CARE,ANCHOR CAREHOMES LTD - HARDEN HALL,18/12/2020,"2,308.00",73501-Residential EMI,THIRD PARTY PAYMENTS,PRIVATE CONTRACTOR,REVENUE
Walsall Council,http://opendatacommunities.org/id/metropolitan-district-council/walsall,WC121-635,31.12.2021,ADULT SOCIAL CARE,ANCHOR CAREHOMES LTD - HARDEN HALL,18/12/2020,"2,044.00",73500-Residential,THIRD PARTY PAYMENTS,PRIVATE CONTRACTOR,REVENUE
Walsall Council,http://opendatacommunities.org/id/metropolitan-district-council/walsall,WC121-636,31.12.2021,CHILDRENS CAPITAL,ANDREWS ELECTRICAL LTD,02/12/2020,"1,120.00",01006-Site Works Contractors,CAPITAL,"NEW CONSTRUCTION,CONVERSION & RENOVATION",CAPITAL
Walsall Council,http://opendatacommunities.org/id/metropolitan-district-council/walsall,WC121-637,31.12.2021,CHILDRENS CAPITAL,ANDREWS ELECTRICAL LTD,29/12/2020,"15,380.00",01006-Site Works Contractors,CAPITAL,"NEW CONSTRUCTION,CONVERSION & RENOVATION",CAPITAL
Walsall Council,http://opendatacommunities.org/id/metropolitan-district-council/walsall,WC121-638,31.12.2021,CHILDRENS,ANGELS AND BUTTERFLIES CHILDMINDING,01/12/2020,"1,173.06",66505-Other-Grants to Other Orgs,SUPPLIES & SERVICES,GRANTS (EXP) & SUBSCRIPTIONS,REVENUE
Walsall Council,http://opendatacommunities.org/id/metropolitan-district-council/walsall,WC121-639,31.12.2021,ADULT SOCIAL CARE,ANSON COURT RESIDENTIAL HOME,18/12/2020,"2,308.00",73501-Residential EMI,THIRD PARTY PAYMENTS,PRIVATE CONTRACTOR,REVENUE
Walsall Council,http://opendatacommunities.org/id/metropolitan-district-council/walsall,WC121-640,31.12.2021,ADULT SOCIAL CARE,ANSON COURT RESIDENTIAL HOME,18/12/2020,"2,308.00",73501-Residential EMI,THIRD PARTY PAYMENTS,PRIVATE CONTRACTOR,REVENUE
Walsall Council,http://opendatacommunities.org/id/metropolitan-district-council/walsall,WC121-641,31.12.2021,ADULT SOCIAL CARE,ANSON COURT RESIDENTIAL HOME,18/12/2020,"2,308.00",73501-Residential EMI,THIRD PARTY PAYMENTS,PRIVATE CONTRACTOR,REVENUE
Walsall Council,http://opendatacommunities.org/id/metropolitan-district-council/walsall,WC121-642,31.12.2021,ADULT SOCIAL CARE,ANSON COURT RESIDENTIAL HOME,18/12/2020,"2,308.00",73501-Residential EMI,THIRD PARTY PAYMENTS,PRIVATE CONTRACTOR,REVENUE
Walsall Council,http://opendatacommunities.org/id/metropolitan-district-council/walsall,WC121-643,31.12.2021,ADULT SOCIAL CARE,ANSON COURT RESIDENTIAL HOME,18/12/2020,"1,401.29",73501-Residential EMI,THIRD PARTY PAYMENTS,PRIVATE CONTRACTOR,REVENUE
Walsall Council,http://opendatacommunities.org/id/metropolitan-district-council/walsall,WC121-644,31.12.2021,ADULT SOCIAL CARE,ANSON COURT RESIDENTIAL HOME,18/12/2020,"2,308.00",73501-Residential EMI,THIRD PARTY PAYMENTS,PRIVATE CONTRACTOR,REVENUE
Walsall Council,http://opendatacommunities.org/id/metropolitan-district-council/walsall,WC121-645,31.12.2021,ADULT SOCIAL CARE,ANSON COURT RESIDENTIAL HOME,18/12/2020,"2,308.00",73501-Residential EMI,THIRD PARTY PAYMENTS,PRIVATE CONTRACTOR,REVENUE
Walsall Council,http://opendatacommunities.org/id/metropolitan-district-council/walsall,WC121-646,31.12.2021,ADULT SOCIAL CARE,ANSON COURT RESIDENTIAL HOME,18/12/2020,"2,308.00",73501-Residential EMI,THIRD PARTY PAYMENTS,PRIVATE CONTRACTOR,REVENUE
Walsall Council,http://opendatacommunities.org/id/metropolitan-district-council/walsall,WC121-647,31.12.2021,ADULT SOCIAL CARE,ANSON COURT RESIDENTIAL HOME,18/12/2020,906.71,73501-Residential EMI,THIRD PARTY PAYMENTS,PRIVATE CONTRACTOR,REVENUE
Walsall Council,http://opendatacommunities.org/id/metropolitan-district-council/walsall,WC121-648,31.12.2021,ADULT SOCIAL CARE,ANSON COURT RESIDENTIAL HOME,18/12/2020,"2,164.00",73500-Residential,THIRD PARTY PAYMENTS,PRIVATE CONTRACTOR,REVENUE
Walsall Council,http://opendatacommunities.org/id/metropolitan-district-council/walsall,WC121-649,31.12.2021,ADULT SOCIAL CARE,ANSON COURT RESIDENTIAL HOME,18/12/2020,"1,071.57",73501-Residential EMI,THIRD PARTY PAYMENTS,PRIVATE CONTRACTOR,REVENUE
Walsall Council,http://opendatacommunities.org/id/metropolitan-district-council/walsall,WC121-650,31.12.2021,ADULT SOCIAL CARE,ANSON COURT RESIDENTIAL HOME,18/12/2020,"2,172.24",73500-Residential,THIRD PARTY PAYMENTS,PRIVATE CONTRACTOR,REVENUE
Walsall Council,http://opendatacommunities.org/id/metropolitan-district-council/walsall,WC121-651,31.12.2021,ADULT SOCIAL CARE,ANSON COURT RESIDENTIAL HOME,18/12/2020,"2,044.00",73500-Residential,THIRD PARTY PAYMENTS,PRIVATE CONTRACTOR,REVENUE
Walsall Council,http://opendatacommunities.org/id/metropolitan-district-council/walsall,WC121-652,31.12.2021,ADULT SOCIAL CARE,ANSON COURT RESIDENTIAL HOME,18/12/2020,"2,308.00",73501-Residential EMI,THIRD PARTY PAYMENTS,PRIVATE CONTRACTOR,REVENUE
Walsall Council,http://opendatacommunities.org/id/metropolitan-district-council/walsall,WC121-653,31.12.2021,ECONOMY & ENVIRONMENT,APCOA PARKING SERVICES (UK) LTD,11/12/2020,"35,463.27",73025-Professional Services-Priv Contractor & Other Agencies,THIRD PARTY PAYMENTS,PRIVATE CONTRACTOR,REVENUE
Walsall Council,http://opendatacommunities.org/id/metropolitan-district-council/walsall,WC121-654,31.12.2021,CHILDRENS,APP CARZ,02/12/2020,672.00,52000-Hire of Vehicle with Driver,TRANSPORT,DIRECT TRANSPORT COSTS,REVENUE
Walsall Council,http://opendatacommunities.org/id/metropolitan-district-council/walsall,WC121-655,31.12.2021,CHILDRENS,APP CARZ,02/12/2020,640.00,52000-Hire of Vehicle with Driver,TRANSPORT,DIRECT TRANSPORT COSTS,REVENUE
Walsall Council,http://opendatacommunities.org/id/metropolitan-district-council/walsall,WC121-656,31.12.2021,CHILDRENS,APP CARZ,02/12/2020,561.00,52000-Hire of Vehicle with Driver,TRANSPORT,DIRECT TRANSPORT COSTS,REVENUE
Walsall Council,http://opendatacommunities.org/id/metropolitan-district-council/walsall,WC121-657,31.12.2021,CHILDRENS,APP CARZ,02/12/2020,960.00,52000-Hire of Vehicle with Driver,TRANSPORT,DIRECT TRANSPORT COSTS,REVENUE
Walsall Council,http://opendatacommunities.org/id/metropolitan-district-council/walsall,WC121-658,31.12.2021,CHILDRENS,APP CARZ,02/12/2020,660.00,52000-Hire of Vehicle with Driver,TRANSPORT,DIRECT TRANSPORT COSTS,REVENUE
Walsall Council,http://opendatacommunities.org/id/metropolitan-district-council/walsall,WC121-659,31.12.2021,CHILDRENS,APP CARZ,02/12/2020,660.00,52000-Hire of Vehicle with Driver,TRANSPORT,DIRECT TRANSPORT COSTS,REVENUE
Walsall Council,http://opendatacommunities.org/id/metropolitan-district-council/walsall,WC121-660,31.12.2021,CHILDRENS,APP CARZ,02/12/2020,750.00,52000-Hire of Vehicle with Driver,TRANSPORT,DIRECT TRANSPORT COSTS,REVENUE
Walsall Council,http://opendatacommunities.org/id/metropolitan-district-council/walsall,WC121-661,31.12.2021,CHILDRENS,APP CARZ,02/12/2020,330.00,52000-Hire of Vehicle with Driver,TRANSPORT,DIRECT TRANSPORT COSTS,REVENUE
Walsall Council,http://opendatacommunities.org/id/metropolitan-district-council/walsall,WC121-662,31.12.2021,CHILDRENS,APP CARZ,02/12/2020,"1,198.00",52000-Hire of Vehicle with Driver,TRANSPORT,DIRECT TRANSPORT COSTS,REVENUE
Walsall Council,http://opendatacommunities.org/id/metropolitan-district-council/walsall,WC121-663,31.12.2021,CHILDRENS,APP CARZ,02/12/2020,840.00,52000-Hire of Vehicle with Driver,TRANSPORT,DIRECT TRANSPORT COSTS,REVENUE
Walsall Council,http://opendatacommunities.org/id/metropolitan-district-council/walsall,WC121-664,31.12.2021,CHILDRENS,APP CARZ,02/12/2020,450.00,52000-Hire of Vehicle with Driver,TRANSPORT,DIRECT TRANSPORT COSTS,REVENUE
Walsall Council,http://opendatacommunities.org/id/metropolitan-district-council/walsall,WC121-665,31.12.2021,CHILDRENS,APP CARZ,02/12/2020,960.00,52000-Hire of Vehicle with Driver,TRANSPORT,DIRECT TRANSPORT COSTS,REVENUE
Walsall Council,http://opendatacommunities.org/id/metropolitan-district-council/walsall,WC121-666,31.12.2021,CHILDRENS,APP CARZ,02/12/2020,390.00,52000-Hire of Vehicle with Driver,TRANSPORT,DIRECT TRANSPORT COSTS,REVENUE
Walsall Council,http://opendatacommunities.org/id/metropolitan-district-council/walsall,WC121-667,31.12.2021,CHILDRENS,APP CARZ,23/12/2020,672.00,52000-Hire of Vehicle with Driver,TRANSPORT,DIRECT TRANSPORT COSTS,REVENUE
Walsall Council,http://opendatacommunities.org/id/metropolitan-district-council/walsall,WC121-668,31.12.2021,CHILDRENS,APP CARZ,23/12/2020,"1,280.00",52000-Hire of Vehicle with Driver,TRANSPORT,DIRECT TRANSPORT COSTS,REVENUE
Walsall Council,http://opendatacommunities.org/id/metropolitan-district-council/walsall,WC121-669,31.12.2021,CHILDRENS,APP CARZ,23/12/2020,673.20,52000-Hire of Vehicle with Driver,TRANSPORT,DIRECT TRANSPORT COSTS,REVENUE
Walsall Council,http://opendatacommunities.org/id/metropolitan-district-council/walsall,WC121-670,31.12.2021,CHILDRENS,APP CARZ,23/12/2020,"1,280.00",52000-Hire of Vehicle with Driver,TRANSPORT,DIRECT TRANSPORT COSTS,REVENUE
Walsall Council,http://opendatacommunities.org/id/metropolitan-district-council/walsall,WC121-671,31.12.2021,CHILDRENS,APP CARZ,23/12/2020,880.00,52000-Hire of Vehicle with Driver,TRANSPORT,DIRECT TRANSPORT COSTS,REVENUE
Walsall Council,http://opendatacommunities.org/id/metropolitan-district-council/walsall,WC121-672,31.12.2021,CHILDRENS,APP CARZ,23/12/2020,"1,000.00",52000-Hire of Vehicle with Driver,TRANSPORT,DIRECT TRANSPORT COSTS,REVENUE
Walsall Council,http://opendatacommunities.org/id/metropolitan-district-council/walsall,WC121-673,31.12.2021,CHILDRENS,APP CARZ,23/12/2020,418.00,52000-Hire of Vehicle with Driver,TRANSPORT,DIRECT TRANSPORT COSTS,REVENUE
Walsall Council,http://opendatacommunities.org/id/metropolitan-district-council/walsall,WC121-674,31.12.2021,CHILDRENS,APP CARZ,23/12/2020,"1,605.00",52000-Hire of Vehicle with Driver,TRANSPORT,DIRECT TRANSPORT COSTS,REVENUE
Walsall Council,http://opendatacommunities.org/id/metropolitan-district-council/walsall,WC121-675,31.12.2021,CHILDRENS,APP CARZ,23/12/2020,880.00,52000-Hire of Vehicle with Driver,TRANSPORT,DIRECT TRANSPORT COSTS,REVENUE
Walsall Council,http://opendatacommunities.org/id/metropolitan-district-council/walsall,WC121-676,31.12.2021,CHILDRENS,APP CARZ,23/12/2020,600.00,52000-Hire of Vehicle with Driver,TRANSPORT,DIRECT TRANSPORT COSTS,REVENUE
Walsall Council,http://opendatacommunities.org/id/metropolitan-district-council/walsall,WC121-677,31.12.2021,CHILDRENS,APP CARZ,23/12/2020,"1,216.00",52000-Hire of Vehicle with Driver,TRANSPORT,DIRECT TRANSPORT COSTS,REVENUE
Walsall Council,http://opendatacommunities.org/id/metropolitan-district-council/walsall,WC121-678,31.12.2021,CHILDRENS,APP CARZ,23/12/2020,"1,064.00",52000-Hire of Vehicle with Driver,TRANSPORT,DIRECT TRANSPORT COSTS,REVENUE
Walsall Council,http://opendatacommunities.org/id/metropolitan-district-council/walsall,WC121-679,31.12.2021,CHILDRENS,APP CARZ,23/12/2020,440.00,52000-Hire of Vehicle with Driver,TRANSPORT,DIRECT TRANSPORT COSTS,REVENUE
Walsall Council,http://opendatacommunities.org/id/metropolitan-district-council/walsall,WC121-680,31.12.2021,CHILDRENS,APP CARZ,23/12/2020,720.00,52000-Hire of Vehicle with Driver,TRANSPORT,DIRECT TRANSPORT COSTS,REVENUE
Walsall Council,http://opendatacommunities.org/id/metropolitan-district-council/walsall,WC121-681,31.12.2021,ECONOMY & ENVIRONMENT,AQUAMO LTD,31/12/2020,295.00,60008-Repair & Maintenance of Furniture & Equipment,SUPPLIES & SERVICES,EQUIPMENT FURNITURE & MATERIALS,REVENUE
Walsall Council,http://opendatacommunities.org/id/metropolitan-district-council/walsall,WC121-682,31.12.2021,ECONOMY & ENVIRONMENT,AQUILA TRAINING SERVICES LTD,17/12/2020,"3,400.00",30030-External Training,INDIRECT EMPLOYEES,EXTERNAL TRAINING,REVENUE
Walsall Council,http://opendatacommunities.org/id/metropolitan-district-council/walsall,WC121-683,31.12.2021,ECONOMY & ENVIRONMENT,AQUILA TRUCK CENTRES LTD,03/12/2020,515.00,60500-Materials,SUPPLIES & SERVICES,EQUIPMENT FURNITURE & MATERIALS,REVENUE
Walsall Council,http://opendatacommunities.org/id/metropolitan-district-council/walsall,WC121-684,31.12.2021,ADULT SOCIAL CARE,ARBORETUM NURSING HOME.,02/12/2020,"3,202.40",73025-Professional Services-Priv Contractor & Other Agencies,THIRD PARTY PAYMENTS,PRIVATE CONTRACTOR,REVENUE
Walsall Council,http://opendatacommunities.org/id/metropolitan-district-council/walsall,WC121-685,31.12.2021,ADULT SOCIAL CARE,ARBORETUM NURSING HOME.,02/12/2020,"3,202.40",73025-Professional Services-Priv Contractor & Other Agencies,THIRD PARTY PAYMENTS,PRIVATE CONTRACTOR,REVENUE
Walsall Council,http://opendatacommunities.org/id/metropolitan-district-council/walsall,WC121-686,31.12.2021,ADULT SOCIAL CARE,ARBORETUM NURSING HOME.,02/12/2020,"1,490.00",73025-Professional Services-Priv Contractor & Other Agencies,THIRD PARTY PAYMENTS,PRIVATE CONTRACTOR,REVENUE
Walsall Council,http://opendatacommunities.org/id/metropolitan-district-council/walsall,WC121-687,31.12.2021,ADULT SOCIAL CARE,ARBORETUM NURSING HOME.,02/12/2020,"1,700.00",73025-Professional Services-Priv Contractor & Other Agencies,THIRD PARTY PAYMENTS,PRIVATE CONTRACTOR,REVENUE
Walsall Council,http://opendatacommunities.org/id/metropolitan-district-council/walsall,WC121-688,31.12.2021,ADULT SOCIAL CARE,ARBORETUM NURSING HOME.,18/12/2020,"-36,903.13",73502-Nursing,THIRD PARTY PAYMENTS,PRIVATE CONTRACTOR,REVENUE
Walsall Council,http://opendatacommunities.org/id/metropolitan-district-council/walsall,WC121-689,31.12.2021,ADULT SOCIAL CARE,ARBORETUM NURSING HOME.,18/12/2020,"2,396.00",73502-Nursing,THIRD PARTY PAYMENTS,PRIVATE CONTRACTOR,REVENUE
Walsall Council,http://opendatacommunities.org/id/metropolitan-district-council/walsall,WC121-690,31.12.2021,ADULT SOCIAL CARE,ARBORETUM NURSING HOME.,18/12/2020,"-1,711.43",73502-Nursing,THIRD PARTY PAYMENTS,PRIVATE CONTRACTOR,REVENUE
Walsall Council,http://opendatacommunities.org/id/metropolitan-district-council/walsall,WC121-691,31.12.2021,ADULT SOCIAL CARE,ARBORETUM NURSING HOME.,18/12/2020,"2,396.00",73502-Nursing,THIRD PARTY PAYMENTS,PRIVATE CONTRACTOR,REVENUE
Walsall Council,http://opendatacommunities.org/id/metropolitan-district-council/walsall,WC121-692,31.12.2021,ADULT SOCIAL CARE,ARBORETUM NURSING HOME.,18/12/2020,"2,396.00",73502-Nursing,THIRD PARTY PAYMENTS,PRIVATE CONTRACTOR,REVENUE
Walsall Council,http://opendatacommunities.org/id/metropolitan-district-council/walsall,WC121-693,31.12.2021,ADULT SOCIAL CARE,ARBORETUM NURSING HOME.,18/12/2020,"2,396.00",73502-Nursing,THIRD PARTY PAYMENTS,PRIVATE CONTRACTOR,REVENUE
Walsall Council,http://opendatacommunities.org/id/metropolitan-district-council/walsall,WC121-694,31.12.2021,ADULT SOCIAL CARE,ARBORETUM NURSING HOME.,18/12/2020,"2,396.00",73502-Nursing,THIRD PARTY PAYMENTS,PRIVATE CONTRACTOR,REVENUE
Walsall Council,http://opendatacommunities.org/id/metropolitan-district-council/walsall,WC121-695,31.12.2021,ADULT SOCIAL CARE,ARBORETUM NURSING HOME.,18/12/2020,"2,576.00",73502-Nursing,THIRD PARTY PAYMENTS,PRIVATE CONTRACTOR,REVENUE
Walsall Council,http://opendatacommunities.org/id/metropolitan-district-council/walsall,WC121-696,31.12.2021,ADULT SOCIAL CARE,ARBORETUM NURSING HOME.,18/12/2020,"2,576.00",73502-Nursing,THIRD PARTY PAYMENTS,PRIVATE CONTRACTOR,REVENUE
Walsall Council,http://opendatacommunities.org/id/metropolitan-district-council/walsall,WC121-697,31.12.2021,ADULT SOCIAL CARE,ARBORETUM NURSING HOME.,18/12/2020,"41,695.13",73502-Nursing,THIRD PARTY PAYMENTS,PRIVATE CONTRACTOR,REVENUE
Walsall Council,http://opendatacommunities.org/id/metropolitan-district-council/walsall,WC121-698,31.12.2021,ADULT SOCIAL CARE,ARBORETUM NURSING HOME.,18/12/2020,"2,396.00",73502-Nursing,THIRD PARTY PAYMENTS,PRIVATE CONTRACTOR,REVENUE
Walsall Council,http://opendatacommunities.org/id/metropolitan-district-council/walsall,WC121-699,31.12.2021,ADULT SOCIAL CARE,ARBORETUM NURSING HOME.,18/12/2020,"2,396.00",73502-Nursing,THIRD PARTY PAYMENTS,PRIVATE CONTRACTOR,REVENUE
Walsall Council,http://opendatacommunities.org/id/metropolitan-district-council/walsall,WC121-700,31.12.2021,ADULT SOCIAL CARE,ARBORETUM NURSING HOME.,18/12/2020,"2,576.00",73502-Nursing,THIRD PARTY PAYMENTS,PRIVATE CONTRACTOR,REVENUE
Walsall Council,http://opendatacommunities.org/id/metropolitan-district-council/walsall,WC121-701,31.12.2021,ADULT SOCIAL CARE,ARBORETUM NURSING HOME.,18/12/2020,"4,792.00",73502-Nursing,THIRD PARTY PAYMENTS,PRIVATE CONTRACTOR,REVENUE
Walsall Council,http://opendatacommunities.org/id/metropolitan-district-council/walsall,WC121-702,31.12.2021,ADULT SOCIAL CARE,ARBORETUM NURSING HOME.,18/12/2020,"2,552.00",73502-Nursing,THIRD PARTY PAYMENTS,PRIVATE CONTRACTOR,REVENUE
Walsall Council,http://opendatacommunities.org/id/metropolitan-district-council/walsall,WC121-703,31.12.2021,ADULT SOCIAL CARE,ARBORETUM NURSING HOME.,18/12/2020,"2,396.00",73502-Nursing,THIRD PARTY PAYMENTS,PRIVATE CONTRACTOR,REVENUE
Walsall Council,http://opendatacommunities.org/id/metropolitan-district-council/walsall,WC121-704,31.12.2021,ADULT SOCIAL CARE,ARBORETUM NURSING HOME.,18/12/2020,"2,576.00",73502-Nursing,THIRD PARTY PAYMENTS,PRIVATE CONTRACTOR,REVENUE
Walsall Council,http://opendatacommunities.org/id/metropolitan-district-council/walsall,WC121-705,31.12.2021,ADULT SOCIAL CARE,ARBORETUM NURSING HOME.,18/12/2020,"2,396.00",73502-Nursing,THIRD PARTY PAYMENTS,PRIVATE CONTRACTOR,REVENUE
Walsall Council,http://opendatacommunities.org/id/metropolitan-district-council/walsall,WC121-706,31.12.2021,ADULT SOCIAL CARE,ARBORETUM NURSING HOME.,29/12/2020,"-2,516.17",73025-Professional Services-Priv Contractor & Other Agencies,THIRD PARTY PAYMENTS,PRIVATE CONTRACTOR,REVENUE
Walsall Council,http://opendatacommunities.org/id/metropolitan-district-council/walsall,WC121-707,31.12.2021,ADULT SOCIAL CARE,ARBORETUM NURSING HOME.,29/12/2020,"-1,715.57",73025-Professional Services-Priv Contractor & Other Agencies,THIRD PARTY PAYMENTS,PRIVATE CONTRACTOR,REVENUE
Walsall Council,http://opendatacommunities.org/id/metropolitan-district-council/walsall,WC121-708,31.12.2021,ADULT SOCIAL CARE,ARBORETUM NURSING HOME.,30/12/2020,"11,920.00",73025-Professional Services-Priv Contractor & Other Agencies,THIRD PARTY PAYMENTS,PRIVATE CONTRACTOR,REVENUE
Walsall Council,http://opendatacommunities.org/id/metropolitan-district-council/walsall,WC121-709,31.12.2021,ADULT SOCIAL CARE,ARBORETUM NURSING HOME.,31/12/2020,"2,980.00",73025-Professional Services-Priv Contractor & Other Agencies,THIRD PARTY PAYMENTS,PRIVATE CONTRACTOR,REVENUE
Walsall Council,http://opendatacommunities.org/id/metropolitan-district-council/walsall,WC121-710,31.12.2021,ADULT SOCIAL CARE,ARBORETUM NURSING HOME.,31/12/2020,"3,400.00",73025-Professional Services-Priv Contractor & Other Agencies,THIRD PARTY PAYMENTS,PRIVATE CONTRACTOR,REVENUE
Walsall Council,http://opendatacommunities.org/id/metropolitan-district-council/walsall,WC121-711,31.12.2021,ADULT SOCIAL CARE,ARBORETUM NURSING HOME.,31/12/2020,"1,490.00",73025-Professional Services-Priv Contractor & Other Agencies,THIRD PARTY PAYMENTS,PRIVATE CONTRACTOR,REVENUE
Walsall Council,http://opendatacommunities.org/id/metropolitan-district-council/walsall,WC121-712,31.12.2021,ADULT SOCIAL CARE,ARBORETUM NURSING HOME.,31/12/2020,"2,980.00",73025-Professional Services-Priv Contractor & Other Agencies,THIRD PARTY PAYMENTS,PRIVATE CONTRACTOR,REVENUE
Walsall Council,http://opendatacommunities.org/id/metropolitan-district-council/walsall,WC121-713,31.12.2021,ECONOMY & ENVIRONMENT,ARCADIS,02/12/2020,"21,430.00",63102-Consultant Fees,SUPPLIES & SERVICES,SERVICES,REVENUE
Walsall Council,http://opendatacommunities.org/id/metropolitan-district-council/walsall,WC121-714,31.12.2021,ECONOMY & ENVIRONMENT,ARCADIS,14/12/2020,"14,500.00",63102-Consultant Fees,SUPPLIES & SERVICES,SERVICES,REVENUE
Walsall Council,http://opendatacommunities.org/id/metropolitan-district-council/walsall,WC121-715,31.12.2021,RESOURCES AND TRANSFORMATION,ARCADIS,14/12/2020,"-2,558.00",63000-Professional Fees & Services,SUPPLIES & SERVICES,SERVICES,REVENUE
Walsall Council,http://opendatacommunities.org/id/metropolitan-district-council/walsall,WC121-716,31.12.2021,RESOURCES AND TRANSFORMATION,ARCADIS,14/12/2020,"25,583.00",63000-Professional Fees & Services,SUPPLIES & SERVICES,SERVICES,REVENUE
Walsall Council,http://opendatacommunities.org/id/metropolitan-district-council/walsall,WC121-717,31.12.2021,ECONOMY & ENVIRONMENT,ARCADIS,16/12/2020,"16,000.00",63102-Consultant Fees,SUPPLIES & SERVICES,SERVICES,REVENUE
Walsall Council,http://opendatacommunities.org/id/metropolitan-district-council/walsall,WC121-718,31.12.2021,ECONOMY & ENVIRONMENT,ART UK,08/12/2020,250.00,64500-Subscriptions,SUPPLIES & SERVICES,GRANTS (EXP) & SUBSCRIPTIONS,REVENUE
Walsall Council,http://opendatacommunities.org/id/metropolitan-district-council/walsall,WC121-719,31.12.2021,ADULT SOCIAL CARE,ASH GRANGE CARE HOME,09/12/2020,"3,000.00",73025-Professional Services-Priv Contractor & Other Agencies,THIRD PARTY PAYMENTS,PRIVATE CONTRACTOR,REVENUE
Walsall Council,http://opendatacommunities.org/id/metropolitan-district-council/walsall,WC121-720,31.12.2021,ADULT SOCIAL CARE,ASH GRANGE CARE HOME,09/12/2020,"1,821.43",73025-Professional Services-Priv Contractor & Other Agencies,THIRD PARTY PAYMENTS,PRIVATE CONTRACTOR,REVENUE
Walsall Council,http://opendatacommunities.org/id/metropolitan-district-council/walsall,WC121-721,31.12.2021,ADULT SOCIAL CARE,ASH GRANGE CARE HOME,18/12/2020,"2,044.00",73500-Residential,THIRD PARTY PAYMENTS,PRIVATE CONTRACTOR,REVENUE
Walsall Council,http://opendatacommunities.org/id/metropolitan-district-council/walsall,WC121-722,31.12.2021,ADULT SOCIAL CARE,ASH GRANGE CARE HOME,18/12/2020,"1,968.14",73502-Nursing,THIRD PARTY PAYMENTS,PRIVATE CONTRACTOR,REVENUE
Walsall Council,http://opendatacommunities.org/id/metropolitan-district-council/walsall,WC121-723,31.12.2021,ADULT SOCIAL CARE,ASH GRANGE CARE HOME,18/12/2020,"2,396.00",73502-Nursing,THIRD PARTY PAYMENTS,PRIVATE CONTRACTOR,REVENUE
Walsall Council,http://opendatacommunities.org/id/metropolitan-district-council/walsall,WC121-724,31.12.2021,ADULT SOCIAL CARE,ASH GRANGE CARE HOME,18/12/2020,"2,396.00",73502-Nursing,THIRD PARTY PAYMENTS,PRIVATE CONTRACTOR,REVENUE
Walsall Council,http://opendatacommunities.org/id/metropolitan-district-council/walsall,WC121-725,31.12.2021,ADULT SOCIAL CARE,ASH GRANGE CARE HOME,18/12/2020,"2,696.00",73503-Nursing EMI,THIRD PARTY PAYMENTS,PRIVATE CONTRACTOR,REVENUE
Walsall Council,http://opendatacommunities.org/id/metropolitan-district-council/walsall,WC121-726,31.12.2021,ADULT SOCIAL CARE,ASH GRANGE CARE HOME,18/12/2020,"2,581.16",73500-Residential,THIRD PARTY PAYMENTS,PRIVATE CONTRACTOR,REVENUE
Walsall Council,http://opendatacommunities.org/id/metropolitan-district-council/walsall,WC121-727,31.12.2021,ADULT SOCIAL CARE,ASH GRANGE CARE HOME,18/12/2020,"2,396.00",73502-Nursing,THIRD PARTY PAYMENTS,PRIVATE CONTRACTOR,REVENUE
Walsall Council,http://opendatacommunities.org/id/metropolitan-district-council/walsall,WC121-728,31.12.2021,ADULT SOCIAL CARE,ASH GRANGE CARE HOME,18/12/2020,"2,423.72",73502-Nursing,THIRD PARTY PAYMENTS,PRIVATE CONTRACTOR,REVENUE
Walsall Council,http://opendatacommunities.org/id/metropolitan-district-council/walsall,WC121-729,31.12.2021,ADULT SOCIAL CARE,ASH GRANGE CARE HOME,18/12/2020,"2,044.00",73500-Residential,THIRD PARTY PAYMENTS,PRIVATE CONTRACTOR,REVENUE
Walsall Council,http://opendatacommunities.org/id/metropolitan-district-council/walsall,WC121-730,31.12.2021,ADULT SOCIAL CARE,ASH GRANGE CARE HOME,18/12/2020,"2,396.00",73502-Nursing,THIRD PARTY PAYMENTS,PRIVATE CONTRACTOR,REVENUE
Walsall Council,http://opendatacommunities.org/id/metropolitan-district-council/walsall,WC121-731,31.12.2021,ADULT SOCIAL CARE,ASH GRANGE CARE HOME,18/12/2020,"2,396.00",73502-Nursing,THIRD PARTY PAYMENTS,PRIVATE CONTRACTOR,REVENUE
Walsall Council,http://opendatacommunities.org/id/metropolitan-district-council/walsall,WC121-732,31.12.2021,ADULT SOCIAL CARE,ASH GRANGE CARE HOME,18/12/2020,"2,396.00",73502-Nursing,THIRD PARTY PAYMENTS,PRIVATE CONTRACTOR,REVENUE
Walsall Council,http://opendatacommunities.org/id/metropolitan-district-council/walsall,WC121-733,31.12.2021,ADULT SOCIAL CARE,ASH GRANGE CARE HOME,18/12/2020,"2,396.00",73502-Nursing,THIRD PARTY PAYMENTS,PRIVATE CONTRACTOR,REVENUE
Walsall Council,http://opendatacommunities.org/id/metropolitan-district-council/walsall,WC121-734,31.12.2021,ADULT SOCIAL CARE,ASH GRANGE CARE HOME,18/12/2020,"2,396.00",73502-Nursing,THIRD PARTY PAYMENTS,PRIVATE CONTRACTOR,REVENUE
Walsall Council,http://opendatacommunities.org/id/metropolitan-district-council/walsall,WC121-735,31.12.2021,ADULT SOCIAL CARE,ASH GRANGE CARE HOME,18/12/2020,"2,396.00",73502-Nursing,THIRD PARTY PAYMENTS,PRIVATE CONTRACTOR,REVENUE
Walsall Council,http://opendatacommunities.org/id/metropolitan-district-council/walsall,WC121-736,31.12.2021,ADULT SOCIAL CARE,ASH GRANGE CARE HOME,18/12/2020,"2,396.00",73502-Nursing,THIRD PARTY PAYMENTS,PRIVATE CONTRACTOR,REVENUE
Walsall Council,http://opendatacommunities.org/id/metropolitan-district-council/walsall,WC121-737,31.12.2021,ADULT SOCIAL CARE,ASH GRANGE CARE HOME,18/12/2020,"2,396.00",73502-Nursing,THIRD PARTY PAYMENTS,PRIVATE CONTRACTOR,REVENUE
Walsall Council,http://opendatacommunities.org/id/metropolitan-district-council/walsall,WC121-738,31.12.2021,ADULT SOCIAL CARE,ASH GRANGE CARE HOME,18/12/2020,"2,696.00",73503-Nursing EMI,THIRD PARTY PAYMENTS,PRIVATE CONTRACTOR,REVENUE
Walsall Council,http://opendatacommunities.org/id/metropolitan-district-council/walsall,WC121-739,31.12.2021,ADULT SOCIAL CARE,ASH GRANGE CARE HOME,18/12/2020,"1,697.57",73502-Nursing,THIRD PARTY PAYMENTS,PRIVATE CONTRACTOR,REVENUE
Walsall Council,http://opendatacommunities.org/id/metropolitan-district-council/walsall,WC121-740,31.12.2021,ADULT SOCIAL CARE,ASH GRANGE CARE HOME,18/12/2020,"2,774.96",73502-Nursing,THIRD PARTY PAYMENTS,PRIVATE CONTRACTOR,REVENUE
Walsall Council,http://opendatacommunities.org/id/metropolitan-district-council/walsall,WC121-741,31.12.2021,ADULT SOCIAL CARE,ASH GRANGE CARE HOME,18/12/2020,"2,696.00",73503-Nursing EMI,THIRD PARTY PAYMENTS,PRIVATE CONTRACTOR,REVENUE
Walsall Council,http://opendatacommunities.org/id/metropolitan-district-council/walsall,WC121-742,31.12.2021,ADULT SOCIAL CARE,ASH GRANGE CARE HOME,18/12/2020,"2,396.00",73502-Nursing,THIRD PARTY PAYMENTS,PRIVATE CONTRACTOR,REVENUE
Walsall Council,http://opendatacommunities.org/id/metropolitan-district-council/walsall,WC121-743,31.12.2021,ADULT SOCIAL CARE,ASH GRANGE CARE HOME,23/12/2020,"3,455.51",63000-Professional Fees & Services,SUPPLIES & SERVICES,SERVICES,REVENUE
Walsall Council,http://opendatacommunities.org/id/metropolitan-district-council/walsall,WC121-744,31.12.2021,CHILDRENS CAPITAL,ASKELITE LTD,16/12/2020,"3,485.00",01044-Purchase of Furniture & Equipment,CAPITAL,"VEHICLES,PLANT,EQUIPMENT & MACHINERY",CAPITAL
Walsall Council,http://opendatacommunities.org/id/metropolitan-district-council/walsall,WC121-745,31.12.2021,ECONOMY & ENVIRONMENT,ASKEWS AND HOLTS LIBRARY SERVICES LTD,10/12/2020,"2,987.83",60501-Library Books,SUPPLIES & SERVICES,EQUIPMENT FURNITURE & MATERIALS,REVENUE
Walsall Council,http://opendatacommunities.org/id/metropolitan-district-council/walsall,WC121-746,31.12.2021,ECONOMY & ENVIRONMENT,ASKEWS AND HOLTS LIBRARY SERVICES LTD,23/12/2020,-434.41,60501-Library Books,SUPPLIES & SERVICES,EQUIPMENT FURNITURE & MATERIALS,REVENUE
Walsall Council,http://opendatacommunities.org/id/metropolitan-district-council/walsall,WC121-747,31.12.2021,ECONOMY & ENVIRONMENT,ASKEWS AND HOLTS LIBRARY SERVICES LTD,23/12/2020,-433.86,60501-Library Books,SUPPLIES & SERVICES,EQUIPMENT FURNITURE & MATERIALS,REVENUE
Walsall Council,http://opendatacommunities.org/id/metropolitan-district-council/walsall,WC121-748,31.12.2021,ECONOMY & ENVIRONMENT,ASKEWS AND HOLTS LIBRARY SERVICES LTD,23/12/2020,433.86,60501-Library Books,SUPPLIES & SERVICES,EQUIPMENT FURNITURE & MATERIALS,REVENUE
Walsall Council,http://opendatacommunities.org/id/metropolitan-district-council/walsall,WC121-749,31.12.2021,ECONOMY & ENVIRONMENT,ASKEWS AND HOLTS LIBRARY SERVICES LTD,23/12/2020,434.41,60501-Library Books,SUPPLIES & SERVICES,EQUIPMENT FURNITURE & MATERIALS,REVENUE
Walsall Council,http://opendatacommunities.org/id/metropolitan-district-council/walsall,WC121-750,31.12.2021,ECONOMY & ENVIRONMENT,ASKEWS AND HOLTS LIBRARY SERVICES LTD,29/12/2020,254.93,60501-Library Books,SUPPLIES & SERVICES,EQUIPMENT FURNITURE & MATERIALS,REVENUE
Walsall Council,http://opendatacommunities.org/id/metropolitan-district-council/walsall,WC121-751,31.12.2021,ADULT SOCIAL CARE,ASPECTS CARE LTD,15/12/2020,417.04,73508-Community Supported Living/Supported Accommodation,THIRD PARTY PAYMENTS,PRIVATE CONTRACTOR,REVENUE
Walsall Council,http://opendatacommunities.org/id/metropolitan-district-council/walsall,WC121-752,31.12.2021,ADULT SOCIAL CARE,ASPECTS CARE LTD,15/12/2020,503.32,73508-Community Supported Living/Supported Accommodation,THIRD PARTY PAYMENTS,PRIVATE CONTRACTOR,REVENUE
Walsall Council,http://opendatacommunities.org/id/metropolitan-district-council/walsall,WC121-753,31.12.2021,ADULT SOCIAL CARE,ASPECTS CARE LTD,15/12/2020,503.32,73508-Community Supported Living/Supported Accommodation,THIRD PARTY PAYMENTS,PRIVATE CONTRACTOR,REVENUE
Walsall Council,http://opendatacommunities.org/id/metropolitan-district-council/walsall,WC121-754,31.12.2021,ADULT SOCIAL CARE,ASPECTS CARE LTD,15/12/2020,790.92,73508-Community Supported Living/Supported Accommodation,THIRD PARTY PAYMENTS,PRIVATE CONTRACTOR,REVENUE
Walsall Council,http://opendatacommunities.org/id/metropolitan-district-council/walsall,WC121-755,31.12.2021,ADULT SOCIAL CARE,ASPECTS CARE LTD,15/12/2020,316.36,73508-Community Supported Living/Supported Accommodation,THIRD PARTY PAYMENTS,PRIVATE CONTRACTOR,REVENUE
Walsall Council,http://opendatacommunities.org/id/metropolitan-district-council/walsall,WC121-756,31.12.2021,ADULT SOCIAL CARE,ASPECTS CARE LTD,15/12/2020,"1,078.52",73508-Community Supported Living/Supported Accommodation,THIRD PARTY PAYMENTS,PRIVATE CONTRACTOR,REVENUE
Walsall Council,http://opendatacommunities.org/id/metropolitan-district-council/walsall,WC121-757,31.12.2021,ADULT SOCIAL CARE,ASPECTS CARE LTD,15/12/2020,517.68,73508-Community Supported Living/Supported Accommodation,THIRD PARTY PAYMENTS,PRIVATE CONTRACTOR,REVENUE
Walsall Council,http://opendatacommunities.org/id/metropolitan-district-council/walsall,WC121-758,31.12.2021,ADULT SOCIAL CARE,ASPECTS CARE LTD,15/12/2020,604.24,73508-Community Supported Living/Supported Accommodation,THIRD PARTY PAYMENTS,PRIVATE CONTRACTOR,REVENUE
Walsall Council,http://opendatacommunities.org/id/metropolitan-district-council/walsall,WC121-759,31.12.2021,ADULT SOCIAL CARE,ASPECTS CARE LTD,15/12/2020,560.84,73508-Community Supported Living/Supported Accommodation,THIRD PARTY PAYMENTS,PRIVATE CONTRACTOR,REVENUE
Walsall Council,http://opendatacommunities.org/id/metropolitan-district-council/walsall,WC121-760,31.12.2021,ADULT SOCIAL CARE,ASPECTS CARE LTD,15/12/2020,517.68,73508-Community Supported Living/Supported Accommodation,THIRD PARTY PAYMENTS,PRIVATE CONTRACTOR,REVENUE
Walsall Council,http://opendatacommunities.org/id/metropolitan-district-council/walsall,WC121-761,31.12.2021,ADULT SOCIAL CARE,ASPECTS CARE LTD,15/12/2020,359.64,73508-Community Supported Living/Supported Accommodation,THIRD PARTY PAYMENTS,PRIVATE CONTRACTOR,REVENUE
Walsall Council,http://opendatacommunities.org/id/metropolitan-district-council/walsall,WC121-762,31.12.2021,ADULT SOCIAL CARE,ASPECTS CARE LTD,15/12/2020,791.04,73508-Community Supported Living/Supported Accommodation,THIRD PARTY PAYMENTS,PRIVATE CONTRACTOR,REVENUE
Walsall Council,http://opendatacommunities.org/id/metropolitan-district-council/walsall,WC121-763,31.12.2021,ECONOMY & ENVIRONMENT,ATKINS LIMITED,09/12/2020,"-2,000.00",60500-Materials,SUPPLIES & SERVICES,EQUIPMENT FURNITURE & MATERIALS,REVENUE
Walsall Council,http://opendatacommunities.org/id/metropolitan-district-council/walsall,WC121-764,31.12.2021,ECONOMY & ENVIRONMENT,ATKINS LIMITED,09/12/2020,"2,000.00",60500-Materials,SUPPLIES & SERVICES,EQUIPMENT FURNITURE & MATERIALS,REVENUE
Walsall Council,http://opendatacommunities.org/id/metropolitan-district-council/walsall,WC121-765,31.12.2021,CHILDRENS,ATKINSON LEWIS LIMITED,22/12/2020,528.50,63116-External Legal Fees,SUPPLIES & SERVICES,SERVICES,REVENUE
Walsall Council,http://opendatacommunities.org/id/metropolitan-district-council/walsall,WC121-766,31.12.2021,ADULT SOCIAL CARE,AURORA GRAPHICS & DISPLAYS LTD,07/12/2020,495.00,62008-Outwork Print & Design,SUPPLIES & SERVICES,PRINTING STATIONERY & GENERAL OFFICE,REVENUE
Walsall Council,http://opendatacommunities.org/id/metropolitan-district-council/walsall,WC121-767,31.12.2021,ADULT SOCIAL CARE,AURORA GRAPHICS & DISPLAYS LTD,07/12/2020,370.00,62008-Outwork Print & Design,SUPPLIES & SERVICES,PRINTING STATIONERY & GENERAL OFFICE,REVENUE
Walsall Council,http://opendatacommunities.org/id/metropolitan-district-council/walsall,WC121-768,31.12.2021,ADULT SOCIAL CARE,AURORA GRAPHICS & DISPLAYS LTD,07/12/2020,520.00,62008-Outwork Print & Design,SUPPLIES & SERVICES,PRINTING STATIONERY & GENERAL OFFICE,REVENUE
Walsall Council,http://opendatacommunities.org/id/metropolitan-district-council/walsall,WC121-769,31.12.2021,ADULT SOCIAL CARE,AUTISM WEST MIDLANDS,18/12/2020,"5,675.88",73500-Residential,THIRD PARTY PAYMENTS,PRIVATE CONTRACTOR,REVENUE
Walsall Council,http://opendatacommunities.org/id/metropolitan-district-council/walsall,WC121-770,31.12.2021,ADULT SOCIAL CARE,AUTISM WEST MIDLANDS,18/12/2020,"7,344.60",73500-Residential,THIRD PARTY PAYMENTS,PRIVATE CONTRACTOR,REVENUE
Walsall Council,http://opendatacommunities.org/id/metropolitan-district-council/walsall,WC121-771,31.12.2021,ADULT SOCIAL CARE,AVERY HOMES NELSON LIMITED,18/12/2020,"2,044.00",73500-Residential,THIRD PARTY PAYMENTS,PRIVATE CONTRACTOR,REVENUE
Walsall Council,http://opendatacommunities.org/id/metropolitan-district-council/walsall,WC121-772,31.12.2021,ADULT SOCIAL CARE,AVERY HOMES NELSON LIMITED,18/12/2020,"2,044.00",73500-Residential,THIRD PARTY PAYMENTS,PRIVATE CONTRACTOR,REVENUE
Walsall Council,http://opendatacommunities.org/id/metropolitan-district-council/walsall,WC121-773,31.12.2021,CHILDRENS CAPITAL,BAILY GARNER LLP,01/12/2020,500.00,01006-Site Works Contractors,CAPITAL,"NEW CONSTRUCTION,CONVERSION & RENOVATION",CAPITAL
Walsall Council,http://opendatacommunities.org/id/metropolitan-district-council/walsall,WC121-774,31.12.2021,RESOURCES AND TRANSFORMATION,BAILY GARNER LLP,09/12/2020,"1,700.00",40200-Planned Maintenance,PREMISES,REPAIRS & MAINTENANCE,REVENUE
Walsall Council,http://opendatacommunities.org/id/metropolitan-district-council/walsall,WC121-775,31.12.2021,CHILDRENS,BALTIMORE CONSULTING LTD,18/12/2020,"1,550.00",63000-Professional Fees & Services,SUPPLIES & SERVICES,SERVICES,REVENUE
Walsall Council,http://opendatacommunities.org/id/metropolitan-district-council/walsall,WC121-776,31.12.2021,CHILDRENS,BALTIMORE CONSULTING LTD,18/12/2020,"1,550.00",63000-Professional Fees & Services,SUPPLIES & SERVICES,SERVICES,REVENUE
Walsall Council,http://opendatacommunities.org/id/metropolitan-district-council/walsall,WC121-777,31.12.2021,CHILDRENS,BALTIMORE CONSULTING LTD,18/12/2020,"1,550.00",63000-Professional Fees & Services,SUPPLIES & SERVICES,SERVICES,REVENUE
Walsall Council,http://opendatacommunities.org/id/metropolitan-district-council/walsall,WC121-778,31.12.2021,CHILDRENS,BALTIMORE CONSULTING LTD,31/12/2020,"1,550.00",63000-Professional Fees & Services,SUPPLIES & SERVICES,SERVICES,REVENUE
Walsall Council,http://opendatacommunities.org/id/metropolitan-district-council/walsall,WC121-779,31.12.2021,CHILDRENS,BANYA FAMILY PLACEMENT AGENCY LTD,23/12/2020,"4,588.60",74037-Independent Foster Care-Oth Agency Provision,THIRD PARTY PAYMENTS,PRIVATE CONTRACTOR,REVENUE
Walsall Council,http://opendatacommunities.org/id/metropolitan-district-council/walsall,WC121-780,31.12.2021,ECONOMY & ENVIRONMENT,BARCHAM TREES PLC,01/12/2020,"10,395.00",60500-Materials,SUPPLIES & SERVICES,EQUIPMENT FURNITURE & MATERIALS,REVENUE
Walsall Council,http://opendatacommunities.org/id/metropolitan-district-council/walsall,WC121-781,31.12.2021,CHILDRENS,BASE 25,30/12/2020,400.00,63000-Professional Fees & Services,SUPPLIES & SERVICES,SERVICES,REVENUE
Walsall Council,http://opendatacommunities.org/id/metropolitan-district-council/walsall,WC121-782,31.12.2021,CHILDRENS CAPITAL,BAT FABRICATIONS LTD,07/12/2020,780.00,01006-Site Works Contractors,CAPITAL,"NEW CONSTRUCTION,CONVERSION & RENOVATION",CAPITAL
Walsall Council,http://opendatacommunities.org/id/metropolitan-district-council/walsall,WC121-783,31.12.2021,ECONOMY & ENVIRONMENT,BAT FABRICATIONS LTD,09/12/2020,486.00,60500-Materials,SUPPLIES & SERVICES,EQUIPMENT FURNITURE & MATERIALS,REVENUE
Walsall Council,http://opendatacommunities.org/id/metropolitan-district-council/walsall,WC121-784,31.12.2021,ECONOMY & ENVIRONMENT,BAT FABRICATIONS LTD,31/12/2020,585.00,40000-Operational Maintenance,PREMISES,REPAIRS & MAINTENANCE,REVENUE
Walsall Council,http://opendatacommunities.org/id/metropolitan-district-council/walsall,WC121-785,31.12.2021,CHILDRENS,BEACON CHILDCARE LTD,23/12/2020,"12,200.00",74036-External Residential Care-Oth Agency Provision,THIRD PARTY PAYMENTS,PRIVATE CONTRACTOR,REVENUE
Walsall Council,http://opendatacommunities.org/id/metropolitan-district-council/walsall,WC121-786,31.12.2021,CHILDRENS,BECKIE'S CHILDMINDING,15/12/2020,"1,339.63",66505-Other-Grants to Other Orgs,SUPPLIES & SERVICES,GRANTS (EXP) & SUBSCRIPTIONS,REVENUE
Walsall Council,http://opendatacommunities.org/id/metropolitan-district-council/walsall,WC121-787,31.12.2021,CHILDRENS,BECKYS CHILDMINDING SERVICE,14/12/2020,"1,340.64",66505-Other-Grants to Other Orgs,SUPPLIES & SERVICES,GRANTS (EXP) & SUBSCRIPTIONS,REVENUE
Walsall Council,http://opendatacommunities.org/id/metropolitan-district-council/walsall,WC121-788,31.12.2021,ADULT SOCIAL CARE,BELVIDERE COURT,16/12/2020,"2,567.14",73025-Professional Services-Priv Contractor & Other Agencies,THIRD PARTY PAYMENTS,PRIVATE CONTRACTOR,REVENUE
Walsall Council,http://opendatacommunities.org/id/metropolitan-district-council/walsall,WC121-789,31.12.2021,ADULT SOCIAL CARE,BELVIDERE COURT,16/12/2020,788.23,73025-Professional Services-Priv Contractor & Other Agencies,THIRD PARTY PAYMENTS,PRIVATE CONTRACTOR,REVENUE
Walsall Council,http://opendatacommunities.org/id/metropolitan-district-council/walsall,WC121-790,31.12.2021,ADULT SOCIAL CARE,BELVIDERE COURT,18/12/2020,"2,867.20",73500-Residential,THIRD PARTY PAYMENTS,PRIVATE CONTRACTOR,REVENUE
Walsall Council,http://opendatacommunities.org/id/metropolitan-district-council/walsall,WC121-791,31.12.2021,ADULT SOCIAL CARE,BELVIDERE COURT,18/12/2020,"2,396.00",73502-Nursing,THIRD PARTY PAYMENTS,PRIVATE CONTRACTOR,REVENUE
Walsall Council,http://opendatacommunities.org/id/metropolitan-district-council/walsall,WC121-792,31.12.2021,ADULT SOCIAL CARE,BENEDON HEALTHCARE LTD,15/12/2020,"1,381.44",73508-Community Supported Living/Supported Accommodation,THIRD PARTY PAYMENTS,PRIVATE CONTRACTOR,REVENUE
Walsall Council,http://opendatacommunities.org/id/metropolitan-district-council/walsall,WC121-793,31.12.2021,ADULT SOCIAL CARE,BENTLEY COURT PRIORY,18/12/2020,"2,696.00",73503-Nursing EMI,THIRD PARTY PAYMENTS,PRIVATE CONTRACTOR,REVENUE
Walsall Council,http://opendatacommunities.org/id/metropolitan-district-council/walsall,WC121-794,31.12.2021,ADULT SOCIAL CARE,BENTLEY COURT PRIORY,18/12/2020,"2,396.00",73502-Nursing,THIRD PARTY PAYMENTS,PRIVATE CONTRACTOR,REVENUE
Walsall Council,http://opendatacommunities.org/id/metropolitan-district-council/walsall,WC121-795,31.12.2021,ADULT SOCIAL CARE,BENTLEY COURT PRIORY,18/12/2020,"2,696.00",73503-Nursing EMI,THIRD PARTY PAYMENTS,PRIVATE CONTRACTOR,REVENUE
Walsall Council,http://opendatacommunities.org/id/metropolitan-district-council/walsall,WC121-796,31.12.2021,ADULT SOCIAL CARE,BENTLEY COURT PRIORY,18/12/2020,"2,396.00",73502-Nursing,THIRD PARTY PAYMENTS,PRIVATE CONTRACTOR,REVENUE
Walsall Council,http://opendatacommunities.org/id/metropolitan-district-council/walsall,WC121-797,31.12.2021,ADULT SOCIAL CARE,BENTLEY COURT PRIORY,18/12/2020,"2,696.00",73503-Nursing EMI,THIRD PARTY PAYMENTS,PRIVATE CONTRACTOR,REVENUE
Walsall Council,http://opendatacommunities.org/id/metropolitan-district-council/walsall,WC121-798,31.12.2021,HOLDING ACCOUNTS,BERRYMANS LACE MAWER LLP,11/12/2020,"1,679.00",67001-Insurance Payment Claims,SUPPLIES & SERVICES,INSURANCE,REVENUE
Walsall Council,http://opendatacommunities.org/id/metropolitan-district-council/walsall,WC121-799,31.12.2021,ECONOMY & ENVIRONMENT,BESCOT STADIUM SUNDAY MARKET LTD,30/12/2020,"2,600.00",73025-Professional Services-Priv Contractor & Other Agencies,THIRD PARTY PAYMENTS,PRIVATE CONTRACTOR,REVENUE
Walsall Council,http://opendatacommunities.org/id/metropolitan-district-council/walsall,WC121-800,31.12.2021,ADULT SOCIAL CARE,BESS CARE LIMITED,01/12/2020,416.40,73025-Professional Services-Priv Contractor & Other Agencies,THIRD PARTY PAYMENTS,PRIVATE CONTRACTOR,REVENUE
Walsall Council,http://opendatacommunities.org/id/metropolitan-district-council/walsall,WC121-801,31.12.2021,ADULT SOCIAL CARE,BESS CARE LIMITED,02/12/2020,801.96,73025-Professional Services-Priv Contractor & Other Agencies,THIRD PARTY PAYMENTS,PRIVATE CONTRACTOR,REVENUE
Walsall Council,http://opendatacommunities.org/id/metropolitan-district-council/walsall,WC121-802,31.12.2021,ADULT SOCIAL CARE,BESS CARE LIMITED,02/12/2020,389.41,73025-Professional Services-Priv Contractor & Other Agencies,THIRD PARTY PAYMENTS,PRIVATE CONTRACTOR,REVENUE
Walsall Council,http://opendatacommunities.org/id/metropolitan-district-council/walsall,WC121-803,31.12.2021,ADULT SOCIAL CARE,BESS CARE LIMITED,02/12/2020,786.54,73025-Professional Services-Priv Contractor & Other Agencies,THIRD PARTY PAYMENTS,PRIVATE CONTRACTOR,REVENUE
Walsall Council,http://opendatacommunities.org/id/metropolitan-district-council/walsall,WC121-804,31.12.2021,ADULT SOCIAL CARE,BESS CARE LIMITED,09/12/2020,443.39,73025-Professional Services-Priv Contractor & Other Agencies,THIRD PARTY PAYMENTS,PRIVATE CONTRACTOR,REVENUE
